{"text_format":"1","workbook":"xlsx","n_sheets":7,"sheets":["Projection Analysis","admin fee calculations","Tracking Actual Success Rate","Re-benchmarking Est. Yr 2 & 3","background leasing","background graph","New Increment estimating instru"],"not_rendered":{"charts":6,"images":2,"macros":0,"external_links":2,"defined_names":8,"comments":5,"pivot_tables":0},"unopened":[],"bounds":{"document_bytes":16777216,"sheet_cells":100000,"rows_first":2000,"rows_last":500,"rows_between":2000,"halvings":0,"cell_chars":16384,"cell_head_chars":4096},"cells_cut":0,"cells_raw":0,"read":"whole","date_system":"1900"}

{"sheet":"Projection Analysis","index":0,"n_rows":67,"n_cols":32,"rows_kept":67,"cut":false,"hidden":false,"merged":[[1,2,1,3],[3,6,3,7],[3,1,3,4],[5,9,5,10],[68,1,78,14],[13,12,13,13],[8,11,8,12],[3,14,3,16],[3,9,3,12],[5,11,5,12],[4,14,4,15]]}
[]
[null,"PHA Name",null,null,"PHA Number"]
[]
[null,"ACC and Funding Information",null,null,null,null,"Future Years Funding Pro-Ration Levels",null,null,"Program Projection Variables",null,null,null,null,"Leasing and Spending Outcomes: Current and Following Year Projections"]
[null,null,"Current Year","Following Year Estimate","Year 3 Estimate",null,"Following YR Re-Benchmarking Pro-ration",null,null,"Success Rate",null,"Annual Turnover rate",null,null,"Current Year End Projection",null,"Following Year Projection"]
[null,"Calendar Year",null,{"$f":"IF(C6 =\"\",\"\",C6+1)","v":""},{"$f":"IF(C6=\"\",\"\",D6+1)","v":""},null,null,null,null,"Time from Issuance to HAP eff Date",null,null,null,null,"UML % of ACC ",{"$f":"N28","v":{"$error":"#DIV/0!"}},{"$f":"N42","v":{"$error":"#DIV/0!"}}]
[null,"Beginning ACC # Vouchers",null,{"$f":"C31","v":0},null,null,null,null,null,"% Leased in 30 days",null,{"$f":"((K7*100)+(K8*200)+(K9*300)+(K10*400)+(K11*500))/100","v":0},"Average months from issuance to HAP EFF DATE",null,"HAP Total as % All Funds (ABA + NRA)",{"$f":"K29/(C10+C11)","v":{"$error":"#VALUE!"}},{"$f":"K43/(D10+D11)","v":{"$error":"#VALUE!"}}]
[null,"ABA Eligibility Funded",null,{"$f":"IF(H5=\"\",'Re-benchmarking Est. Yr 2 & 3'!C22,H5*'Re-benchmarking Est. Yr 2 & 3'!C22+H9)","v":{"$error":"#VALUE!"}},{"$f":"IF(H5=\"\",'Re-benchmarking Est. Yr 2 & 3'!C45,H5*'Re-benchmarking Est. Yr 2 & 3'!C45)","v":{"$error":"#VALUE!"}},null,null,null,null,"% leased in 30 to 60 days",null,null,null,null,"% ABA (only) Expended",{"$f":"O29","v":{"$error":"#VALUE!"}},{"$f":"O42","v":{"$error":"#VALUE!"}}]
[null,"Set Aside Funding",null,null,null,null,"Optional- additional ABA for new units pro-rated into Year 2",null,null,"% Leased in 60 to 90 days",null,"Cells to the left must add to 100%",null,null,"Projected Yr End NRA (HAP Equity )",{"$f":"C11+(C10-K29)","v":{"$error":"#VALUE!"}},{"$f":"(D11+D10)-K43","v":{"$error":"#VALUE!"}}]
[null,"Total ABA Funding",{"$f":"C9+C8","v":0},{"$f":"D8+D9+H9","v":{"$error":"#VALUE!"}},null,null,null,null,null,"% Leased in 90 to 120 days",null,"cells add to >>>>",{"$f":"K7+K8+K9+K10+K11","v":0},null,"NRA as % of ABA",{"$f":"P9/C10","v":{"$error":"#VALUE!"}},{"$f":"Q9/D10","v":{"$error":"#VALUE!"}}]
[null,"Beginning CY Net Restricted Assets (NRA)",null,{"$f":"IF(P9>0,P9,0)","v":{"$error":"#VALUE!"}},{"$f":"IF(Q9>0,Q9,0)","v":{"$error":"#VALUE!"}},null,null,"Admin Fee",null,"% Leased in 120 to 150 days",null,null,null,null,"Projected Admin Fees",{"$f":"IF(I13=\"\",'admin fee calculations'!D11,I13*'admin fee calculations'!D11)","v":0},{"$f":"IF(I13=\"\",'admin fee calculations'!D21,I13*'admin fee calculations'!D21)","v":0}]
[null,"Total Funding ",{"$f":"C8+C9+C11","v":0},{"$f":"D8+D9+D11","v":{"$error":"#VALUE!"}},{"$f":"E8+E9+E11","v":{"$error":"#VALUE!"}},null,"Col.A  - first 600 units","Col. B","Admin Fee Proration",null,null,null,null,null,"ABA per ACC unit month",{"$f":"C10/(C7*12)","v":{"$error":"#DIV/0!"}},{"$f":"D10/(C7*12)","v":{"$error":"#VALUE!"}}]
[]
[null,null,null,null,null,null,null,null,null,null,null,null,"Beginning Year Three Monthly Exp vs ABA",null,{"$f":"'background graph'!Q55","v":{"$error":"#VALUE!"}},{"$f":"IF(Q9<0,\"YR TWO NRA DEFICIT\",IF(O14<0,(Q9/O14)*-1,\"surplus\"))","v":{"$error":"#VALUE!"}},"# Months NRA will cover Yr 3 Monthly deficit"]
[]
[null,"Month","ACC Units (UMAs) (enter only if change )","ACTUAL Leased Units","Actual HAP","Vouchers issued, or projected to be issued","Other Planned additons or reductions to leased units","New Leasing from Issued Vouchers","Estimated  Attrition","Leased units: actual and Projected ","HAP Expense:  Actual  and Projected ","PUC Actual or Projected  ","Manual PUC Override","Cumulative Annual Leased %"," Cumulative  ABA Expended %","Monthly UML %","Monthly  ABA Expended %",null,null,null,null,null,null,null,null,null,null,null,null,null,"Actual PUC HAP","PROJECTED HAP"]
[null,"January",{"$f":"$C$7","v":0},null,null,null,null,{"$f":"'background leasing'!E16","v":0},{"$f":"(($M$5*J17)/12)*-1","v":0},{"$f":"D17","v":0},{"$f":"IF(E17>0,E17,AF17)","v":0},{"$f":"AE17","v":""},null,{"$f":"D17/C7","v":{"$error":"#DIV/0!"}},{"$f":"K17/(C10/12)","v":{"$error":"#DIV/0!"}},{"$f":"J17/C17","v":{"$error":"#DIV/0!"}},{"$f":"K17/($C$10/12)","v":{"$error":"#DIV/0!"}},null,null,null,null,null,null,null,null,null,null,null,null,null,{"$f":"IF(E17>0,E17/D17,\"\")","v":""},{"$f":"E17","v":0}]
[null,"February",{"$f":"C17","v":0},null,null,null,null,{"$f":"'background leasing'!F16","v":0},{"$f":"(($M$5*J17)/12)*-1","v":0},{"$f":"IF(D18>0,D18,J17+I18+G18+H18)","v":0},{"$error":"#VALUE!"},{"$f":"IF(M18=\"\",IF(AE18=\"\",L17,AE18),M18)","v":""},null,{"$f":"SUM(J$17:J18)/(SUM(C$17:C18))","v":{"$error":"#DIV/0!"}},{"$f":"SUM(K$17:K18)/(C$10/12*2)","v":{"$error":"#VALUE!"}},{"$f":"J18/C18","v":{"$error":"#DIV/0!"}},{"$error":"#VALUE!"},null,null,null,null,null,null,null,null,null,null,null,null,null,"",{"$f":"IF(E18>0,E18,L18*J18)","v":{"$error":"#VALUE!"}}]
[null,"March",{"$f":"C18","v":0},null,null,null,null,{"$f":"'background leasing'!G16","v":0},0,0,{"$error":"#VALUE!"},{"$f":"IF(M19=\"\",IF(AE19=\"\",L18,AE19),M19)","v":""},null,{"$f":"SUM(J$17:J19)/(SUM(C$17:C19))","v":{"$error":"#DIV/0!"}},{"$f":"SUM(K$17:K19)/(C$10/12*3)","v":{"$error":"#VALUE!"}},{"$error":"#DIV/0!"},{"$error":"#VALUE!"},null,null,null,null,null,null,null,null,null,null,null,null,null,"",{"$f":"IF(E19>0,E19,L19*J19)","v":{"$error":"#VALUE!"}}]
[null,"April",0,null,null,null,null,{"$f":"'background leasing'!H16","v":0},0,0,{"$error":"#VALUE!"},"",null,{"$f":"SUM(J$17:J20)/(SUM(C$17:C20))","v":{"$error":"#DIV/0!"}},{"$f":"SUM(K$17:K20)/(C$10/12*4)","v":{"$error":"#VALUE!"}},{"$error":"#DIV/0!"},{"$error":"#VALUE!"},null,null,null,null,null,null,null,null,null,null,null,null,null,"",{"$error":"#VALUE!"}]
[null,"May",{"$f":"C20","v":0},null,null,null,null,{"$f":"'background leasing'!I16","v":0},0,0,{"$error":"#VALUE!"},"",null,{"$f":"SUM(J$17:J21)/(SUM(C$17:C21))","v":{"$error":"#DIV/0!"}},{"$f":"SUM(K$17:K21)/(C$10/12*5)","v":{"$error":"#VALUE!"}},{"$error":"#DIV/0!"},{"$error":"#VALUE!"},null,null,null,null,null,null,null,null,null,null,null,null,null,"",{"$error":"#VALUE!"}]
[null,"June",0,null,null,null,null,{"$f":"'background leasing'!J16","v":0},0,0,{"$error":"#VALUE!"},"",null,{"$f":"SUM(J$17:J22)/(SUM(C$17:C22))","v":{"$error":"#DIV/0!"}},{"$f":"SUM(K$17:K22)/(C$10/12*6)","v":{"$error":"#VALUE!"}},{"$error":"#DIV/0!"},{"$error":"#VALUE!"},null,null,null,null,null,null,null,null,null,null,null,null,null,"",{"$error":"#VALUE!"}]
[null,"July",0,null,null,null,null,{"$f":"'background leasing'!K16","v":0},0,0,{"$error":"#VALUE!"},"",null,{"$f":"SUM(J$17:J23)/(SUM(C$17:C23))","v":{"$error":"#DIV/0!"}},{"$f":"SUM(K$17:K23)/(C$10/12*7)","v":{"$error":"#VALUE!"}},{"$error":"#DIV/0!"},{"$error":"#VALUE!"},null,null,null,null,null,null,null,null,null,null,null,null,null,"",{"$error":"#VALUE!"}]
[null,"August",0,null,null,null,null,{"$f":"'background leasing'!L16","v":0},0,0,{"$error":"#VALUE!"},"",null,{"$f":"SUM(J$17:J24)/(SUM(C$17:C24))","v":{"$error":"#DIV/0!"}},{"$f":"SUM(K$17:K24)/(C$10/12*8)","v":{"$error":"#VALUE!"}},{"$error":"#DIV/0!"},{"$error":"#VALUE!"},null,null,null,null,null,null,null,null,null,null,null,null,null,"",{"$error":"#VALUE!"}]
[null,"September",0,null,null,null,null,{"$f":"'background leasing'!M16","v":0},0,0,{"$error":"#VALUE!"},"",null,{"$f":"SUM(J$17:J25)/(SUM(C$17:C25))","v":{"$error":"#DIV/0!"}},{"$f":"SUM(K$17:K25)/(C$10/12*9)","v":{"$error":"#VALUE!"}},{"$error":"#DIV/0!"},{"$error":"#VALUE!"},null,null,null,null,null,null,null,null,null,null,null,null,null,"",{"$error":"#VALUE!"}]
[null,"October",0,null,null,null,null,{"$f":"'background leasing'!N16","v":0},0,0,{"$error":"#VALUE!"},"",null,{"$f":"SUM(J$17:J26)/(SUM(C$17:C26))","v":{"$error":"#DIV/0!"}},{"$f":"SUM(K$17:K26)/(C$10/12*10)","v":{"$error":"#VALUE!"}},{"$error":"#DIV/0!"},{"$error":"#VALUE!"},null,null,null,null,null,null,null,null,null,null,null,null,null,"",{"$error":"#VALUE!"}]
[null,"November",0,null,null,null,null,{"$f":"'background leasing'!O16","v":0},0,0,{"$error":"#VALUE!"},"",null,{"$f":"SUM(J$17:J27)/(SUM(C$17:C27))","v":{"$error":"#DIV/0!"}},{"$f":"SUM(K$17:K27)/(C$10/12*11)","v":{"$error":"#VALUE!"}},{"$error":"#DIV/0!"},{"$error":"#VALUE!"},null,null,null,null,null,null,null,null,null,null,null,null,null,"",{"$error":"#VALUE!"}]
[null,"December",0,null,null,null,null,{"$f":"'background leasing'!P16","v":0},0,0,{"$error":"#VALUE!"},"",null,{"$f":"SUM(J$17:J28)/(SUM(C$17:C28))","v":{"$error":"#DIV/0!"}},{"$f":"SUM(K$17:K28)/(C$10/12*12)","v":{"$error":"#VALUE!"}},{"$error":"#DIV/0!"},{"$error":"#VALUE!"},null,null,null,null,null,null,null,null,null,null,null,null,null,"",{"$error":"#VALUE!"}]
[null,"total",{"$f":"SUM(C17:C28)","v":0},0,0,0,0,0,0,0,{"$error":"#VALUE!"},null,null,{"$f":"N28","v":{"$error":"#DIV/0!"}},{"$f":"O28","v":{"$error":"#VALUE!"}},null,null,null,null,null,null,null,null,null,null,null,null,null,null,null,null,{"$f":"SUM(AF17:AF28)","v":{"$error":"#VALUE!"}}]
[null,"Following Year",null,null,null,null,null,null,{"$f":"C6+1","v":1}]
[null,"January",{"$f":"C28","v":0},null,null,null,null,{"$f":"'background leasing'!E35","v":0},{"$f":"(($M$5*J28)/12)*-1","v":0},{"$f":"IF(D31>0,D31,J28+I31+G31+H31)","v":0},{"$f":"IF(E31>0,E31,AF31)","v":{"$error":"#VALUE!"}},{"$f":"IF(M31=\"\",IF(AE31=\"\",L28,AE31),M31)","v":""},null,{"$f":"J31/C31","v":{"$error":"#DIV/0!"}},{"$f":"K31/(D10/12)","v":{"$error":"#VALUE!"}},{"$f":"J31/C31","v":{"$error":"#DIV/0!"}},{"$f":"K31/($D$10/12)","v":{"$error":"#VALUE!"}},null,null,null,null,null,null,null,null,null,null,null,null,null,{"$f":"IF(E31>0,E31/D31,\"\")","v":""},{"$f":"IF(E31>0,E31,L31*J31)","v":{"$error":"#VALUE!"}}]
[null,"February",{"$f":"C31","v":0},null,null,null,null,{"$f":"'background leasing'!$F35","v":0},{"$f":"(($M$5*J31)/12)*-1","v":0},{"$f":"IF(D32>0,D32,J31+I32+G32+H32)","v":0},{"$error":"#VALUE!"},{"$f":"IF(M32=\"\",IF(AE32=\"\",L31,AE32),M32)","v":""},null,{"$f":"SUM(J$31:J32)/(SUM(C$31:C32))","v":{"$error":"#DIV/0!"}},{"$f":"SUM(K$31:K32)/(D$10/12*2)","v":{"$error":"#VALUE!"}},{"$error":"#DIV/0!"},{"$error":"#VALUE!"},null,null,null,null,null,null,null,null,null,null,null,null,null,{"$f":"IF(E32>0,E32/D32,\"\")","v":""},{"$error":"#VALUE!"}]
[null,"March",{"$f":"C32","v":0},null,null,null,null,{"$f":"'background leasing'!G35","v":0},{"$f":"(($M$5*J32)/12)*-1","v":0},{"$f":"IF(D33>0,D33,J32+I33+G33+H33)","v":0},{"$error":"#VALUE!"},"",null,{"$f":"SUM(J$31:J33)/(SUM(C$31:C33))","v":{"$error":"#DIV/0!"}},{"$f":"SUM(K$31:K33)/(D$10/12*3)","v":{"$error":"#VALUE!"}},{"$error":"#DIV/0!"},{"$error":"#VALUE!"},null,null,null,null,null,null,null,null,null,null,null,null,null,"",{"$error":"#VALUE!"}]
[null,"April",0,null,null,null,null,{"$f":"'background leasing'!$H35","v":0},0,0,{"$error":"#VALUE!"},"",null,{"$f":"SUM(J$31:J34)/(SUM(C$31:C34))","v":{"$error":"#DIV/0!"}},{"$f":"SUM(K$31:K34)/(D$10/12*4)","v":{"$error":"#VALUE!"}},{"$error":"#DIV/0!"},{"$error":"#VALUE!"},null,null,null,null,null,null,null,null,null,null,null,null,null,"",{"$error":"#VALUE!"}]
[null,"May",0,null,null,null,null,{"$f":"'background leasing'!I35","v":0},0,0,{"$error":"#VALUE!"},"",null,{"$f":"SUM(J$31:J35)/(SUM(C$31:C35))","v":{"$error":"#DIV/0!"}},{"$f":"SUM(K$31:K35)/(D$10/12*5)","v":{"$error":"#VALUE!"}},{"$error":"#DIV/0!"},{"$error":"#VALUE!"},null,null,null,null,null,null,null,null,null,null,null,null,null,"",{"$error":"#VALUE!"}]
[null,"June",0,null,null,null,null,{"$f":"'background leasing'!J35","v":0},0,0,{"$error":"#VALUE!"},"",null,{"$f":"SUM(J$31:J36)/(SUM(C$31:C36))","v":{"$error":"#DIV/0!"}},{"$f":"SUM(K$31:K36)/(D$10/12*6)","v":{"$error":"#VALUE!"}},{"$error":"#DIV/0!"},{"$error":"#VALUE!"},null,null,null,null,null,null,null,null,null,null,null,null,null,"",{"$error":"#VALUE!"}]
[null,"July",0,null,null,null,null,{"$f":"'background leasing'!K35","v":0},0,0,{"$error":"#VALUE!"},"",null,{"$f":"SUM(J$31:J37)/(SUM(C$31:C37))","v":{"$error":"#DIV/0!"}},{"$f":"SUM(K$31:K37)/(D$10/12*7)","v":{"$error":"#VALUE!"}},{"$error":"#DIV/0!"},{"$error":"#VALUE!"},null,null,null,null,null,null,null,null,null,null,null,null,null,"",{"$error":"#VALUE!"}]
[null,"August",0,null,null,null,null,{"$f":"'background leasing'!L35","v":0},0,0,{"$error":"#VALUE!"},"",null,{"$f":"SUM(J$31:J38)/(SUM(C$31:C38))","v":{"$error":"#DIV/0!"}},{"$f":"SUM(K$31:K38)/(D$10/12*8)","v":{"$error":"#VALUE!"}},{"$error":"#DIV/0!"},{"$error":"#VALUE!"},null,null,null,null,null,null,null,null,null,null,null,null,null,"",{"$error":"#VALUE!"}]
[null,"September",0,null,null,null,null,{"$f":"'background leasing'!M35","v":0},0,0,{"$error":"#VALUE!"},"",null,{"$f":"SUM(J$31:J39)/(SUM(C$31:C39))","v":{"$error":"#DIV/0!"}},{"$f":"SUM(K$31:K39)/(D$10/12*9)","v":{"$error":"#VALUE!"}},{"$error":"#DIV/0!"},{"$error":"#VALUE!"},null,null,null,null,null,null,null,null,null,null,null,null,null,"",{"$error":"#VALUE!"}]
[null,"October",0,null,null,null,null,{"$f":"'background leasing'!N35","v":0},0,0,{"$error":"#VALUE!"},"",null,{"$f":"SUM(J$31:J40)/(SUM(C$31:C40))","v":{"$error":"#DIV/0!"}},{"$f":"SUM(K$31:K40)/(D$10/12*10)","v":{"$error":"#VALUE!"}},{"$error":"#DIV/0!"},{"$error":"#VALUE!"},null,null,null,null,null,null,null,null,null,null,null,null,null,"",{"$error":"#VALUE!"}]
[null,"November",0,null,null,null,null,{"$f":"'background leasing'!O35","v":0},0,0,{"$error":"#VALUE!"},"",null,{"$f":"SUM(J$31:J41)/(SUM(C$31:C41))","v":{"$error":"#DIV/0!"}},{"$f":"SUM(K$31:K41)/(D$10/12*11)","v":{"$error":"#VALUE!"}},{"$error":"#DIV/0!"},{"$error":"#VALUE!"},null,null,null,null,null,null,null,null,null,null,null,null,null,"",{"$error":"#VALUE!"}]
[null,"December",0,null,null,null,null,{"$f":"'background leasing'!P35","v":0},0,0,{"$error":"#VALUE!"},"",null,{"$f":"SUM(J$31:J42)/(SUM(C$31:C42))","v":{"$error":"#DIV/0!"}},{"$f":"SUM(K$31:K42)/(D$10)","v":{"$error":"#VALUE!"}},{"$error":"#DIV/0!"},{"$error":"#VALUE!"},null,null,null,null,null,null,null,null,null,null,null,null,null,"",{"$error":"#VALUE!"}]
[null,"total",{"$f":"SUM(C31:C42)","v":0},{"$f":"SUM(D31:D42)","v":0},{"$f":"SUM(E31:E42)","v":0},{"$f":"SUM(F31:F42)","v":0},0,0,0,0,{"$error":"#VALUE!"},null,null,{"$f":"N42","v":{"$error":"#DIV/0!"}},{"$f":"O42","v":{"$error":"#VALUE!"}},null,null,null,null,null,null,null,null,null,null,null,null,null,null,null,null,{"$f":"SUM(AF31:AF42)","v":{"$error":"#VALUE!"}}]
[]
[]
[]
[]
[]
[]
[]
[]
[]
[]
[]
[]
[]
[]
[]
[]
[]
[]
[]
[]
[]
[]
[]
[null,null,"Comments"]

{"sheet":"admin fee calculations","index":1,"n_rows":2502,"n_cols":9,"rows_kept":2502,"cut":false,"hidden":false,"merged":[[0,5,0,8],[0,0,0,2],[3,0,3,3],[13,0,13,3]]}
["Administration Fee Projections",null,null,null,null,"2010 - Current Year HUD Admin Fee Schedule "]
[null,null,null,null,null,"HA Number","HA Name","Column A Fee Rate","Column B Fee Rate"]
[null,null,null,null,null,"AK901","AK HSG FINANCE CORP",81.88,76.430000000000007]
[{"$f":"'Projection Analysis'!C6","v":0},null,null,null,null,"AL001","HSG AUTH OF BIRMINGHAM DISTRICT",57.34,53.52]
[null,"UMLs","Per unit admin fee","Admin Fee Estimate",null,"AL002","MOBILE HOUSING BOARD",58.25,54.37]
["1st 7200 UMLs",{"$f":"IF('Projection Analysis'!J29>7200,7200,'Projection Analysis'!J29)","v":0},{"$f":"'Projection Analysis'!G13","v":0},{"$f":"IF(B6>B8,B8*C6,B6*C6)","v":0},null,"AL004","HA ANNISTON",56.74,52.96]
["over 7200 UMLs",{"$f":"IF('Projection Analysis'!J29>7200,'Projection Analysis'!J29-7200,0)","v":0},{"$f":"'Projection Analysis'!H13","v":0},{"$f":"IF(B9>B8,((B8-B6)*C7),B7*C7)","v":0},null,"AL005","HA PHENIX CITY",56.74,52.96]
["UMA cap",{"$f":"'Projection Analysis'!C29","v":0},null,null,null,"AL006","H/A CITY OF MONTGOMERY",56.74,52.96]
["total UMLs",{"$f":"B6+B7","v":0},null,{"$f":"D6+D7","v":0},null,"AL007","DOTHAN H/A",56.74,52.96]
[null,null,null,null,null,"AL008","HA SELMA",56.74,52.96]
["CY 2010 total",null,null,{"$f":"D9","v":0},null,"AL010","FAIRFIELD ALABAMA H/A",57.34,53.52]
[null,null,null,null,null,"AL011","HA FORT PAYNE",56.74,52.96]
[null,null,null,null,null,"AL012","HA JASPER",56.74,52.96]
[{"$f":"'Projection Analysis'!D6","v":""},null,null,null,null,"AL013","HA TARRANT",57.34,53.52]
[null,"UMLs","Per unit admin fee","Admin Fee Estimate",null,"AL014","HA GUNTERSVILLE",56.74,52.96]
["1st 7200 UMLs",{"$f":"IF('Projection Analysis'!J43>7200,7200,'Projection Analysis'!J43)","v":0},{"$f":"C6","v":0},{"$f":"IF(B16>B18,B18*C16,B16*C16)","v":0},null,"AL047","HA HUNTSVILLE",58.26,54.39]
["over 7200 UMLs",{"$f":"IF('Projection Analysis'!J43>7200,'Projection Analysis'!J43-7200,0)","v":0},{"$f":"C7","v":0},{"$f":"IF(B19>B18,((B18-B16)*C17),B17*C17)","v":0},null,"AL048","HA DECATUR",56.74,52.96]
["UMA Cap",{"$f":"'Projection Analysis'!C43","v":0},null,null,null,"AL049","HA GREATER GADSDEN",56.74,52.96]
["Total UMLs",{"$f":"B16+B17","v":0},null,{"$f":"D16+D17","v":0},null,"AL050","HA AUBURN",56.74,52.96]
[null,null,null,null,null,"AL052","HA CULLMAN",56.74,52.96]
["CY 2011 total",null,null,{"$f":"D19","v":0},null,"AL053","HA HAMILTON",56.74,52.96]
[null,null,null,null,null,"AL054","FLORENCE H/A",56.74,52.96]
[null,null,null,null,null,"AL055","HA CORDOVA",56.74,52.96]
["Link to HUD Website on Admin Fees",null,null,null,null,"AL060","HA RUSSELLVILLE",56.74,52.96]
["http://www.hud.gov/offices/pih/programs/hcv/adminfees2010.cfm",null,null,null,null,"AL061","HA OPELIKA",56.74,52.96]
[null,null,null,null,null,"AL063","H A ONEONTA",57.34,53.52]
[null,null,null,null,null,"AL068","HA SHEFFIELD",56.74,52.96]
[null,null,null,null,null,"AL069","HA LEEDS",57.34,53.52]
[null,null,null,null,null,"AL072","HA COLUMBIANA",57.34,53.52]
[null,null,null,null,null,"AL073","HA OZARK",56.89,53.09]
[null,null,null,null,null,"AL075","HA BOAZ",56.74,52.96]
[null,null,null,null,null,"AL077","HA TUSCALOOSA",56.74,52.96]
[null,null,null,null,null,"AL086","HA JEFFERSON COUNTY",57.34,53.52]
[null,null,null,null,null,"AL090","HA PHIL CAMPBELL INC",56.74,52.96]
[null,null,null,null,null,"AL091","HA ARAB",56.74,52.96]
[null,null,null,null,null,"AL095","HA MILLPORT",56.74,52.96]
[null,null,null,null,null,"AL099","HA SCOTTSBORO",56.74,52.96]
[null,null,null,null,null,"AL103","HA HARTFORD",56.74,52.96]
[null,null,null,null,null,"AL105","HOUSING AUTHORITY OF THE CITY OF TALLEDEGA",56.74,52.96]
[null,null,null,null,null,"AL107","HA ELBA",56.74,52.96]
[null,null,null,null,null,"AL110","HA PIEDMONT",56.74,52.96]
[null,null,null,null,null,"AL112","HA OPP",56.74,52.96]
[null,null,null,null,null,"AL114","HA LINEVILLE",56.74,52.96]
[null,null,null,null,null,"AL115","HA ENTERPRISE",56.74,52.96]
[null,null,null,null,null,"AL116","HA YORK",56.74,52.96]
[null,null,null,null,null,"AL118","HA EUFAULA",56.74,52.96]
[null,null,null,null,null,"AL121","HA ALBERTVILLE",56.74,52.96]
[null,null,null,null,null,"AL124","HA MIDLAND CITY",56.89,53.09]
[null,null,null,null,null,"AL125","HA BESSEMER",57.34,53.52]
[null,null,null,null,null,"AL128","HA SAMSON",56.74,52.96]
[null,null,null,null,null,"AL129","HA WALKER COUNTY",56.74,52.96]
[null,null,null,null,null,"AL131","PRATTVILLE HOUSING AUTHORITY",56.74,52.96]
[null,null,null,null,null,"AL138","HA GORDO",56.74,52.96]
[null,null,null,null,null,"AL139","HA JACKSONVILLE",56.74,52.96]
[null,null,null,null,null,"AL152","HA NORTHPORT",56.74,52.96]
[null,null,null,null,null,"AL154","HA ATMORE",56.74,52.96]
[null,null,null,null,null,"AL155","HA GREENVILLE",56.74,52.96]
[null,null,null,null,null,"AL158","HA CLAYTON",56.74,52.96]
[null,null,null,null,null,"AL160","HA TUSKEGEE",56.74,52.96]
[null,null,null,null,null,"AL163","HA FLOMATON",56.74,52.96]
[null,null,null,null,null,"AL165","HA FOLEY",59.25,55.31]
[null,null,null,null,null,"AL169","HA PRICHARD",58.25,54.37]
[null,null,null,null,null,"AL171","HA UNIONTOWN",56.74,52.96]
[null,null,null,null,null,"AL172","HA TALLASSEE",56.74,52.96]
[null,null,null,null,null,"AL173","HA MONROEVILLE",56.74,52.96]
[null,null,null,null,null,"AL174","HA ALEXANDER CITY",56.74,52.96]
[null,null,null,null,null,"AL177","HA TROY",56.74,52.96]
[null,null,null,null,null,"AL180","HOUSING AUTHORITY OF CARROLLTON",56.74,52.96]
[null,null,null,null,null,"AL181","HA EVERGREEN",56.74,52.96]
[null,null,null,null,null,"AL192","HA SO CENTRAL ALABAMA REGIONAL",56.74,52.96]
[null,null,null,null,null,"AL202","MOBILE COUNTY HOUSING AUTHORITY",58.25,54.37]
[null,null,null,null,null,"AR002","HSG AUTH OF THE CITY OF NORTH LITTLE ROCK",58.84,54.93]
[null,null,null,null,null,"AR003","FORT SMITH",53.94,50.34]
[null,null,null,null,null,"AR004","HOUSING AUTHORITY OF THE CITY OF LITTLE ROCK",58.84,54.93]
[null,null,null,null,null,"AR005","BLYTHEVILLE HOUSING AUTHORITY",52.16,48.68]
[null,null,null,null,null,"AR006","CONWAY HOUSING AUTHORITY",58.84,54.93]
[null,null,null,null,null,"AR010","NORTHWEST REGIONAL HOUSING AUTHORITY",53.94,50.34]
[null,null,null,null,null,"AR012","ARKADELPHIA HOUSING AUTHORITY",52.16,48.68]
[null,null,null,null,null,"AR015","HOUSING AUTHORITY OF TEXARKANA",54.05,50.44]
[null,null,null,null,null,"AR016","CAMDEN HOUSING AUTHORITY",52.16,48.68]
[null,null,null,null,null,"AR017","HOUSING AUTHORITY OF THE CITY OF PINE BLUFF",53.94,50.34]
[null,null,null,null,null,"AR020","HSG AUTH OF THE COUNTY OF LITTLE RIVER",52.16,48.68]
[null,null,null,null,null,"AR024","WEST MEMPHIS HSG AUTHORITY",57.35,53.53]
[null,null,null,null,null,"AR031","HSG AUTHORITY OF THE CITY OF HOT SPRINGS",53.94,50.34]
[null,null,null,null,null,"AR033","LOGAN COUNTY HOUSING AUTHORITY",52.16,48.68]
[null,null,null,null,null,"AR034","HOUSING AUTHORITY OF THE CITY OF TRUMANN",53.94,50.34]
[null,null,null,null,null,"AR035","SEARCY HOUSING AUTHORITY",52.16,48.68]
[null,null,null,null,null,"AR037","HOUSING AUTHORITY OF THE CITY OF PRESCOTT",52.16,48.68]
[null,null,null,null,null,"AR039","WYNNE HOUSING AUTHORITY",52.16,48.68]
[null,null,null,null,null,"AR041","HSG AUTHORITY OF THE COUNTY OF LONOKE",58.84,54.93]
[null,null,null,null,null,"AR042","HOUSING AUTHORITY OF STAR CITY",53.94,50.34]
[null,null,null,null,null,"AR045","PIKE COUNTY HOUSING AUTH",52.16,48.68]
[null,null,null,null,null,"AR048","HOUSING AUTHORITY OF DEWITT",52.16,48.68]
[null,null,null,null,null,"AR052","CLARENDON HOUSING AUTHORITY",52.16,48.68]
[null,null,null,null,null,"AR054","HOUSING AUTHORITY OF THE CITY OF WILSON",52.16,48.68]
[null,null,null,null,null,"AR059","BRINKLEY HOUSING AUTHORITY",52.16,48.68]
[null,null,null,null,null,"AR066","RUSSELLVILLE HOUS AUTH",52.16,48.68]
[null,null,null,null,null,"AR068","HOPE HOUSING AUTH",52.16,48.68]
[null,null,null,null,null,"AR082","HOUSING AUTHORITY OF THE CITY OF WARREN",52.16,48.68]
[null,null,null,null,null,"AR094","MALVERN HOUSING AUTHORITY",52.16,48.68]
[null,null,null,null,null,"AR104","SPRINGDALE HOUSING AUTHORITY",53.94,50.34]
[null,null,null,null,null,"AR117","POLK COUNTY HOUSING AUTHORITY",52.16,48.68]
[null,null,null,null,null,"AR121","PARAGOULD HOUSING AUTHORITY",52.16,48.68]
[null,null,null,null,null,"AR131","JONESBORO URBAN RENEWAL & HSG AUTHORITY",53.94,50.34]
[null,null,null,null,null,"AR135","DEVALLS BLUFF HOUSING AUTHORITY",52.16,48.68]
[null,null,null,null,null,"AR152","LAKE VILLAGE HOUSING AUTH",52.16,48.68]
[null,null,null,null,null,"AR161","CONWAY COUNTY HOUSING AUTH",52.16,48.68]
[null,null,null,null,null,"AR163","HSG AUTH OF THE CITY OF SILOAM SPRINGS",53.94,50.34]
[null,null,null,null,null,"AR166","STUTTGART HOUSING AUTHORITY",52.16,48.68]
[null,null,null,null,null,"AR170","JACKSONVILLE HOUSING AUTHORITY",58.84,54.93]
[null,null,null,null,null,"AR175","BENTON PUBLIC HOUSING AUTHORITY",58.84,54.93]
[null,null,null,null,null,"AR176","CLAY COUNTY HOUSING DEPARTMENT",52.16,48.68]
[null,null,null,null,null,"AR177","LAWRENCE CO. PUBLIC HSG AGCY",52.16,48.68]
[null,null,null,null,null,"AR181","FAYETTEVILLE HOUSING AUTHORITY",53.94,50.34]
[null,null,null,null,null,"AR194","CRAWFORD COUNTY PUBLIC FACILITIES BOARD NO 1",53.94,50.34]
[null,null,null,null,null,"AR197","WHITE RIVER REGIONAL HOUSING AUTHORITY",52.16,48.68]
[null,null,null,null,null,"AR200","HARRISON HOUSING AGENCY",52.16,48.68]
[null,null,null,null,null,"AR201","WALNUT RIDGE HOUSING AGENCY",52.16,48.68]
[null,null,null,null,null,"AR202","HOXIE PUBLIC HOUSING AGENCY",52.16,48.68]
[null,null,null,null,null,"AR210","DREW COUNTY PUBLIC FACILITIES BOARD",52.16,48.68]
[null,null,null,null,null,"AR211","POPE COUNTY PUBLIC FACILITIES BOARD",52.16,48.68]
[null,null,null,null,null,"AR213","MISSISSIPPI COUNTY PUBLIC FACILITIES BOARD",52.16,48.68]
[null,null,null,null,null,"AR214","ASHLEY COUNTY HOUSING AUTHORITY",52.16,48.68]
[null,null,null,null,null,"AR215","JOHNSON COUNTY SECTION 8 HSG AGENCY",52.16,48.68]
[null,null,null,null,null,"AR219","CABOT PUBLIC HOUSING AGENCY",58.84,54.93]
[null,null,null,null,null,"AR222","UNION CO.",52.16,48.68]
[null,null,null,null,null,"AR223","PHILLIPS COUNTY PUBLIC HOUSING AGENCY",52.16,48.68]
[null,null,null,null,null,"AR224","SAINT FRANCIS COUNTY HOUSING AUTHORITY",52.16,48.68]
[null,null,null,null,null,"AR225","LEE COUNTY HOUSING AUTHORITY",52.16,48.68]
[null,null,null,null,null,"AR226","HOWARD COUNTY PUBLIC HOUSING AGENCY",52.16,48.68]
[null,null,null,null,null,"AR228","CITY OF MAGNOLIA HOUSING AUTHORITY",52.16,48.68]
[null,null,null,null,null,"AR232","POINSETT COUNTY HOUSING AGENCY",53.94,50.34]
[null,null,null,null,null,"AR238","SEVIER COUNTY PUBLIC HOUSING AGENCY",52.16,48.68]
[null,null,null,null,null,"AR240","SCOTT COUNTY PUBLIC HOUSING AGENCY",52.16,48.68]
[null,null,null,null,null,"AR241","FRANKLIN COUNTY PUBLIC HOUSING AGENCY",53.94,50.34]
[null,null,null,null,null,"AR246","CALHOUN COUNTY PUBLIC HOUSING AGENCY",52.16,48.68]
[null,null,null,null,null,"AR247","POCAHONTAS PUBLIC HSG AGENCY",52.16,48.68]
[null,null,null,null,null,"AR249","DALLAS COUNTY PUBLIC HOUSING AGENCY",52.16,48.68]
[null,null,null,null,null,"AR250","LAFAYETTE CO. PUBLIC HOUSING AGENCY",52.16,48.68]
[null,null,null,null,null,"AR252","PULASKI COUNTY HOUSING AGENCY",58.84,54.93]
[null,null,null,null,null,"AR257","MCGEHEE",52.16,48.68]
[null,null,null,null,null,"AR264","EARLE SECTION 8 HOUSING AUTHORITY",57.35,53.53]
[null,null,null,null,null,"AR265","YELL COUNTY PUBLIC FACILITIES BOARD",52.16,48.68]
[null,null,null,null,null,"AR266","DESHA CO RESIDENTIAL HSG FACILITIES BOARD",52.16,48.68]
[null,null,null,null,null,"AR267","GREENE COUNTY HOUSING AUTHORITY",52.16,48.68]
[null,null,null,null,null,"AZ001","PHOENIX",65.12,60.78]
[null,null,null,null,null,"AZ003","CITY OF GLENDALE HOUSING AUTH",65.12,60.78]
[null,null,null,null,null,"AZ004","CITY OF TUCSON",64.38,60.08]
[null,null,null,null,null,"AZ005","MESA",65.12,60.78]
[null,null,null,null,null,"AZ006","CITY OF FLAGSTAFF HOUSING AUTHORITY",71.2,66.459999999999994]
[null,null,null,null,null,"AZ008","WINSLOW HOUSING AUTHORITY",50.02,46.69]
[null,null,null,null,null,"AZ009","MARICOPA COUNTY",65.12,60.78]
[null,null,null,null,null,"AZ010","PINAL COUNTY HOUSING AUTHORITY",65.12,60.78]
[null,null,null,null,null,"AZ013","YUMA COUNTY HOUSING DEPARTMENT",72.349999999999994,67.53]
[null,null,null,null,null,"AZ021","CITY OF ELOY",65.12,60.78]
[null,null,null,null,null,"AZ023","NOGALES HOUSING AUTHORITY",52.71,49.19]
[null,null,null,null,null,"AZ025","SOUTH TUCSON CITY HOUSING AUTH",64.38,60.08]
[null,null,null,null,null,"AZ028","CITY OF CHANDLER",65.12,60.78]
[null,null,null,null,null,"AZ031","CITY OF TEMPE",65.12,60.78]
[null,null,null,null,null,"AZ032","CITY OF SCOTTSDALE",65.12,60.78]
[null,null,null,null,null,"AZ033","PIMA COUNTY",64.38,60.08]
[null,null,null,null,null,"AZ034","COUNTY OF COCHISE PHA",50.93,47.53]
[null,null,null,null,null,"AZ035","CITY OF YUMA HOUSING AUTHORITY",72.349999999999994,67.53]
[null,null,null,null,null,"AZ037","CITY OF DOUGLAS HSG AUTH",50.93,47.53]
[null,null,null,null,null,"AZ038","CITY OF PEORIA",65.12,60.78]
[null,null,null,null,null,"AZ041","WILLIAMS HOUSING AUTHORITY",71.2,66.459999999999994]
[null,null,null,null,null,"AZ043","MOHAVE COUNTY HSG AUTH",87.19,81.39]
[null,null,null,null,null,"AZ045","GILA COUNTY HOUSING AUTHORITY",51.83,48.38]
[null,null,null,null,null,"AZ880","ARIZONA BEHAVIORAL HEALTH CORP",65.12,60.78]
[null,null,null,null,null,"AZ901","STATE OF ARIZONA",71.2,66.459999999999994]
[null,null,null,null,null,"CA001","SAN FRANCISCO HSG AUTH",104.93,97.94]
[null,null,null,null,null,"CA002","COUNTY OF LOS ANGELES HOUSING AUTH.",104.93,97.94]
[null,null,null,null,null,"CA003","OAKLAND HOUSING AUTHORITY",104.93,97.94]
[null,null,null,null,null,"CA004","CITY OF LOS ANGELES HSG AUTH",104.93,97.94]
[null,null,null,null,null,"CA005","CITY OF SACRAMENTO HOUSING AUTHORITY",79.69,74.38]
[null,null,null,null,null,"CA006","CITY OF FRESNO HSG AUTH",73.12,68.239999999999995]
[null,null,null,null,null,"CA007","COUNTY OF SACRAMENTO HOUSING AUTHORITY",79.69,74.38]
[null,null,null,null,null,"CA008","HOUSING AUTHORITY COUNTY OF KERN",79.97,74.64]
[null,null,null,null,null,"CA009","CITY OF UPLAND HOUSING AUTHORITY",83.71,78.14]
[null,null,null,null,null,"CA010","CITY OF RICHMOND HSG AUTH",104.93,97.94]
[null,null,null,null,null,"CA011","COUNTY OF CONTRA COSTA HSG AUTH",104.93,97.94]
[null,null,null,null,null,"CA014","COUNTY OF SAN MATEO HSG AUTH",104.93,97.94]
[null,null,null,null,null,"CA019","COUNTY OF SAN BERNARDINO HSG AUTH",83.71,78.14]
[null,null,null,null,null,"CA021","COUNTY OF SANTA BARBARA HSG AUTH",102.46,95.62]
[null,null,null,null,null,"CA022","CITY OF NEEDLES HOUSING AUTHORITY",83.71,78.14]
[null,null,null,null,null,"CA023","COUNTY OF MERCED HOUSING AUTHORITY",68.7,64.13]
[null,null,null,null,null,"CA024","COUNTY OF SAN JOAQUIN HOUSING AUTH.",76.459999999999994,71.38]
[null,null,null,null,null,"CA026","COUNTY OF STANISLAUS HOUSING AUTH",77,71.86]
[null,null,null,null,null,"CA027","COUNTY OF RIVERSIDE HSG AUTH",83.71,78.14]
[null,null,null,null,null,"CA028","COUNTY OF FRESNO HSG AUTH",73.12,68.239999999999995]
[null,null,null,null,null,"CA030","TULARE COUNTY HOUSING AUTH",68.180000000000007,63.65]
[null,null,null,null,null,"CA031","OXNARD HOUS AUTH",104.93,97.94]
[null,null,null,null,null,"CA032","PORT HUENEME HOUS AUTH",104.93,97.94]
[null,null,null,null,null,"CA033","COUNTY OF MONTEREY HSG AUTH",90.4,84.37]
[null,null,null,null,null,"CA035","SAN BUENAVENTURA HOUS AUTH",104.93,97.94]
[null,null,null,null,null,"CA039","CITY OF CALEXICO HOUSING AUTHORITY",76.09,71.010000000000005]
[null,null,null,null,null,"CA041","CITY OF BENICIA HSG AUTH",91.1,85.02]
[null,null,null,null,null,"CA043","COUNTY OF BUTTE HSG AUTH",70.27,65.58]
[null,null,null,null,null,"CA044","YOLO COUNTY HSG AUTHORITY",79.69,74.38]
[null,null,null,null,null,"CA048","COUNTY OF SUTTER HSG AUTHORITY",60.3,56.28]
[null,null,null,null,null,"CA052","COUNTY OF MARIN HOUSING AUTHORITY",104.93,97.94]
[null,null,null,null,null,"CA053","KINGS COUNTY HOUS AUTH",65.989999999999995,61.59]
[null,null,null,null,null,"CA055","CITY OF VALLEJO",91.1,85.02]
[null,null,null,null,null,"CA056","SAN JOSE HOUSING AUTHORITY",104.93,97.94]
[null,null,null,null,null,"CA058","CITY OF BERKELEY HOUSING AUTHORITY",104.93,97.94]
[null,null,null,null,null,"CA059","COUNTY OF SANTA CLARA HOUSING AUTH.",104.93,97.94]
[null,null,null,null,null,"CA060","CITY OF PITTSBURG HSG AUTH",104.93,97.94]
[null,null,null,null,null,"CA061","CITY OF CRESCENT CITY HSG AUTH",70.69,65.98]
[null,null,null,null,null,"CA062","CITY OF ALAMEDA HOUSING AUTHORITY",104.93,97.94]
[null,null,null,null,null,"CA063","SAN DIEGO HOUSING COMMISSION",93.82,87.56]
[null,null,null,null,null,"CA064","CITY OF SAN LUIS OBISPO HOUSING AUTHORITY",90.84,84.78]
[null,null,null,null,null,"CA065","CITY OF FAIRFIELD",91.1,85.02]
[null,null,null,null,null,"CA066","SUISUN CITY HOUSING AUTHORITY",91.1,85.02]
[null,null,null,null,null,"CA067","ALAMEDA COUNTY HSG AUTH",104.93,97.94]
[null,null,null,null,null,"CA068","CITY OF LONG BEACH HSG AUTH",104.93,97.94]
[null,null,null,null,null,"CA069","CITY OF MADERA HOUSING AUTHORITY",73.12,68.239999999999995]
[null,null,null,null,null,"CA070","COUNTY OF PLUMAS HOUSING AUTHORITY",64.7,60.38]
[null,null,null,null,null,"CA071","CITY OF COMPTON",104.93,97.94]
[null,null,null,null,null,"CA072","SANTA CRUZ COUNTY HSG AUTH",104.93,97.94]
[null,null,null,null,null,"CA073","HSG AUTHORITY CITY OF NAPA",91.1,85.02]
[null,null,null,null,null,"CA074","H.A. OF THE CITY OF LIVERMORE",104.93,97.94]
[null,null,null,null,null,"CA075","SANTA PAULA HOUS AUTH",104.93,97.94]
[null,null,null,null,null,"CA076","CITY OF SANTA BARBARA H/A",102.46,95.62]
[null,null,null,null,null,"CA077","CITY OF CARLSBAD HOUSING & REDEVELOPMENT",93.82,87.56]
[null,null,null,null,null,"CA079","CITY OF PASADENA COMMUNITY DEVELOPMENT COMMISSION",104.93,97.94]
[null,null,null,null,null,"CA082","CITY OF INGLEWOOD",104.93,97.94]
[null,null,null,null,null,"CA084","MENDOCINO COUNTY",76.19,71.11]
[null,null,null,null,null,"CA085","COUNTY OF SONOMA",102.34,95.53]
[null,null,null,null,null,"CA086","COUNTY OF HUMBOLDT HSG AUTH",72.819999999999993,67.959999999999994]
[null,null,null,null,null,"CA088","CITY OF SANTA ROSA",102.34,95.53]
[null,null,null,null,null,"CA092","AREA HOUS AUTH OF COUNTY OF VENTURA",104.93,97.94]
[null,null,null,null,null,"CA093","CITY OF SANTA ANA HSG AUTH",104.93,97.94]
[null,null,null,null,null,"CA094","COUNTY OF ORANGE HOUSING AUTHORITY",104.93,97.94]
[null,null,null,null,null,"CA096","COUNTY OF SHASTA HSG AUTH",73.12,68.239999999999995]
[null,null,null,null,null,"CA102","GARDEN GROVE HOUSING AUTHORITY",104.93,97.94]
[null,null,null,null,null,"CA103","REDONDO BEACH HOUSING AUTHORITY",104.93,97.94]
[null,null,null,null,null,"CA104","CITY OF ANAHEIM HOUSING AUTHORITY",104.93,97.94]
[null,null,null,null,null,"CA105","CITY OF BURBANK HOUSING AUTHORITY",104.93,97.94]
[null,null,null,null,null,"CA106","CITY OF REDDING HSG AUTH",73.12,68.239999999999995]
[null,null,null,null,null,"CA107","YUBA COUNTY HOUSING AUTHORITY",60.3,56.28]
[null,null,null,null,null,"CA108","COUNTY OF SAN DIEGO",93.82,87.56]
[null,null,null,null,null,"CA110","CULVER CITY PUBLIC HOUSING AGENCY",104.93,97.94]
[null,null,null,null,null,"CA111","CITY OF SANTA MONICA",104.93,97.94]
[null,null,null,null,null,"CA114","CITY OF GLENDALE HOUSING AUTHORITY",104.93,97.94]
[null,null,null,null,null,"CA116","CITY OF NATIONAL CITY",93.82,87.56]
[null,null,null,null,null,"CA117","CITY OF PICO RIVERA",104.93,97.94]
[null,null,null,null,null,"CA118","NORWALK HOUSING AUTHORITY",104.93,97.94]
[null,null,null,null,null,"CA119","CITY OF SOUTH GATE",104.93,97.94]
[null,null,null,null,null,"CA120","CITY OF BALDWIN PARK HOUSING AUTH",104.93,97.94]
[null,null,null,null,null,"CA121","CITY OF TORRANCE",104.93,97.94]
[null,null,null,null,null,"CA122","CITY OF HOLLISTER",83.04,77.5]
[null,null,null,null,null,"CA123","CITY OF POMONA",104.93,97.94]
[null,null,null,null,null,"CA125","CITY OF VACAVILLE",91.1,85.02]
[null,null,null,null,null,"CA126","CITY OF HAWTHORNE HOUSING AUTHORITY",104.93,97.94]
[null,null,null,null,null,"CA127","MARIPOSA COUNTY HSG AUTH",77.44,72.27]
[null,null,null,null,null,"CA128","CITY OF ROSEVILLE",79.69,74.38]
[null,null,null,null,null,"CA131","COUNTY OF SOLANO HSG AUTH",91.1,85.02]
[null,null,null,null,null,"CA132","CITY OF OCEANSIDE COMM DEV COMMISSION",93.82,87.56]
[null,null,null,null,null,"CA135","CITY OF LAKEWOOD HOUSING AUTHORITY",104.93,97.94]
[null,null,null,null,null,"CA136","CITY OF HAWAIIAN GARDENS HSG AUTH",104.93,97.94]
[null,null,null,null,null,"CA137","CITY OF PARAMOUNT HOUSING AUTHORITY",104.93,97.94]
[null,null,null,null,null,"CA138","CITY OF LAWNDALE HSG AUTH",104.93,97.94]
[null,null,null,null,null,"CA139","CITY OF LOMITA HOUSING AUTHORITY",104.93,97.94]
[null,null,null,null,null,"CA141","SAN JUAN BAUTISTA",83.04,77.5]
[null,null,null,null,null,"CA143","IMPERIAL VALLEY HOUSING AUTHORITY",76.09,71.010000000000005]
[null,null,null,null,null,"CA144","LAKE COUNTY HOUSING COMMISSION",70.69,65.98]
[null,null,null,null,null,"CA145","WEST HOLLYWOOD HOUSING AUTHORITY",104.93,97.94]
[null,null,null,null,null,"CA146","NEVADA COUNTY HOUSING AUTHORITY",86.81,81.02]
[null,null,null,null,null,"CA147","SANTA FE SPRINGS H A",104.93,97.94]
[null,null,null,null,null,"CA149","PLACER COUNTY HOUSING AUTHORITY",79.69,74.38]
[null,null,null,null,null,"CA151","COMM SERVICE DEPT EL DORADO COUNTY",79.69,74.38]
[null,null,null,null,null,"CA152","LASSEN COUNTY",64.7,60.38]
[null,null,null,null,null,"CA154","COUNTY OF TEHAMA",64.7,60.38]
[null,null,null,null,null,"CA155","CITY OF ENCINITAS HOUSING AUTHORITY",93.82,87.56]
[null,null,null,null,null,"CA912","CALIFORNIA DEPT OF HSG AND COMM DEV",80.150000000000006,74.81]
[null,null,null,null,null,"CA913","CALIFORNIA DEPT OF HSG AND COMM DEV",77.44,72.27]
[null,null,null,null,null,"CO001","HOUSING AUTHORITY OF THE CITY AND COUNTY OF DENVER",65.38,61.03]
[null,null,null,null,null,"CO002","HSG AUTH OF PUEBLO",60.4,56.36]
[null,null,null,null,null,"CO005","HSG AUTH OF TRINIDAD",65.459999999999994,61.09]
[null,null,null,null,null,"CO016","BOULDER CITY HSG AUTH",74.19,69.239999999999995]
[null,null,null,null,null,"CO019","BRIGHTON HSG AUTH",65.38,61.03]
[null,null,null,null,null,"CO024","LAS ANIMAS HOUSING AUTHORITY",56.03,52.3]
[null,null,null,null,null,"CO028","COLORADO SPRINGS HOUSING AUTHORITY",60.99,56.93]
[null,null,null,null,null,"CO031","LA JUNTA HSG AUTH",56.03,52.3]
[null,null,null,null,null,"CO034","LOVELAND HOUSING AUTHORITY",70.3,65.62]
[null,null,null,null,null,"CO035","GREELEY WELD HOUSING AUTHORITY",60.62,56.59]
[null,null,null,null,null,"CO036","LITTLETON HSG AUTH",65.38,61.03]
[null,null,null,null,null,"CO040","DELTA HOUSING AUTHORITY",86.53,80.77]
[null,null,null,null,null,"CO041","FORT COLLINS HSG AUTH",70.3,65.62]
[null,null,null,null,null,"CO043","CENTER HSG AUTH",65.459999999999994,61.09]
[null,null,null,null,null,"CO045","ROCKY FORD HOUSING AUTHORITY",56.03,52.3]
[null,null,null,null,null,"CO048","CITY OF ENGLEWOOD HOUSING AUTHORITY",65.38,61.03]
[null,null,null,null,null,"CO049","HOUSING AUTHORITY OF THE CITY OF LAKEWOOD",65.38,61.03]
[null,null,null,null,null,"CO050","ARVADA HOUSING AUTHORITY",65.38,61.03]
[null,null,null,null,null,"CO051","GRAND JUNCTION HSG AUTH",76.48,71.38]
[null,null,null,null,null,"CO052","AURORA HOUSING AUTHORITY",65.38,61.03]
[null,null,null,null,null,"CO057","SHERIDAN HOUSING AUTHORITY",65.38,61.03]
[null,null,null,null,null,"CO058","ADAMS COUNTY HOUSING AUTHORITY",65.38,61.03]
[null,null,null,null,null,"CO059","LOUISVILLE HOUSING AUTHORITY",74.19,69.239999999999995]
[null,null,null,null,null,"CO061","BOULDER COUNTY HSG AU",74.19,69.239999999999995]
[null,null,null,null,null,"CO065","HOUSING AUTHORITY OF THE CITY OF LAMAR",56.03,52.3]
[null,null,null,null,null,"CO070","LONGMONT HOUSING AUTHORITY",74.19,69.239999999999995]
[null,null,null,null,null,"CO071","HOUSING AUTHORITY OF THE CITY OF FOUNTAIN",60.99,56.93]
[null,null,null,null,null,"CO072","JEFFERSON COUNTY HOUSING AUTHORITY",65.38,61.03]
[null,null,null,null,null,"CO079","HOUSING AUTHORITY OF THE COUNTY OF MONTEZUMA",65.459999999999994,61.09]
[null,null,null,null,null,"CO081","ARCHULETA COUNTY HOUSING AUTHORITY",74.22,69.28]
[null,null,null,null,null,"CO087","MONTROSE COUNTY HOUSING AUTHORITY",86.53,80.77]
[null,null,null,null,null,"CO090","HOUSING AUTHORITY OF WELD COUNTY",60.62,56.59]
[null,null,null,null,null,"CO095","GARFIELD COUNTY HOUSING AUTHORITY",82.74,77.22]
[null,null,null,null,null,"CO100","HOUS AUTH CITY OF MANITOU SPRINGS",60.99,56.93]
[null,null,null,null,null,"CO101","OTERO COUNTY HOUSING AUTHORITY",56.03,52.3]
[null,null,null,null,null,"CO103","LARIMER COUNTY HOUSING AUTHORITY",70.3,65.62]
[null,null,null,null,null,"CO105","EL PASO COUNTY HOUSING AUTHORITY",60.99,56.93]
[null,null,null,null,null,"CO888","COLORADO BLUESKY ENTERPRISES",60.4,56.36]
[null,null,null,null,null,"CO889","CENTER FOR PEOPLE WITH DISABILITIES",74.19,69.239999999999995]
[null,null,null,null,null,"CO901","COLORADO DEPARTMENT OF HUMAN SERVICES",65.38,61.03]
[null,null,null,null,null,"CO911","COLORADO DIVISION OF HOUSING",65.38,61.03]
[null,null,null,null,null,"CO921","COLORADO HOUSING FINANCE AUTHORITY",65.38,61.03]
[null,null,null,null,null,"CT001","BRIDGEPORT HOUS AUTH",81.569999999999993,76.14]
[null,null,null,null,null,"CT002","NORWALK HOUSING AUTHORITY",87.44,81.62]
[null,null,null,null,null,"CT003","HARTFORD HOUSING AUTHORITY",76.89,71.75]
[null,null,null,null,null,"CT004","HSG AUTH OF CITY OF NEW HAVEN",84.75,79.099999999999994]
[null,null,null,null,null,"CT005","NEW BRITAIN HOUSING AUTHORITY",76.89,71.75]
[null,null,null,null,null,"CT006","WATERBURY HOUSING AUTHORITY",69.2,64.58]
[null,null,null,null,null,"CT007","STAMFORD HOUSING AUTHORITY",87.44,81.62]
[null,null,null,null,null,"CT008","ENFIELD HSG AUTHORITY",76.89,71.75]
[null,null,null,null,null,"CT009","MIDDLETOWN HOUSING AUTHORITY",76.89,71.75]
[null,null,null,null,null,"CT010","WILLIMANTIC HOUSING AUTHORITY",62.22,58.07]
[null,null,null,null,null,"CT011","MERIDEN HOUSING AUTHORITY",84.75,79.099999999999994]
[null,null,null,null,null,"CT013","EAST HARTFORD HOUSING AUTHORITY",76.89,71.75]
[null,null,null,null,null,"CT015","ANSONIA HOUSING AUTHORITY",81.569999999999993,76.14]
[null,null,null,null,null,"CT017","DERBY H A",81.569999999999993,76.14]
[null,null,null,null,null,"CT018","NORWICH HOUSING AUTHORITY",75.48,70.45]
[null,null,null,null,null,"CT019","GREENWICH HOUSING AUTHORITY",87.44,81.62]
[null,null,null,null,null,"CT020","DANBURY HOUSING AUTHORITY",87.44,81.62]
[null,null,null,null,null,"CT022","NEW LONDON HOUSING AUTHORITY",75.48,70.45]
[null,null,null,null,null,"CT023","BRISTOL HOUSING AUTHORITY",76.89,71.75]
[null,null,null,null,null,"CT024","PUTNAM HOUSING AUTHORITY",62.22,58.07]
[null,null,null,null,null,"CT025","WINCHESTER HOUSING AUTHORITY",67.069999999999993,62.6]
[null,null,null,null,null,"CT026","MANCHESTER H A",76.89,71.75]
[null,null,null,null,null,"CT027","STRATFORD HOUSING AUTHORITY",81.569999999999993,76.14]
[null,null,null,null,null,"CT028","ROCKVILLE HOUSING AUTHORITY",76.89,71.75]
[null,null,null,null,null,"CT029","WEST HAVEN HOUSING AUTHORITY",84.75,79.099999999999994]
[null,null,null,null,null,"CT030","MILFORD HOUSING AUTHORITY",81.569999999999993,76.14]
[null,null,null,null,null,"CT031","TORRINGTON HOUSING AUTHORITY",67.069999999999993,62.6]
[null,null,null,null,null,"CT032","WINDSOR LOCKS HOUSING AUTHORITY",76.89,71.75]
[null,null,null,null,null,"CT033","SOUTH WINDSOR HSG AUTHORITY",76.89,71.75]
[null,null,null,null,null,"CT036","PORTLAND HOUSING AUTHORITY",76.89,71.75]
[null,null,null,null,null,"CT038","MANSFIELD H A",76.89,71.75]
[null,null,null,null,null,"CT039","WEST HARTFORD HOUSING AUTHORITY",76.89,71.75]
[null,null,null,null,null,"CT040","GLASTONBURY HOUSING AUTHORITY",76.89,71.75]
[null,null,null,null,null,"CT041","FARMINGTON H A",76.89,71.75]
[null,null,null,null,null,"CT042","HAMDEN H A",84.75,79.099999999999994]
[null,null,null,null,null,"CT047","NAUGATUCK HOUSING AUTHORITY",69.2,64.58]
[null,null,null,null,null,"CT048","WINDSOR H A",76.89,71.75]
[null,null,null,null,null,"CT049","NEWINGTON H A",76.89,71.75]
[null,null,null,null,null,"CT051","CITY OF HARTFORD",76.89,71.75]
[null,null,null,null,null,"CT052","FAIRFIELD HSG AUTHORITY",81.569999999999993,76.14]
[null,null,null,null,null,"CT053","WETHERSFIELD H A",76.89,71.75]
[null,null,null,null,null,"CT058","PLAINFIELD H A",62.22,58.07]
[null,null,null,null,null,"CT061","KILLINGLY HSG AUTHORITY",62.22,58.07]
[null,null,null,null,null,"CT063","EAST HAVEN HSG AUTHORITY",84.75,79.099999999999994]
[null,null,null,null,null,"CT067","WALLINGFORD HSG AUTHORITY",84.75,79.099999999999994]
[null,null,null,null,null,"CT068","CANTON HOUSING AUTHORITY",76.89,71.75]
[null,null,null,null,null,"CT901","CONN DEPT OF SOCIAL SERVICES",87.44,81.62]
[null,null,null,null,null,"DC001","D.C  HOUSING AUTHORITY",100.59,93.89]
[null,null,null,null,null,"DC880","COMMUNITY CONNECTIONS",100.59,93.89]
[null,null,null,null,null,"DE001","WILMINGTON HOUSING AUTHORITY",73.739999999999995,68.83]
[null,null,null,null,null,"DE002","DOVER HOUSING AUTHORITY",70.84,66.12]
[null,null,null,null,null,"DE003","NEWARK HOUSING AUTHORITY",73.739999999999995,68.83]
[null,null,null,null,null,"DE005","NEW CASTLE COUNTY",73.739999999999995,68.83]
[null,null,null,null,null,"DE901","DELAWARE STATE HOUSING AUTHORITY",70.84,66.12]
[null,null,null,null,null,"FL001","HOUSING AUTHORITY OF JACKSONVILLE",64.86,60.54]
[null,null,null,null,null,"FL002","ST. PETERSBURG H/A",68.48,63.9]
[null,null,null,null,null,"FL003","HA TAMPA",68.48,63.9]
[null,null,null,null,null,"FL004","ORLANDO H/A",71.52,66.739999999999995]
[null,null,null,null,null,"FL005","MIAMI DADE HOUSING AUTHORITY",92.92,86.73]
[null,null,null,null,null,"FL007","HA DAYTONA BEACH",68.64,64.069999999999993]
[null,null,null,null,null,"FL008","HA SARASOTA",75.150000000000006,70.14]
[null,null,null,null,null,"FL009","HA WEST PALM BEACH GENERAL FUND",72.56,67.72]
[null,null,null,null,null,"FL010","HA FORT LAUDERDALE CITY",87,81.2]
[null,null,null,null,null,"FL011","CITY OF LAKELAND H/A",56.99,53.19]
[null,null,null,null,null,"FL012","HA AVON PARK",55.38,51.69]
[null,null,null,null,null,"FL013","KEY WEST H/A",95.22,88.89]
[null,null,null,null,null,"FL015","NW FLORIDA REGIONAL HA",60.94,56.88]
[null,null,null,null,null,"FL016","HA SANFORD",71.52,66.739999999999995]
[null,null,null,null,null,"FL017","HA MIAMI BEACH",92.92,86.73]
[null,null,null,null,null,"FL018","PANAMA CITY HSG AUTH",55.38,51.69]
[null,null,null,null,null,"FL019","HA COCOA",66.02,61.63]
[null,null,null,null,null,"FL020","HA BREVARD COUNTY",66.02,61.63]
[null,null,null,null,null,"FL021","HA PAHOKEE INC",72.56,67.72]
[null,null,null,null,null,"FL022","HA NEW SMYRNA BEACH",68.64,64.069999999999993]
[null,null,null,null,null,"FL023","BRADENTON HOUSING AUTHORITY",75.150000000000006,70.14]
[null,null,null,null,null,"FL024","ORMOND BEACH HSG AUTH",68.64,64.069999999999993]
[null,null,null,null,null,"FL025","HA OF THE CITY OF TITUSVILLE",66.02,61.63]
[null,null,null,null,null,"FL026","HA BARTOW",56.99,53.19]
[null,null,null,null,null,"FL028","HA POMPANO BEACH",87,81.2]
[null,null,null,null,null,"FL030","FLAGLER COUNTY HOUSING AUTHORITY",68.64,64.069999999999993]
[null,null,null,null,null,"FL031","HA MARIANNA",55.38,51.69]
[null,null,null,null,null,"FL032","HA OCALA",56.12,52.37]
[null,null,null,null,null,"FL033","SEMINOLE COUNTY HA",71.52,66.739999999999995]
[null,null,null,null,null,"FL034","HA PLANT CITY",68.48,63.9]
[null,null,null,null,null,"FL035","HA SPRINGFIELD",55.38,51.69]
[null,null,null,null,null,"FL037","HA FERNANDINA BEACH",64.86,60.54]
[null,null,null,null,null,"FL041","HA FORT PIERCE",72.95,68.09]
[null,null,null,null,null,"FL045","HA STUART",72.95,68.09]
[null,null,null,null,null,"FL046","CRESTVIEW HOUSING AUTHORITY",55.38,51.69]
[null,null,null,null,null,"FL047","HA OF THE CITY OF FORT MYERS",71.989999999999995,67.2]
[null,null,null,null,null,"FL049","HA LEVY COUNTY",55.38,51.69]
[null,null,null,null,null,"FL053","MILTON HOUSING AUTHORITY",56.12,52.37]
[null,null,null,null,null,"FL057","HA PALATKA",55.38,51.69]
[null,null,null,null,null,"FL060","HA PUNTA GORDA",70.11,65.430000000000007]
[null,null,null,null,null,"FL062","PINELLAS COUNTY H/A",68.48,63.9]
[null,null,null,null,null,"FL063","GAINESVILLE HOUSING AUTHORITY",61.53,57.43]
[null,null,null,null,null,"FL066","HIALEAH H/A",92.92,86.73]
[null,null,null,null,null,"FL068","H/A CITY OF HOMESTEAD",92.92,86.73]
[null,null,null,null,null,"FL069","FORT WALTON BEACH H/A",55.38,51.69]
[null,null,null,null,null,"FL070","HA ALACHUA COUNTY",61.53,57.43]
[null,null,null,null,null,"FL071","HA LAKE WALES",56.99,53.19]
[null,null,null,null,null,"FL072","HA DELAND",68.64,64.069999999999993]
[null,null,null,null,null,"FL073","HA TALLAHASSEE",60.94,56.88]
[null,null,null,null,null,"FL075","CLEARWATER H/A",68.48,63.9]
[null,null,null,null,null,"FL076","HA RIVIERA BEACH",72.56,67.72]
[null,null,null,null,null,"FL079","BROWARD COUNTY HOUSING AUTHORITY",87,81.2]
[null,null,null,null,null,"FL080","HA PALM BEACH COUNTY",72.56,67.72]
[null,null,null,null,null,"FL081","HA DEERFIELD BEACH",87,81.2]
[null,null,null,null,null,"FL083","HA DELRAY BEACH",72.56,67.72]
[null,null,null,null,null,"FL089","HILLSBOROUGH COUNTY-BOCC",68.48,63.9]
[null,null,null,null,null,"FL091","CITY OF FORT MYERS",71.989999999999995,67.2]
[null,null,null,null,null,"FL092","CITY OF PENSACOLA  SECTION 8",56.12,52.37]
[null,null,null,null,null,"FL093","ORANGE CO  SECTION 8",71.52,66.739999999999995]
[null,null,null,null,null,"FL096","WAKULLA CO SECTION 8 HOUSING",55.38,51.69]
[null,null,null,null,null,"FL098","CITY OF GREEN COVE SPRINGS SEC 8",64.86,60.54]
[null,null,null,null,null,"FL101","CITY OF BRADENTON",75.150000000000006,70.14]
[null,null,null,null,null,"FL102","BAKER CO HSG ASSIST PROGRAM",55.38,51.69]
[null,null,null,null,null,"FL104","PASCO COUNTY HOUSING AUTHORITY",68.48,63.9]
[null,null,null,null,null,"FL105","HA MANATEE COUNTY",75.150000000000006,70.14]
[null,null,null,null,null,"FL106","LAKE CO. HOUSING AGENCY",71.52,66.739999999999995]
[null,null,null,null,null,"FL107","CITY OF HAINES CITY",56.99,53.19]
[null,null,null,null,null,"FL108","HOLMES COUNTY COMMISSIONERS",55.38,51.69]
[null,null,null,null,null,"FL109","TRI-COUNTY COMMUNITY COUNCIL",55.38,51.69]
[null,null,null,null,null,"FL110","WALTON COUNTY HOUSING",55.38,51.69]
[null,null,null,null,null,"FL111","SARASOTA OFFICE OF HOUSING AND COMMUNITY DEVEL",75.150000000000006,70.14]
[null,null,null,null,null,"FL113","VOLUSIA COUNTY SECTION 8",68.64,64.069999999999993]
[null,null,null,null,null,"FL116","DANIA HA",87,81.2]
[null,null,null,null,null,"FL117","SUMTER COUNTY HOUSING SERVICES",55.38,51.69]
[null,null,null,null,null,"FL119","HA BOCA RATON",72.56,67.72]
[null,null,null,null,null,"FL123","HENDRY CO PUBLIC H/A",69.88,65.22]
[null,null,null,null,null,"FL128","LEE COUNTY HOUSING AUTHORITY",71.989999999999995,67.2]
[null,null,null,null,null,"FL132","INDIAN RIVER CO BD OF CO COMM",72.680000000000007,67.849999999999994]
[null,null,null,null,null,"FL136","HA HOLLYWOOD",87,81.2]
[null,null,null,null,null,"FL137","HERNANDO COUNTY HOUSING AUTHOR",68.48,63.9]
[null,null,null,null,null,"FL139","HA WINTER HAVEN",56.99,53.19]
[null,null,null,null,null,"FL140","JEFFERSON CO SEC 8 HSG",60.94,56.88]
[null,null,null,null,null,"FL141","COLLIER COUNTY HA",74.92,69.92]
[null,null,null,null,null,"FL143","HOUSING & NEIGHBORHOOD DEVELOP",56.99,53.19]
[null,null,null,null,null,"FL144","MONROE CO HA",95.22,88.89]
[null,null,null,null,null,"FL145","CITY OF MIAMI, DEPT. OF COMMUNITY DEVELOPMENT",92.92,86.73]
[null,null,null,null,null,"FL147","CITRUS COUNTY HOUSING SERVICES",55.38,51.69]
[null,null,null,null,null,"FL201","OSCEOLA COUNTY BOARD OF COUNTY COMMISSIONERS",71.52,66.739999999999995]
[null,null,null,null,null,"FL202","HOLMES COUNTY  ",55.38,51.69]
[null,null,null,null,null,"FL880","HOUSING PARTNERSHIP, INC",72.56,67.72]
[null,null,null,null,null,"FL881","CARFOUR SUPPORTIVE HOUSING",92.92,86.73]
[null,null,null,null,null,"FL888","BOLEY CENTERS",68.48,63.9]
[null,null,null,null,null,"GA001","HA AUGUSTA",56.44,52.68]
[null,null,null,null,null,"GA002","HA SAVANNAH",56.44,52.68]
[null,null,null,null,null,"GA004","HA COLUMBUS GA GEN FUND ACCT CONSL",56.74,52.96]
[null,null,null,null,null,"GA006","HA ATLANTA GA",73.849999999999994,68.92]
[null,null,null,null,null,"GA007","HA MACON",56.44,52.68]
[null,null,null,null,null,"GA009","HA  OF THE CITY OF BRUNSWICK",56.44,52.68]
[null,null,null,null,null,"GA010","HA MARIETTA",73.849999999999994,68.92]
[null,null,null,null,null,"GA011","HA DECATUR",73.849999999999994,68.92]
[null,null,null,null,null,"GA023","ALBANY HOUSING AUTHORITY",56.44,52.68]
[null,null,null,null,null,"GA062","HA AMERICUS",56.44,52.68]
[null,null,null,null,null,"GA078","EAST POINT",73.849999999999994,68.92]
[null,null,null,null,null,"GA095","HOUSING  AUTHORITY OF  NEWNAN",73.849999999999994,68.92]
[null,null,null,null,null,"GA116","H A CARROLLTON",73.849999999999994,68.92]
[null,null,null,null,null,"GA188","HA LITHONIA",73.849999999999994,68.92]
[null,null,null,null,null,"GA228","HA  CITY OF JONESBORO",73.849999999999994,68.92]
[null,null,null,null,null,"GA232","HOUSING AUTHORITY OF THE CITY OF COLLEGE PARK",73.849999999999994,68.92]
[null,null,null,null,null,"GA237","H/A DEKALB COUNTY",73.849999999999994,68.92]
[null,null,null,null,null,"GA264","HA FULTON COUNTY",73.849999999999994,68.92]
[null,null,null,null,null,"GA266","CITY OF MARIETTA",73.849999999999994,68.92]
[null,null,null,null,null,"GA269","CITY OF ATLANTA, BUREAU OF HSG",73.849999999999994,68.92]
[null,null,null,null,null,"GA285","NORTHWEST GEORGIA",56.44,52.68]
[null,null,null,null,null,"GA901","GEORGIA DEPARTMENT OF COMMUNITY AFFAIRS",73.849999999999994,68.92]
[null,null,null,null,null,"GQ901","GUAM",96.21,89.8]
[null,null,null,null,null,"HI002","COUNTY OF HAWAII",89.58,83.6]
[null,null,null,null,null,"HI003","CITY AND COUNTY OF HONOLULU",98.3,91.76]
[null,null,null,null,null,"HI004","COUNTY OF MAUI",100.89,94.17]
[null,null,null,null,null,"HI005","COUNTY OF KAUAI",100.89,94.17]
[null,null,null,null,null,"HI901","HAWAII HSG  AND COMM DEV CORP",98.3,91.76]
[null,null,null,null,null,"IA002","CHARLES CITY HOUSING AND REDEVELOPMENT AUTHORITY",53.43,49.87]
[null,null,null,null,null,"IA004","OTTUMWA HOUSING AUTHORITY",56.17,52.43]
[null,null,null,null,null,"IA015","BURLINGTON LOW RENT HOUSING AGENCY",53.43,49.87]
[null,null,null,null,null,"IA018","SIOUX CITY HOUSING SERVICES DIVISION",57.02,53.23]
[null,null,null,null,null,"IA020","CITY OF DES MOINES MUNICIPAL HOUSING AGENCY",65.17,60.83]
[null,null,null,null,null,"IA021","MANNING LOW RENT HOUSNG AGENCY",53.43,49.87]
[null,null,null,null,null,"IA022","CITY OF IOWA CITY",66.42,62]
[null,null,null,null,null,"IA023","COUNCIL BLUFFS MUNICIPAL HOUSING AGENCY",57.51,53.68]
[null,null,null,null,null,"IA024","CITY OF CEDAR RAPIDS",63.09,58.89]
[null,null,null,null,null,"IA030","KEOKUK LOW RENT HOUSING AGENCY",53.43,49.87]
[null,null,null,null,null,"IA038","EVANSDALE MUNICIPAL HOUSING AUTH",63.34,59.12]
[null,null,null,null,null,"IA042","MUNICIPAL HOUSING AGENCY",53.43,49.87]
[null,null,null,null,null,"IA045","CITY OF DAVENPORT, IOWA",61.41,57.32]
[null,null,null,null,null,"IA047","FT MADISON HSG AUTH",53.43,49.87]
[null,null,null,null,null,"IA049","CITY OF MUSCATINE HOUSING AUTHORITY",53.43,49.87]
[null,null,null,null,null,"IA050","WATERLOO HOUSING AUTHORITY",63.34,59.12]
[null,null,null,null,null,"IA054","LRHA OF DECORAH IOWA",53.43,49.87]
[null,null,null,null,null,"IA056","EMMETSBURG LOW RENT HOUSING",53.43,49.87]
[null,null,null,null,null,"IA057","SPIRIT LAKE LOW RENT HSG AGENCY",53.43,49.87]
[null,null,null,null,null,"IA084","GRINNELL LOW RENT HOUSING AUTHORITY",53.43,49.87]
[null,null,null,null,null,"IA087","DUBUQUE DEPT OF HUMAN RIGHTS",58.39,54.5]
[null,null,null,null,null,"IA089","CITY OF AMES DEPT. OF PLANNING & HS",57.53,53.69]
[null,null,null,null,null,"IA098","CITY OF CLINTON, IOWA HOUSING AUTHORITY",56.29,52.54]
[null,null,null,null,null,"IA100","OSKALOOSA MUNICIPAL PHA",53.43,49.87]
[null,null,null,null,null,"IA107","FORT DODGE HOUSING AGENCY",53.43,49.87]
[null,null,null,null,null,"IA108","CITY OF MASON CITY",53.43,49.87]
[null,null,null,null,null,"IA113","CITY OF CEDAR FALLS, IOWA",63.34,59.12]
[null,null,null,null,null,"IA114","ALBIA LOW RENT HOUSING AGENCY",53.43,49.87]
[null,null,null,null,null,"IA117","SOUTHERN IOWA REG HSG AUTHORITY",57.51,53.68]
[null,null,null,null,null,"IA119","KNOXVILLE LOW RENT HOUSING AGENCY",53.43,49.87]
[null,null,null,null,null,"IA120","WARREN COUNTY HOUSING AUTH",65.17,60.83]
[null,null,null,null,null,"IA121","NEW HAMPTON MUNICIPAL HOUSING AGCY",53.43,49.87]
[null,null,null,null,null,"IA122","REGIONAL HSG AUTH - VOUCHER XII",53.43,49.87]
[null,null,null,null,null,"IA123","BETTENDORF HOUSING AUTHORITY",61.41,57.32]
[null,null,null,null,null,"IA124","AREA XV MULTI-COUNTY HOUSING AGENCY",56.17,52.43]
[null,null,null,null,null,"IA125","MARSHALLTOWN LRHA",53.43,49.87]
[null,null,null,null,null,"IA126","EASTERN IOWA REGIONAL HOUSING AUTH",58.39,54.5]
[null,null,null,null,null,"IA127","NORTH IOWA REGIONAL HOUSING AUTH",53.43,49.87]
[null,null,null,null,null,"IA128","SOUTHEAST IOWA REGIONAL HSG AUTH",53.43,49.87]
[null,null,null,null,null,"IA129","NORTHWEST IOWA  REGIONAL  HA",53.43,49.87]
[null,null,null,null,null,"IA130","UPPER EXPLORERLAND REGIONAL",53.43,49.87]
[null,null,null,null,null,"IA131","CENTRAL IOWA REGIONAL HOUSING AUTH",65.17,60.83]
[null,null,null,null,null,"IA132","IOWA NORTHLAND REGIONAL HSG AUTH",63.34,59.12]
[null,null,null,null,null,"IA133","MID IOWA REGIONAL HOUSING AUTHORITY",53.43,49.87]
[null,null,null,null,null,"IA136","SIOUXLAND REGIONAL HOUSING AUTH",57.02,53.23]
[null,null,null,null,null,"ID005","HOUSING AUTHORITY OF THE CITY OF POCATELLO",57.81,53.96]
[null,null,null,null,null,"ID013","BOISE CITY HOUSING AUTHORITY",71.84,67.05]
[null,null,null,null,null,"ID016","SOUTHWESTERN IDAHO COOPERATIVE HOUSING AUTHORITY",71.84,67.05]
[null,null,null,null,null,"ID021","ADA COUNTY HOUSING AUTHORITY",71.84,67.05]
[null,null,null,null,null,"ID901","IDAHO HOUSING AND FINANCE ASSOCIATION",62.52,58.36]
[null,null,null,null,null,"IL001","EAST ST. LOUIS",57.81,53.95]
[null,null,null,null,null,"IL002","CHICAGO HOUSING AUTHORITY",81.31,75.88]
[null,null,null,null,null,"IL003","PEORIA HOUSING AUTHORITY",64.2,59.92]
[null,null,null,null,null,"IL004","SPRINGFIELD HOUSING AUTHORITY",58.51,54.6]
[null,null,null,null,null,"IL006","CHAMPAIGN COUNTY HOUSING AUTHORITY",57.3,53.49]
[null,null,null,null,null,"IL009","HOUSING AUTHORITY OF HENRY COUNTY",61.41,57.32]
[null,null,null,null,null,"IL010","GREATER METROPOLITAN AREA HSG OF ROCK ISLAND",61.41,57.32]
[null,null,null,null,null,"IL011","CITY OF DANVILLE HOUSING AUTHORITY",52.32,48.83]
[null,null,null,null,null,"IL012","DECATUR HOUSING AUTHORITY",55.36,51.67]
[null,null,null,null,null,"IL014","HSG AUTHORITY FOR LASALLE COUNTY",62.58,58.41]
[null,null,null,null,null,"IL015","MADISON HA",57.81,53.95]
[null,null,null,null,null,"IL016","QUINCY HOUSING AUTHORITY",52.32,48.83]
[null,null,null,null,null,"IL018","HOUSING AUTH.CITY OF ROCK ISLAND",61.41,57.32]
[null,null,null,null,null,"IL020","MOLINE HA",61.41,57.32]
[null,null,null,null,null,"IL022","ROCKFORD HOUSING AUTHORITY",58.39,54.49]
[null,null,null,null,null,"IL024","HOUSING AUTHORITY OF JOLIET",81.31,75.88]
[null,null,null,null,null,"IL025","HOUSING AUTHORITY OF COOK COUNTY",81.31,75.88]
[null,null,null,null,null,"IL026","WAUKEGAN HOUSING AUTHORITY",81.31,75.88]
[null,null,null,null,null,"IL028","MENARD COUNTY HOUSING AUTHORITY",58.51,54.6]
[null,null,null,null,null,"IL029","FREEPORT HOUSING AUTHORITY",52.32,48.83]
[null,null,null,null,null,"IL030","ST CLAIR COUNTY HA",57.81,53.95]
[null,null,null,null,null,"IL032","WHITESIDE COUNTY HOUSING AUTHORITY",62.58,58.41]
[null,null,null,null,null,"IL034","FORD CTY HA",57.3,53.49]
[null,null,null,null,null,"IL035","LEE COUNTY HOUSING AUTHORITY",62.58,58.41]
[null,null,null,null,null,"IL036","VERMILION COUNTY HOUSING AUTHORITY",52.32,48.83]
[null,null,null,null,null,"IL037","MONTGOMERY COUNTY HOUSING AUTHORITY",52.32,48.83]
[null,null,null,null,null,"IL038","CHRISTIAN CTY HA",52.32,48.83]
[null,null,null,null,null,"IL039","KANKAKEE COUNTY HOUSING AUTHORITY",55.47,51.78]
[null,null,null,null,null,"IL040","LOGAN COUNTY HOUSING AUTHORITY",52.32,48.83]
[null,null,null,null,null,"IL042","MASON COUNTY HOUSING AUTHORITY",52.32,48.83]
[null,null,null,null,null,"IL043","SALINE COUNTY HOUSING AUTHORITY",52.32,48.83]
[null,null,null,null,null,"IL050","WILLIAMSON COUNTY HSG AUTHORITY",52.94,49.4]
[null,null,null,null,null,"IL051","HA BLOOMINGTON",57.1,53.3]
[null,null,null,null,null,"IL052","HA RANDOLPH COUNTY",52.32,48.83]
[null,null,null,null,null,"IL053","JACKSON COUNTY HOUSING AUTHORITY",52.94,49.4]
[null,null,null,null,null,"IL054","MAYWOOD HOUSING AUTHORITY",81.31,75.88]
[null,null,null,null,null,"IL056","HSG AUTHORITY OF THE COUNTY OF LAKE",81.31,75.88]
[null,null,null,null,null,"IL057","MARION COUNTY HOUSING AUTHORITY",52.32,48.83]
[null,null,null,null,null,"IL059","HOUSING AUTHORITY OF JEFFERSON COUNTY",52.32,48.83]
[null,null,null,null,null,"IL061","FRANKLIN COUNTY HOUSING AUTHORITY",52.94,49.4]
[null,null,null,null,null,"IL069","CLARK COUNTY HOUSING AUTHORITY",52.32,48.83]
[null,null,null,null,null,"IL070","HOUSING AUTHORITY OF THE COUNTY OF CUMBERLAND",52.32,48.83]
[null,null,null,null,null,"IL074","HOUSING AUTHORITY OF THE COUNTY OF JERSEY",57.81,53.95]
[null,null,null,null,null,"IL076","MCDONOUGH COUNTY HOUSING AUTHORITY",52.32,48.83]
[null,null,null,null,null,"IL079","MORGAN COUNTY HOUSING AUTHORITY",52.32,48.83]
[null,null,null,null,null,"IL082","HSG AUTH OF THE COUNTY OF JO DAVIESS",52.32,48.83]
[null,null,null,null,null,"IL083","WINNEBAGO COUNTY HOUSING AUTHORITY",58.39,54.49]
[null,null,null,null,null,"IL084","FULTON COUNTY HOUSING AUTHORITY",55.49,51.79]
[null,null,null,null,null,"IL085","KNOX COUNTY HOUSING AUTHORITY",53.41,49.86]
[null,null,null,null,null,"IL086","BUREAU CTY HOUSING AUTHORITY",55.49,51.79]
[null,null,null,null,null,"IL087","HSG AUTHORITY OF THE COUNTY OF SHELBY",52.32,48.83]
[null,null,null,null,null,"IL088","WAYNE COUNTY HSG AUTHORITY",52.32,48.83]
[null,null,null,null,null,"IL089","HSG AUTHORITY OF THE COUNTY OF DEKALB",64.44,60.14]
[null,null,null,null,null,"IL090","AURORA  HOUSING AUTHORITY",81.31,75.88]
[null,null,null,null,null,"IL091","WARREN COUNTY HOUSING AUTHORITY",52.32,48.83]
[null,null,null,null,null,"IL092","ELGIN HA",81.31,75.88]
[null,null,null,null,null,"IL094","LIVINGSTON COUNTY HOUSING AUTHORITY",52.32,48.83]
[null,null,null,null,null,"IL095","OGLE COUNTY HOUSING AUTHORITY",61.36,57.27]
[null,null,null,null,null,"IL096","RICHLAND HA",52.32,48.83]
[null,null,null,null,null,"IL101","DUPAGE COUNTY HOUSING AUTHORITY",81.31,75.88]
[null,null,null,null,null,"IL103","OAK PARK HOUSING AUTHORITY",81.31,75.88]
[null,null,null,null,null,"IL104","WOODFORD COUNTY HOUSING AUTHORITY",64.2,59.92]
[null,null,null,null,null,"IL107","CITY OF N CHICAGO HOUSING AUTHORITY",81.31,75.88]
[null,null,null,null,null,"IL115","HENDERSON COUNTY HOUSING AUTHORITY",52.32,48.83]
[null,null,null,null,null,"IL116","MCHENRY COUNTY HOUSING AUTHORITY",81.31,75.88]
[null,null,null,null,null,"IL117","MCLEAN COUNTY HA",57.1,53.3]
[null,null,null,null,null,"IL120","EDGAR COUNTY HOUSING AUTHORITY",52.32,48.83]
[null,null,null,null,null,"IL122","BOONE COUNTY HOUSING AUTHORITY",58.39,54.49]
[null,null,null,null,null,"IL123","HSG AUTHORITY OF THE CITY OF MOUNT VERNON",52.32,48.83]
[null,null,null,null,null,"IL124","EAST PEORIA HOUSING AUTHORITY",64.2,59.92]
[null,null,null,null,null,"IL126","HSG AUTH OF THE CITY OF MARIOIN",52.94,49.4]
[null,null,null,null,null,"IL130","CICERO HOUSING AUTHORITY",81.31,75.88]
[null,null,null,null,null,"IL131","MERCER COUNTY HOUSING AUTHORITY",61.41,57.32]
[null,null,null,null,null,"IL136","HOUSING AUTHORITY OF PARK FOREST",81.31,75.88]
[null,null,null,null,null,"IL137","KENDALL COUNTY HSG AUTH",82.01,76.53]
[null,null,null,null,null,"IL901","ILLINOIS HOUSING DEV AUTH       ",81.31,75.88]
[null,null,null,null,null,"IL911","STATE OF ILLINOIS DEPT OF COMMERCE & COMM AFFAIRS",52.32,48.83]
[null,null,null,null,null,"IN002","VINCENNES HA",47.11,43.97]
[null,null,null,null,null,"IN003","FORT WAYNE HA-CITY OF FORT WAYNE",50.93,47.55]
[null,null,null,null,null,"IN004","HA DELAWARE COUNTY",47.45,44.28]
[null,null,null,null,null,"IN005","MUNCIE HA",47.45,44.28]
[null,null,null,null,null,"IN006","ANDERSON HA",56.31,52.56]
[null,null,null,null,null,"IN007","HA KOKOMO",49.54,46.25]
[null,null,null,null,null,"IN009","RICHMOND HA",47.11,43.97]
[null,null,null,null,null,"IN010","HAMMOND HA",62.18,58.04]
[null,null,null,null,null,"IN011","GARY HA",62.18,58.04]
[null,null,null,null,null,"IN012","HA NEW ALBANY",52.45,48.95]
[null,null,null,null,null,"IN015","SOUTH BEND HA",50.14,46.8]
[null,null,null,null,null,"IN016","HA CITY OF EVANSVILLE",49.59,46.28]
[null,null,null,null,null,"IN017","INDIANAPOLIS HOUSING AGENCY",56.31,52.56]
[null,null,null,null,null,"IN018","TELL CITY HA",47.11,43.97]
[null,null,null,null,null,"IN019","MICHIGAN CITY HA",49.12,45.83]
[null,null,null,null,null,"IN020","HOUSING AUTH CITY OF MISHAWAKA",50.14,46.8]
[null,null,null,null,null,"IN021","TERRE HAUTE HOUSING AUTHORITY",47.45,44.28]
[null,null,null,null,null,"IN022","BLOOMINGTON HOUSING AUTHORITY",50.48,47.12]
[null,null,null,null,null,"IN023","HOUSING AUTH. CITY OF JEFFERSONVILL",52.45,48.95]
[null,null,null,null,null,"IN025","HA CHARLESTOWN",52.45,48.95]
[null,null,null,null,null,"IN026","HOUSING AUTHORITY CITY OF ELKHART",49.22,45.94]
[null,null,null,null,null,"IN029","EAST CHICAGO HA",62.18,58.04]
[null,null,null,null,null,"IN031","BEDFORD CITY HA",47.11,43.97]
[null,null,null,null,null,"IN032","BLOOMFIELD HA",47.45,44.28]
[null,null,null,null,null,"IN034","HOUSING AUTHORITY CITY OF SULLIVAN",47.45,44.28]
[null,null,null,null,null,"IN035","BRAZIL IN HA",47.45,44.28]
[null,null,null,null,null,"IN036","KENDALLVILLE HA",47.11,43.97]
[null,null,null,null,null,"IN037","MT. VERNON HA",49.59,46.28]
[null,null,null,null,null,"IN041","MARION HOUSING AUTHORITY",47.11,43.97]
[null,null,null,null,null,"IN043","CANNELTON HOUSING AUTHORITY",47.11,43.97]
[null,null,null,null,null,"IN047","CRAWFORDSVILLE HOUSING AUTHORITY",47.11,43.97]
[null,null,null,null,null,"IN048","ROCKVILLE HSG AUTH",47.11,43.97]
[null,null,null,null,null,"IN050","HA NEW CASTLE",47.11,43.97]
[null,null,null,null,null,"IN055","HA LINTON",47.45,44.28]
[null,null,null,null,null,"IN056","SEYMOUR HOUSING AUTHORITY",49.31,46.02]
[null,null,null,null,null,"IN058","HA COLUMBUS",51.39,47.98]
[null,null,null,null,null,"IN060","WARSAW HOUSING AUTHORITY",47.11,43.97]
[null,null,null,null,null,"IN062","DECATUR HOUSING AUTHORITY",50.57,47.21]
[null,null,null,null,null,"IN067","HOUSING AUTHORITY OF KNOX COUNTY",47.11,43.97]
[null,null,null,null,null,"IN069","FULTON CO. HSG AUTH",47.11,43.97]
[null,null,null,null,null,"IN070","PHA OF FRANKLIN COUNTY",60.17,56.15]
[null,null,null,null,null,"IN071","HA FOR THE CITY OF LAFAYETTE",54.39,50.76]
[null,null,null,null,null,"IN073","FAYETTE COUNTY HA",47.11,43.97]
[null,null,null,null,null,"IN077","JASONVILLE HOUSING AUTHORITY",47.45,44.28]
[null,null,null,null,null,"IN078","GREENSBURG HOUSING AUTHORITY",49.31,46.02]
[null,null,null,null,null,"IN079","ELWOOD HSG AUTH",56.31,52.56]
[null,null,null,null,null,"IN080","NOBLESVILLE HOUSING AUTHORITY",56.31,52.56]
[null,null,null,null,null,"IN083","SELLERSBURG HA",52.45,48.95]
[null,null,null,null,null,"IN084","PORTLAND HSG AUTH",47.11,43.97]
[null,null,null,null,null,"IN086","UNION CITY HA",47.11,43.97]
[null,null,null,null,null,"IN089","ROME CITY HA",47.11,43.97]
[null,null,null,null,null,"IN091","HA PERU",47.11,43.97]
[null,null,null,null,null,"IN092","LOGANSPORT HOUSING AUTHORITY",47.11,43.97]
[null,null,null,null,null,"IN094","GREENCASTLE HOUSING AUTHORITY",47.56,44.39]
[null,null,null,null,null,"IN100","ST. JOSEPH COUNTY HOUSING AUTHORITY",50.14,46.8]
[null,null,null,null,null,"IN101","GOSHEN HOUSING AUTHORITY",49.22,45.94]
[null,null,null,null,null,"IN103","MARSHALL CO. HOUSING AUTHORITY",47.11,43.97]
[null,null,null,null,null,"IN901","DIVISION OF FAMILY AND CHILDREN",62.18,58.04]
[null,null,null,null,null,"KS001","KANSAS CITY HOUSING AUTHORITY",56.2,52.45]
[null,null,null,null,null,"KS002","TOPEKA HOUSING AUTHORITY",53.7,50.12]
[null,null,null,null,null,"KS004","WICHITA HOUSING AUTHORITY",57.85,53.99]
[null,null,null,null,null,"KS006","DODGE CITY HOUSING AUTHORITY",48.66,45.42]
[null,null,null,null,null,"KS017","ATCHISON HOUSING AUTHORITY",48.66,45.42]
[null,null,null,null,null,"KS038","SALINA HOUSING AUTHORITY",48.66,45.42]
[null,null,null,null,null,"KS041","GREAT BEND HOUSING AUTHORITY",48.66,45.42]
[null,null,null,null,null,"KS043","OLATHE HOUSING AUTHORITY",56.2,52.45]
[null,null,null,null,null,"KS053","LAWRENCE- DOUGLAS COUNTY HOUSING AUTHORITY",59.34,55.38]
[null,null,null,null,null,"KS062","CHANUTE HOUSING AUTHORITY",48.66,45.42]
[null,null,null,null,null,"KS063","MANHATTAN HOUSING AUTHORITY",49.22,45.94]
[null,null,null,null,null,"KS068","HOUSING AUTHORITY  OF THE CITY OF LEAVENWORTH",56.2,52.45]
[null,null,null,null,null,"KS073","NEWTON HOUSING AUTHORITY",57.85,53.99]
[null,null,null,null,null,"KS091","HAYS HOUSING AUTHORITY",48.66,45.42]
[null,null,null,null,null,"KS105","JUNCTION CITY PUBLIC HOUSING AGENCY",49.22,45.94]
[null,null,null,null,null,"KS149","PITTSBURG PUBLIC HOUSING AUTHORITY",48.66,45.42]
[null,null,null,null,null,"KS159","ECKAN",56.2,52.45]
[null,null,null,null,null,"KS161","SEK-CAP, INC",48.66,45.42]
[null,null,null,null,null,"KS162","JOHNSON COUNTY HOUSING AUTHORITY",56.2,52.45]
[null,null,null,null,null,"KS163","HSG AUTH CITY OF HUTCHINSON KS",48.66,45.42]
[null,null,null,null,null,"KS165","FORD COUNTY HOUSING AUTHORITY",48.66,45.42]
[null,null,null,null,null,"KS166","COWLEY COUNTY PUBLIC HOUSING AUTHORITY",48.66,45.42]
[null,null,null,null,null,"KS167","RILEY COUNTY HOUSING AUTHORITY",49.22,45.94]
[null,null,null,null,null,"KS168","NEK-CAP, INC",48.66,45.42]
[null,null,null,null,null,"KS169","SEDGWICK COUNTY HOUSING AUTHORITY",57.85,53.99]
[null,null,null,null,null,"KS170","ELLIS COUNTY C/O DEVELOPMENTAL SERVICES OF NW KS",48.66,45.42]
[null,null,null,null,null,"KY001","LOUISVILLE HOUSING AUTHORITY",52.45,48.95]
[null,null,null,null,null,"KY003","FRANKFORT HOUSING AUTHORITY",50.51,47.14]
[null,null,null,null,null,"KY004","LEXINGTON FAYETTE URBAN COUNTY HOUSING AUTHORITY",58.09,54.21]
[null,null,null,null,null,"KY007","MADISONVILLE HOUSING AUTHORITY",49.59,46.28]
[null,null,null,null,null,"KY008","SOMERSET HOUSING AUTHORITY",49.59,46.28]
[null,null,null,null,null,"KY009","OWENSBORO HOUSING AUTHORITY",52.45,48.95]
[null,null,null,null,null,"KY011","HOPKINSVILLE HOUSING AUTHORITY",58.1,54.22]
[null,null,null,null,null,"KY012","HENDERSON HOUSING AUTHORITY",49.59,46.28]
[null,null,null,null,null,"KY015","NEWPORT HOUSING AUTHORITY",60.17,56.15]
[null,null,null,null,null,"KY017","MAYSVILLE HOUSING AUTHORITY",49.59,46.28]
[null,null,null,null,null,"KY021","CYNTHIANA HOUSING AUTHORITY",49.59,46.28]
[null,null,null,null,null,"KY022","LEBANON HOUSING AUTHORITY",49.59,46.28]
[null,null,null,null,null,"KY026","HOUSING AUTHORITY OF GLASGOW",49.59,46.28]
[null,null,null,null,null,"KY027","PAINTSVILLE HOUSING AUTHORITY",49.59,46.28]
[null,null,null,null,null,"KY035","PRESTONSBURG HOUSING AUTHORITY",49.59,46.28]
[null,null,null,null,null,"KY040","MAYFIELD HOUSING AUTHORITY",49.59,46.28]
[null,null,null,null,null,"KY047","CAMPBELLSVILLE HOUSING AUTHORITY",49.59,46.28]
[null,null,null,null,null,"KY053","GREENSBURG HOUSING AUTHORITY",49.59,46.28]
[null,null,null,null,null,"KY056","SPRINGFIELD HOUSING AUTHORITY",49.59,46.28]
[null,null,null,null,null,"KY061","GEORGETOWN HOUSING AUTHORITY",58.09,54.21]
[null,null,null,null,null,"KY071","BARDSTOWN HOUSING AUTHORITY",52.45,48.95]
[null,null,null,null,null,"KY086","LAWRENCE COUNTY HOUSING AUTHORITY",49.59,46.28]
[null,null,null,null,null,"KY107","PIKEVILLE HOUSING AUTHORITY",49.59,46.28]
[null,null,null,null,null,"KY121","PIKE COUNTY HOUSING AUTHORITY",49.59,46.28]
[null,null,null,null,null,"KY130","LEXINGTON-FAYETTE COUNTY HOUSING AUTHORITY",58.09,54.21]
[null,null,null,null,null,"KY132","CITY OF RICHMOND SECTION 8 HOUSING",54.91,51.25]
[null,null,null,null,null,"KY133","COVINGTON HOUSING AUTHORITY",60.17,56.15]
[null,null,null,null,null,"KY135","BOONE COUNTY HOUSING AUTHORITY",60.17,56.15]
[null,null,null,null,null,"KY136","CAMPBELL COUNTY HOUSING AUTHORITY",60.17,56.15]
[null,null,null,null,null,"KY137","PADUCAH HOUSING AUTHORITY",49.59,46.28]
[null,null,null,null,null,"KY138","COMMUNITY DEVELOPMENT AGENCY",49.59,46.28]
[null,null,null,null,null,"KY140","PARIS BOURBON COUNTY  HOUSING AUTHORITY",58.09,54.21]
[null,null,null,null,null,"KY141","PINEVILLE/BELL COUNTY HOUSING AUTHORITY",49.59,46.28]
[null,null,null,null,null,"KY142","ASHLAND HOUSING AUTHORITY",51.88,48.43]
[null,null,null,null,null,"KY143","WILLIAMSBURG COMMUNITY DEVELOPMENT AGENCY",49.59,46.28]
[null,null,null,null,null,"KY145","BRECKENRIDGE COUNTY HOUSING AUTHORITY",49.59,46.28]
[null,null,null,null,null,"KY146","HARRODSBURG HOUSING AUTHORITY",50.51,47.14]
[null,null,null,null,null,"KY150","BARBOURVILLE HOUSING AUTHORITY",49.59,46.28]
[null,null,null,null,null,"KY157","FLOYD COUNTY HOUSING AUTHORITY",49.59,46.28]
[null,null,null,null,null,"KY160","CUMBERLAND VALLEY HOUSING AUTHORITY",49.59,46.28]
[null,null,null,null,null,"KY161","APPALACHIAN FOOTHILLS HA",51.88,48.43]
[null,null,null,null,null,"KY163","LAKE CUMBERLAND HOUSING AUTHORITY",49.59,46.28]
[null,null,null,null,null,"KY169","LAUREL COUNTY HOUSING AUTHORITY",49.59,46.28]
[null,null,null,null,null,"KY171","BOWLING GREEN HOUSING AUTHORITY",52.45,48.95]
[null,null,null,null,null,"KY173","GLASGOW COMMUNITY DEVELOPMENT AGENCY",49.59,46.28]
[null,null,null,null,null,"KY901","KENTUCKY HOUSING CORPORATION",58.09,54.21]
[null,null,null,null,null,"LA001","NEW ORLEANS HOUSING AUTHORITY",63.65,59.4]
[null,null,null,null,null,"LA002","SHREVEPORT HSG AUTHORITY",62.31,58.16]
[null,null,null,null,null,"LA003","EAST BATON ROUGE PH. HSG. AUTHORITY",68.73,64.14]
[null,null,null,null,null,"LA004","LAKE CHARLES HOUSING AUTHORITY",58.69,54.78]
[null,null,null,null,null,"LA005","LAFAYETTE (CITY) HOUSING AUTHORITY",58.69,54.78]
[null,null,null,null,null,"LA006","MONROE HOUSING AUTHORITY",58.69,54.78]
[null,null,null,null,null,"LA009","ASCENSION PARISH SEC.8  HSG. AGENCY",68.73,64.14]
[null,null,null,null,null,"LA012","KENNER HOUSING AUTHORITY",63.65,59.4]
[null,null,null,null,null,"LA013","JEFFERSON PARISH HOUSING AUTHORITY",63.65,59.4]
[null,null,null,null,null,"LA023","ALEXANDRIA HSG AUTHORITY",58.69,54.78]
[null,null,null,null,null,"LA024","BOGALUSA HOUSING AUTHORITY",58.69,54.78]
[null,null,null,null,null,"LA029","CROWLEY HOUSING AUTHORITY",58.69,54.78]
[null,null,null,null,null,"LA031","MAMOU HOUSING AUTHORITY",58.69,54.78]
[null,null,null,null,null,"LA032","CHURCH POINT HOUSING AUTHORITY",58.69,54.78]
[null,null,null,null,null,"LA033","OAKDALE HOUSING AUTHORITY",58.69,54.78]
[null,null,null,null,null,"LA036","MORGAN CITY HOUSING AUTHORITY",58.69,54.78]
[null,null,null,null,null,"LA037","MINDEN HOUSING AUTHORITY",62.66,58.49]
[null,null,null,null,null,"LA046","VINTON HOUSING AUTHORITY",58.69,54.78]
[null,null,null,null,null,"LA057","PINEVILLE (CITY) HOUSING AUTHORITY",58.69,54.78]
[null,null,null,null,null,"LA063","SULPHUR HOUSING AUTHORITY",58.69,54.78]
[null,null,null,null,null,"LA067","ST LANDRY PARISH HSG AUTHORITY",58.69,54.78]
[null,null,null,null,null,"LA074","SABINE PARISH HOUSING AUTHORITY",58.69,54.78]
[null,null,null,null,null,"LA075","PONCHATOULA HOUSING AUTHORITY",58.69,54.78]
[null,null,null,null,null,"LA086","DERIDDER (CITY OF) HOUSING AUTHORITY",58.69,54.78]
[null,null,null,null,null,"LA094","ST. CHARLES PH., HSG.AUTH., SEC.8 PROGRAM",63.65,59.4]
[null,null,null,null,null,"LA097","GRAMBLING (TOWN OF) HSG AUTH",58.69,54.78]
[null,null,null,null,null,"LA099","INDEPENDENCE (TOWN OF) HOUSING AUTHORITY",58.69,54.78]
[null,null,null,null,null,"LA101","DENHAM SPRINGS HOUSING AUTHORITY",68.73,64.14]
[null,null,null,null,null,"LA103","SLIDELL (CITY) HSG. AUTHORITY",63.65,59.4]
[null,null,null,null,null,"LA104","HAMMOND HOUSING AUTHORITY",58.69,54.78]
[null,null,null,null,null,"LA111","LEESVILLE HOUSING AUTHORITY",58.69,54.78]
[null,null,null,null,null,"LA114","DELHI HOUSING AUTHORITY",58.69,54.78]
[null,null,null,null,null,"LA115","NATCHITOCHES (CITY OF) HSG. AUTHORITY",58.69,54.78]
[null,null,null,null,null,"LA120","GRANT PARISH HOUSING AUTHORITY",58.69,54.78]
[null,null,null,null,null,"LA122","COLFAX HOUSING AUTHORITY",58.69,54.78]
[null,null,null,null,null,"LA125","CALDWELL PARISH HOUSING AUTHORITY",58.69,54.78]
[null,null,null,null,null,"LA128","VERNON PARISH HOUSING AUTHORITY",58.69,54.78]
[null,null,null,null,null,"LA129","RAPIDES PARISH HOUSING AUTHORITY",58.69,54.78]
[null,null,null,null,null,"LA132","AVOYELLES PH.POLICE JURY, SEC.8 HSG.AGENCY",58.69,54.78]
[null,null,null,null,null,"LA136","BROUSSARD HOUSING AUTHORITY",58.69,54.78]
[null,null,null,null,null,"LA159","CONCORDIA PARISH POLICE JURY",58.69,54.78]
[null,null,null,null,null,"LA163","RED RIVER PARISH POLICE JURY",58.69,54.78]
[null,null,null,null,null,"LA165","NEW IBERIA (CITY OF)",58.69,54.78]
[null,null,null,null,null,"LA166","NATCHITOCHES PARISH HSG AUTH",58.69,54.78]
[null,null,null,null,null,"LA168","JEANERETTE SECTION 8 HOUSING AGENCY",58.69,54.78]
[null,null,null,null,null,"LA169","NEWELLTON HOUSING AUTHORITY",58.69,54.78]
[null,null,null,null,null,"LA171","OUACHITA PARISH POLICE JURY, SEC.8",58.69,54.78]
[null,null,null,null,null,"LA172","CALCASIEU PARISH POLICE JURY",58.69,54.78]
[null,null,null,null,null,"LA173","ST. MARTINVILLE HOUSING AUTHORITY",58.69,54.78]
[null,null,null,null,null,"LA174","RAYNE (CITY OF) SEC.8 HOUSING AGENCY",58.69,54.78]
[null,null,null,null,null,"LA178","ST. MARTIN PARISH GOVERNMENT HOUSING DEPT.",58.69,54.78]
[null,null,null,null,null,"LA179","PLAQUEMINE (CITY OF) SEC.8 HOUSING AGENCY",58.69,54.78]
[null,null,null,null,null,"LA181","ST JOHN THE BAPTIST PARISH HA",63.65,59.4]
[null,null,null,null,null,"LA182","EVANGELINE PH. POLICE JURY, SEC.8 HSG.AGENCY",58.69,54.78]
[null,null,null,null,null,"LA184","CADDO PARISH COMMISSION",62.31,58.16]
[null,null,null,null,null,"LA186","WEST MONROE HSG AUTH",58.69,54.78]
[null,null,null,null,null,"LA187","ST BERNARD PARISH POLICE JURY",63.65,59.4]
[null,null,null,null,null,"LA188","JEFFERSON DAVIS PH. POLICE JURY",58.69,54.78]
[null,null,null,null,null,"LA189","IBERIA PH. GOVERNMENT,SEC. 8 PROGRAM",58.69,54.78]
[null,null,null,null,null,"LA190","BOSSIER PARISH POLICE JURY",62.31,58.16]
[null,null,null,null,null,"LA192","VILLE PLATTE (TOWN OF)",58.69,54.78]
[null,null,null,null,null,"LA194","THIBODAUX (CITY) COMM. DEVELOPMENT, SEC.8",60.94,56.89]
[null,null,null,null,null,"LA195","EAST CARROLL PH. POLICE JURY,SEC.8",58.69,54.78]
[null,null,null,null,null,"LA196","UNION PARISH POLICE JURY",58.69,54.78]
[null,null,null,null,null,"LA199","PORT ALLEN (CITY OF)",68.73,64.14]
[null,null,null,null,null,"LA202","DONALDSONVILLE (CITY OF) SEC.8 HSG.AGENCY",68.73,64.14]
[null,null,null,null,null,"LA204","WEST BATON ROUGE PARISH COUNCIL, SEC.8",68.73,64.14]
[null,null,null,null,null,"LA205","NEW ROADS (TOWN OF)",68.73,64.14]
[null,null,null,null,null,"LA206","KENTWOOD (TOWN 0F) SEC.8 HOUSING AGENCY",58.69,54.78]
[null,null,null,null,null,"LA207","TANGIPAHOA PARISH POLICE JURY",58.69,54.78]
[null,null,null,null,null,"LA209","DERIDDER (CITY OF) SECTION 8 HOUSING",58.69,54.78]
[null,null,null,null,null,"LA211","TERREBONNE PARISH CONSOLIDATED GOVT",60.94,56.89]
[null,null,null,null,null,"LA212","LINCOLN PARISH POLICE JURY",58.69,54.78]
[null,null,null,null,null,"LA213","WEBSTER PARISH POLICE JURY",62.66,58.49]
[null,null,null,null,null,"LA214","IBERVILLE PARISH COUNCIL",58.69,54.78]
[null,null,null,null,null,"LA215","ASSUMPTION PARISH POLICE JURY",58.69,54.78]
[null,null,null,null,null,"LA217","WASHINGTON PARISH HSG AUTHORITY, SEC.8 PROGRAM",58.69,54.78]
[null,null,null,null,null,"LA219","BATON ROUGE (CITY OF) COMMUNITY DEVELOPMENT",68.73,64.14]
[null,null,null,null,null,"LA220","ST. MARY PARISH SECTION 8 HOUSING",58.69,54.78]
[null,null,null,null,null,"LA222","CATAHOULA PARISH POLICE JURY",58.69,54.78]
[null,null,null,null,null,"LA229","FRANKLIN PARISH POLICE JURY",58.69,54.78]
[null,null,null,null,null,"LA230","DESOTO PARISH POLICE JURY",62.31,58.16]
[null,null,null,null,null,"LA232","RUSTON (CITY) SEC.8 HSG.AGENCY",58.69,54.78]
[null,null,null,null,null,"LA233","WEST CARROLL PH. POLICE JURY HSG ASSIST.OFFICE",58.69,54.78]
[null,null,null,null,null,"LA238","COVINGTON HOUSING AUTHORITY",63.65,59.4]
[null,null,null,null,null,"LA241","BIENVILLE PARISH POLICE JURY",58.69,54.78]
[null,null,null,null,null,"LA242","TALLULAH (CITY OF) PHA",58.69,54.78]
[null,null,null,null,null,"LA246","CLAIBORNE PARISH POLICE JURY",58.69,54.78]
[null,null,null,null,null,"LA247","KINDER (TOWN OF) SEC.8 HOUSING AGENCY",58.69,54.78]
[null,null,null,null,null,"LA248","JACKSON PARISH POLICE JURY",58.69,54.78]
[null,null,null,null,null,"LA253","LAFOURCHE PH. HOUSING COUNCIL, SEC.8",60.94,56.89]
[null,null,null,null,null,"LA254","PEARL RIVER (TOWN OF) HOUSING AUTHORITY",63.65,59.4]
[null,null,null,null,null,"LA257","WINN PARISH POLICE JURY",58.69,54.78]
[null,null,null,null,null,"LA258","MOREHOUSE PARISH POLICE JURY",58.69,54.78]
[null,null,null,null,null,"LA266","WHITE CASTLE (TOWN OF) HOUSING AUTHORITY",58.69,54.78]
[null,null,null,null,null,"LA269","OBERLIN (TOWN OF)",58.69,54.78]
[null,null,null,null,null,"LA888","COMMUNITY SUPPORT PROGRAMS",62.31,58.16]
[null,null,null,null,null,"LA889","PILGRIM REST",63.65,59.4]
[null,null,null,null,null,"LA903","LOUISIANA HOUSING AUTHORITY",63.65,59.4]
[null,null,null,null,null,"MA001","LOWELL HOUSING AUTHORITY",96.21,89.8]
[null,null,null,null,null,"MA002","BOSTON HOUSING AUTHORITY",100.7,93.98]
[null,null,null,null,null,"MA003","CAMBRIDGE HOUSING AUTHORITY",100.7,93.98]
[null,null,null,null,null,"MA005","HOLYOKE HOUSING AUTHORITY",96.21,89.8]
[null,null,null,null,null,"MA006","FALL RIVER HSG AUTHORITY",96.21,89.8]
[null,null,null,null,null,"MA007","NEW BEDFORD HOUSING AUTHORITY",96.21,89.8]
[null,null,null,null,null,"MA008","CHICOPEE HOUSING AUTHORITY",96.21,89.8]
[null,null,null,null,null,"MA010","LAWRENCE HOUSING AUTHORITY",96.21,89.8]
[null,null,null,null,null,"MA012","WORCESTER HOUSING AUTHORITY",96.21,89.8]
[null,null,null,null,null,"MA013","WALTHAM HOUSING AUTHORITY",100.7,93.98]
[null,null,null,null,null,"MA014","REVERE HOUSING AUTHORITY",100.7,93.98]
[null,null,null,null,null,"MA015","MEDFORD HOUSING AUTHORITY",100.7,93.98]
[null,null,null,null,null,"MA016","CHELSEA HOUSING AUTHORITY",100.7,93.98]
[null,null,null,null,null,"MA017","TAUNTON HOUSING AUTHORITY",100.7,93.98]
[null,null,null,null,null,"MA018","ATTLEBORO HSG AUTHORITY",96.21,89.8]
[null,null,null,null,null,"MA019","WOBURN HOUSING AUTHORITY",100.7,93.98]
[null,null,null,null,null,"MA020","QUINCY HOUSING AUTHORITY",100.7,93.98]
[null,null,null,null,null,"MA022","MALDEN HOUSING AUTHORITY",100.7,93.98]
[null,null,null,null,null,"MA023","LYNN HOUSING AUTHORITY",100.7,93.98]
[null,null,null,null,null,"MA024","BROCKTON HOUSING AUTHORITY",96.21,89.8]
[null,null,null,null,null,"MA025","GLOUCESTER HOUSING AUTHORITY",100.7,93.98]
[null,null,null,null,null,"MA026","NORTHAMPTON HOUSING AUTHORITY",96.21,89.8]
[null,null,null,null,null,"MA027","EVERETT HSG AUTHORITY",100.7,93.98]
[null,null,null,null,null,"MA028","FRAMINGHAM HOUSING AUTHORITY",100.7,93.98]
[null,null,null,null,null,"MA029","PITTSFIELD HOUSING AUTHORITY",96.21,89.8]
[null,null,null,null,null,"MA031","SOMERVILLE HOUSING AUTHORITY",100.7,93.98]
[null,null,null,null,null,"MA032","NEWBURYPORT HOUSING AUTHORITY",100.7,93.98]
[null,null,null,null,null,"MA033","BROOKLINE HOUSING AUTHORITY",100.7,93.98]
[null,null,null,null,null,"MA034","NORTH ADAMS HOUSING AUTHORITY",96.21,89.8]
[null,null,null,null,null,"MA035","SPRINGFIELD HSG AUTHORITY",96.21,89.8]
[null,null,null,null,null,"MA036","NEWTON HOUSING AUTHORITY",100.7,93.98]
[null,null,null,null,null,"MA037","FITCHBURG HSG AUTHORITY",96.21,89.8]
[null,null,null,null,null,"MA039","WINCHENDON HOUSING AUTHORITY",96.21,89.8]
[null,null,null,null,null,"MA040","DEDHAM HSG AUTHORITY",100.7,93.98]
[null,null,null,null,null,"MA041","SHREWSBURY HOUSING AUTHORITY",96.21,89.8]
[null,null,null,null,null,"MA042","BELMONT HSG AUTHORITY",100.7,93.98]
[null,null,null,null,null,"MA043","DRACUT HSG AUTHORITY",96.21,89.8]
[null,null,null,null,null,"MA044","BEVERLY HOUSING AUTHORITY",100.7,93.98]
[null,null,null,null,null,"MA045","WEYMOUTH HOUSING AUTHORITY",100.7,93.98]
[null,null,null,null,null,"MA046","BARNSTABLE HSG AUTHORITY",100.93,94.21]
[null,null,null,null,null,"MA047","FALMOUTH HSG AUTHORITY",100.93,94.21]
[null,null,null,null,null,"MA048","ARLINGTON HSG AUTHORITY",100.7,93.98]
[null,null,null,null,null,"MA050","WESTFIELD HSG AUTHORITY",96.21,89.8]
[null,null,null,null,null,"MA051","ADAMS HSG AUTHORITY",96.21,89.8]
[null,null,null,null,null,"MA053","BRAINTREE HSG AUTHORITY",100.7,93.98]
[null,null,null,null,null,"MA054","PEABODY HSG AUTHORITY",100.7,93.98]
[null,null,null,null,null,"MA055","SALEM HOUSING AUTHORITY",100.7,93.98]
[null,null,null,null,null,"MA056","IPSWICH HSG AUTHORITY",100.7,93.98]
[null,null,null,null,null,"MA057","ACTON HSG AUTHORITY",100.7,93.98]
[null,null,null,null,null,"MA059","PLYMOUTH HOUSING AUTHORITY",100.7,93.98]
[null,null,null,null,null,"MA060","MIDDLEBOROUGH HSG AUTHORITY",96.21,89.8]
[null,null,null,null,null,"MA061","WILMINGTON HSG AUTHORITY",100.7,93.98]
[null,null,null,null,null,"MA062","AVON HSG AUTHORITY",100.7,93.98]
[null,null,null,null,null,"MA063","MELROSE HSG AUTHORITY",100.7,93.98]
[null,null,null,null,null,"MA065","NEEDHAM HOUSING AUTHORITY",100.7,93.98]
[null,null,null,null,null,"MA066","WILLIAMSTOWN HSG AUTHORITY",96.21,89.8]
[null,null,null,null,null,"MA067","LEXINGTON HOUSING AUTHORITY",100.7,93.98]
[null,null,null,null,null,"MA069","MILFORD HOUSING AUTHORITY",100.7,93.98]
[null,null,null,null,null,"MA070","MARLBOROUGH COMM DEV AUTHORITY",100.7,93.98]
[null,null,null,null,null,"MA071","DUXBURY HSG AUTHORITY",100.7,93.98]
[null,null,null,null,null,"MA072","HOLBROOK HSG AUTHORITY",100.7,93.98]
[null,null,null,null,null,"MA073","ROCKPORT HSG AUTHORITY",100.7,93.98]
[null,null,null,null,null,"MA074","WAKEFIELD H A",100.7,93.98]
[null,null,null,null,null,"MA075","READING HSG AUTHORITY",100.7,93.98]
[null,null,null,null,null,"MA076","SOUTHBRIDGE HSG AUTHORITY",96.21,89.8]
[null,null,null,null,null,"MA077","BILLERICA HSG AUTHORITY",96.21,89.8]
[null,null,null,null,null,"MA078","West Springfield",96.21,89.8]
[null,null,null,null,null,"MA079","ABINGTON HSG AUTHORITY",96.21,89.8]
[null,null,null,null,null,"MA080","STOCKBRIDGE HSG AUTHORITY",96.21,89.8]
[null,null,null,null,null,"MA081","METHUEN HOUSING AUTHORITY",96.21,89.8]
[null,null,null,null,null,"MA082","HOLDEN HSG AUTHORITY",96.21,89.8]
[null,null,null,null,null,"MA084","ANDOVER HSG AUTHORITY",96.21,89.8]
[null,null,null,null,null,"MA085","AMHERST HOUSING AUTHORITY",96.21,89.8]
[null,null,null,null,null,"MA086","LEOMINSTER HSG AUTHORITY",96.21,89.8]
[null,null,null,null,null,"MA087","HAVERHILL HSG AUTHORITY",96.21,89.8]
[null,null,null,null,null,"MA088","WARE HSG AUTHORITY",96.21,89.8]
[null,null,null,null,null,"MA089","NORTH READING HSG AUTHORITY",100.7,93.98]
[null,null,null,null,null,"MA090","BELLINGHAM HSG AUTHORITY",100.7,93.98]
[null,null,null,null,null,"MA091","HUDSON HOUSING AUTHORITY",100.7,93.98]
[null,null,null,null,null,"MA092","NATICK HSG AUTHORITY",100.7,93.98]
[null,null,null,null,null,"MA093","WATERTOWN HOUSING AUTHORITY",100.7,93.98]
[null,null,null,null,null,"MA094","FRANKLIN CTY REG HSG AUTHORITY",96.21,89.8]
[null,null,null,null,null,"MA095","YARMOUTH HSG AUTHORITY",100.93,94.21]
[null,null,null,null,null,"MA096","GREENFIELD HSG AUTHORITY",96.21,89.8]
[null,null,null,null,null,"MA098","CONCORD HOUSING AUTHORITY",100.7,93.98]
[null,null,null,null,null,"MA099","SAUGUS HSG AUTHORITY",100.7,93.98]
[null,null,null,null,null,"MA100","ATHOL HSG AUTHORITY",96.21,89.8]
[null,null,null,null,null,"MA101","WAYLAND HOUUSING AUTHORITY",100.7,93.98]
[null,null,null,null,null,"MA105","WARREN HSG AUTHORITY",96.21,89.8]
[null,null,null,null,null,"MA106","OXFORD H A",96.21,89.8]
[null,null,null,null,null,"MA107","NORTH ANDOVER HOUSING AUTHORITY",96.21,89.8]
[null,null,null,null,null,"MA108","CHELMSFORD HSG AUTHORITY",96.21,89.8]
[null,null,null,null,null,"MA109","NORWOOD HSG AUTHORITY",100.7,93.98]
[null,null,null,null,null,"MA110","BOURNE HOUSING AUTHORITY",100.93,94.21]
[null,null,null,null,null,"MA111","PEMBROKE HOUSING AUTHORITY",100.7,93.98]
[null,null,null,null,null,"MA112","BURLINGTON HSG AUTHORITY",100.7,93.98]
[null,null,null,null,null,"MA113","MERRIMAC HSG AUTHORITY",96.21,89.8]
[null,null,null,null,null,"MA116","AMESBURY HSG AUTHORITY",100.7,93.98]
[null,null,null,null,null,"MA117","STOUGHTON HOUSING AUTHORITY",100.7,93.98]
[null,null,null,null,null,"MA118","DANVERS HOUSING AUTHORITY",100.7,93.98]
[null,null,null,null,null,"MA119","HINGHAM HOUSING AUTHORITY",100.7,93.98]
[null,null,null,null,null,"MA121","HALIFAX HSG AUTHORITY",100.7,93.98]
[null,null,null,null,null,"MA122","EASTON HOUSING AUTHORITY",96.21,89.8]
[null,null,null,null,null,"MA123","WEBSTER HOUSING AUTHORITY",96.21,89.8]
[null,null,null,null,null,"MA125","WINCHESTER HSG AUTHORITY",100.7,93.98]
[null,null,null,null,null,"MA126","BRIDGEWATER HOUSING AUTHORITY",96.21,89.8]
[null,null,null,null,null,"MA127","GARDNER HSG AUTHORITY",96.21,89.8]
[null,null,null,null,null,"MA133","ROCKLAND HOUSING AUTHORITY",100.7,93.98]
[null,null,null,null,null,"MA134","MANSFIELD HSG AUTHORITY",100.7,93.98]
[null,null,null,null,null,"MA135","WELLESLEY HSG AUTHORITY",100.7,93.98]
[null,null,null,null,null,"MA138","DENNIS HSG AUTHORITY",100.93,94.21]
[null,null,null,null,null,"MA139","TEWKSBURY HOUSING AUTHORITY",96.21,89.8]
[null,null,null,null,null,"MA140","WALPOLE HSG AUTHORITY",100.7,93.98]
[null,null,null,null,null,"MA147","MILTON HSG AUTHORITY",100.7,93.98]
[null,null,null,null,null,"MA148","HANOVER HSG AUTHORITY",100.7,93.98]
[null,null,null,null,null,"MA154","MILLIS HOUSING AUTHORITY",100.7,93.98]
[null,null,null,null,null,"MA155","HANSON HOUSING AUTHORITY",100.7,93.98]
[null,null,null,null,null,"MA159","AUBURN HOUSING AUTHORITY",100.7,93.98]
[null,null,null,null,null,"MA165","HOLLISTON HSG AUTHORITY",100.7,93.98]
[null,null,null,null,null,"MA166","COHASSET HSG AUTHORITY",100.7,93.98]
[null,null,null,null,null,"MA170","NORTH ATTLEBOROUGH HSG AUTHORITY",100.7,93.98]
[null,null,null,null,null,"MA172","DARTMOUTH HA",96.21,89.8]
[null,null,null,null,null,"MA174","SALISBURY HSG AUTHORITY",100.7,93.98]
[null,null,null,null,null,"MA175","STOW HSG AUTHORITY",100.7,93.98]
[null,null,null,null,null,"MA181","SANDWICH HSG AUTHORITY",100.93,94.21]
[null,null,null,null,null,"MA188","BRIDGE OF CENTRAL MASSACHUSETTS, INC",96.21,89.8]
[null,null,null,null,null,"MA880","BRIDGEWELL",100.7,93.98]
[null,null,null,null,null,"MA881","MIDDLESEX NRC, INC",100.7,93.98]
[null,null,null,null,null,"MA882","COMMUNITY TEAMWORK",96.21,89.8]
[null,null,null,null,null,"MA883","AMERICAN TRAINING, INC",100.7,93.98]
[null,null,null,null,null,"MA884","BROCKTON AREA MSI",96.21,89.8]
[null,null,null,null,null,"MA901","COMM DEV PROG COMM OF MA.,E.O.C.D.",100.7,93.98]
[null,null,null,null,null,"MD001","HOUSING AUTHORITY OF THE CITY OF ANNAPOLIS",73.78,68.849999999999994]
[null,null,null,null,null,"MD002","HOUSING AUTHORITY OF BALTIMORE CITY",73.78,68.849999999999994]
[null,null,null,null,null,"MD003","HOUSING AUTHORITY OF THE CITY OF FREDERICK",100.59,93.89]
[null,null,null,null,null,"MD004","MONTGOMERY CO HOUSING AUTHORITY",100.59,93.89]
[null,null,null,null,null,"MD006","HAGERSTOWN HOUSING AUTHORITY",57.87,54.01]
[null,null,null,null,null,"MD007","HOUSING AUTHORITY OF THE CITY  OF ROCKVILLE",100.59,93.89]
[null,null,null,null,null,"MD009","CRISFIELD HOUSING AUTHORITY",55.79,52.07]
[null,null,null,null,null,"MD012","HAVRE DE GRACE HOUSING AUTHORITY",73.78,68.849999999999994]
[null,null,null,null,null,"MD013","ST. MICHAELS HOUSING AUTHORITY",68.27,63.71]
[null,null,null,null,null,"MD014","WICOMICO COUNTY HOUSING AUTHORITY",66.31,61.89]
[null,null,null,null,null,"MD015","HSG AUTHORITY PRINCE GEORGE'S COUNTY",100.59,93.89]
[null,null,null,null,null,"MD016","ELKTON HOUSING AUTHORITY",73.739999999999995,68.83]
[null,null,null,null,null,"MD018","ANNE ARUNDEL COUNTY HOUSING AUTH.",73.78,68.849999999999994]
[null,null,null,null,null,"MD019","EASTON HOUSING AUTHORITY",68.27,63.71]
[null,null,null,null,null,"MD021","ST MARY'S COUNTY HOUSING AUTHORITY",83.78,78.19]
[null,null,null,null,null,"MD022","HSG AUTHORITY OF CALVERT COUNTY",100.59,93.89]
[null,null,null,null,null,"MD023","HOWARD COUNTY HOUSING COMMISSION",73.78,68.849999999999994]
[null,null,null,null,null,"MD024","COUNTY COMMISSIONERS CHARLES COUNTY",100.59,93.89]
[null,null,null,null,null,"MD025","HARFORD COUNTY HOUSING AGENCY",73.78,68.849999999999994]
[null,null,null,null,null,"MD027","CITY OF WESTMINSTER",73.78,68.849999999999994]
[null,null,null,null,null,"MD028","WASHINGTON COUNTY HOUSING AUTHORITY",57.87,54.01]
[null,null,null,null,null,"MD029","CECIL COUNTY HOUSING AGENCY",73.739999999999995,68.83]
[null,null,null,null,null,"MD030","ALLEGANY COUNTY HOUS AUTH",55.68,51.97]
[null,null,null,null,null,"MD032","CARROLL COUNTY HSG & COMMUNITY DEV",73.78,68.849999999999994]
[null,null,null,null,null,"MD033","BALTIMORE CO. HOUSING OFFICE",73.78,68.849999999999994]
[null,null,null,null,null,"MD034","QUEEN ANNE'S COUNTY HSG AUTHORITY",73.78,68.849999999999994]
[null,null,null,null,null,"MD901","MARYLAND DEPT OF HSG & COMMUNITY DEVELOPMENT",100.59,93.89]
[null,null,null,null,null,"ME001","VAN BUREN HOUSING AUTHORITY",54.52,50.88]
[null,null,null,null,null,"ME002","FORT FAIRFIELD HOUSING AUTHORITY",54.52,50.88]
[null,null,null,null,null,"ME003","PORTLAND HSG AUTHORITY",87.95,82.09]
[null,null,null,null,null,"ME004","PRESQUE ISLE HOUSING AUTHORITY",54.52,50.88]
[null,null,null,null,null,"ME005","LEWISTON HOUSING AUTHORITY",62.94,58.74]
[null,null,null,null,null,"ME006","BRUNSWICK HOUSING AUTHORITY",67.25,62.76]
[null,null,null,null,null,"ME007","AUBURN HSG AUTHORITY",62.94,58.74]
[null,null,null,null,null,"ME008","WATERVILLE HOUSING AUTHORITY",57.32,53.49]
[null,null,null,null,null,"ME009","BANGOR HOUSING AUTHORITY",63.89,59.63]
[null,null,null,null,null,"ME011","SANFORD HSG AUTHORITY",77.38,72.209999999999994]
[null,null,null,null,null,"ME015","WESTBROOK HOUSING AUTHORITY",87.95,82.09]
[null,null,null,null,null,"ME018","OLD TOWN HOUSING AUTHORITY",63.89,59.63]
[null,null,null,null,null,"ME019","BATH HOUSING AUTHORITY",70.5,65.78]
[null,null,null,null,null,"ME020","SOUTH PORTLAND HOUSING AUTHORITY",87.95,82.09]
[null,null,null,null,null,"ME021","BREWER HOUSING AUTHORITY",63.89,59.63]
[null,null,null,null,null,"ME022","SOUTHWEST HARBOR HOUSING AUTHORITY",55.96,52.24]
[null,null,null,null,null,"ME023","BAR HARBOR HOUSING AUTHORITY",55.96,52.24]
[null,null,null,null,null,"ME024","MOUNT DESERT HOUSING AUTHORITY",55.96,52.24]
[null,null,null,null,null,"ME025","CARIBOU HSG AUTHORITY",54.52,50.88]
[null,null,null,null,null,"ME026","TREMONT HOUSING AUTHORITY",55.96,52.24]
[null,null,null,null,null,"ME027","ELLSWORTH HOUSING AUTHORITY",55.96,52.24]
[null,null,null,null,null,"ME028","BIDDEFORD HSG AUTHORITY",77.38,72.209999999999994]
[null,null,null,null,null,"ME030","AUGUSTA HSG AUTHORITY",57.32,53.49]
[null,null,null,null,null,"ME031","CITY OF SACO HOUSING AUTHORITY",77.38,72.209999999999994]
[null,null,null,null,null,"ME032","TOPSHAM HSG AUTHORITY",70.5,65.78]
[null,null,null,null,null,"ME901","MAINE STATE HSG AUTHORITY",87.95,82.09]
[null,null,null,null,null,"MI001","DETROIT HOUSING COMMISSION",61.14,57.07]
[null,null,null,null,null,"MI003","DEARBORN HOUSING COMMISSION",61.14,57.07]
[null,null,null,null,null,"MI005","PONTIAC HOUSING COMMISSION",61.14,57.07]
[null,null,null,null,null,"MI006","SAGINAW HOUSING COMMISSION",52.29,48.8]
[null,null,null,null,null,"MI008","RIVER ROUGE HOUSING COMMISSION",61.14,57.07]
[null,null,null,null,null,"MI009","FLINT HOUSING COMMISSION",52.63,49.12]
[null,null,null,null,null,"MI010","BENTON HARBOR HSG. COMM.",53.3,49.75]
[null,null,null,null,null,"MI019","BARAGA HOUSING COMMISSION",48.42,45.2]
[null,null,null,null,null,"MI020","REED CITY HOUSING COMMISSION",48.42,45.2]
[null,null,null,null,null,"MI023","GREENVILLE HSG. COMM.",48.42,45.2]
[null,null,null,null,null,"MI026","YPSILANTI HOUSING COMMISSION",72.849999999999994,67.989999999999995]
[null,null,null,null,null,"MI027","INKSTER HOUSING COMMISSION",61.14,57.07]
[null,null,null,null,null,"MI030","CHEBOYGAN HSG. COMM.",48.42,45.2]
[null,null,null,null,null,"MI031","MUSKEGON HEIGHTS HSG. COMM.",57.72,53.87]
[null,null,null,null,null,"MI032","BENTON TWNSHP.  HSG.  COMM.",53.3,49.75]
[null,null,null,null,null,"MI035","BATTLE CREEK HSG. COMM.",55.11,51.44]
[null,null,null,null,null,"MI036","SAULT STE MARIE HSG. COMM.",48.42,45.2]
[null,null,null,null,null,"MI037","ROSEVILLE HOUSING COMM",61.14,57.07]
[null,null,null,null,null,"MI038","JACKSON HOUSING COMMISSION",52.84,49.33]
[null,null,null,null,null,"MI039","PORT HURON HOUSING COMMISSION",61.14,57.07]
[null,null,null,null,null,"MI040","CLINTON TOWNSHIP HSG. COMM.",61.14,57.07]
[null,null,null,null,null,"MI044","EASTPOINTE HOUSING COMMISSION",61.14,57.07]
[null,null,null,null,null,"MI045","PLYMOUTH HOUSING COMMISSION",61.14,57.07]
[null,null,null,null,null,"MI047","GRAYLING HOUSING COMMISSION",48.42,45.2]
[null,null,null,null,null,"MI048","MELVINDALE HOUSING COMMISSION",61.14,57.07]
[null,null,null,null,null,"MI049","MANISTIQUE HSG. COMM.",48.42,45.2]
[null,null,null,null,null,"MI050","BALDWIN HSG. COMM.",48.42,45.2]
[null,null,null,null,null,"MI051","LINCOLN PARK HSG. COMM.",61.14,57.07]
[null,null,null,null,null,"MI052","ST CLAIR HOUSING COMMISSION",61.14,57.07]
[null,null,null,null,null,"MI055","LIVONIA HOUSING COMMISSION",61.14,57.07]
[null,null,null,null,null,"MI056","COLDWATER HOUSING COMMISSION",48.76,45.51]
[null,null,null,null,null,"MI058","LANSING HOUSING COMMISSION",58.62,54.71]
[null,null,null,null,null,"MI059","ST. CLAIR SHORES HOUS COMM",61.14,57.07]
[null,null,null,null,null,"MI060","CADILLAC HOUSING COMMISSION",51.94,48.47]
[null,null,null,null,null,"MI061","SAINT LOUIS HOUSING COMMISSION",52.27,48.79]
[null,null,null,null,null,"MI063","HANCOCK HOUSING COMMISSION",48.42,45.2]
[null,null,null,null,null,"MI064","ANN ARBOR HOUSING COMMISSION",72.849999999999994,67.989999999999995]
[null,null,null,null,null,"MI066","MUSKEGON HOUSING COMMISSION",57.72,53.87]
[null,null,null,null,null,"MI070","MARQUETTE HOUSING COMMISSION",51.94,48.47]
[null,null,null,null,null,"MI073","GRAND RAPIDS HSG. COMM.",57.72,53.87]
[null,null,null,null,null,"MI074","MOUNT PLEASANT HSG. COMM.",52.27,48.79]
[null,null,null,null,null,"MI080","TRAVERSE CITY HSG. COMM.",53.75,50.17]
[null,null,null,null,null,"MI084","BOYNE CITY HSG. COMM.",51.94,48.47]
[null,null,null,null,null,"MI087","MENOMINEE HOUSING COMMISSION",51.94,48.47]
[null,null,null,null,null,"MI089","TAYLOR HOUSING COMMISSION",61.14,57.07]
[null,null,null,null,null,"MI093","ROCKFORD HOUSING COMMISSION",57.72,53.87]
[null,null,null,null,null,"MI094","MUNISING HOUSING COMMISSION",48.42,45.2]
[null,null,null,null,null,"MI096","FERNDALE HOUSING COMMISSION",61.14,57.07]
[null,null,null,null,null,"MI097","SOUTHFIELD HOUSING COMMISSION",61.14,57.07]
[null,null,null,null,null,"MI100","LAPEER HOUSING COMMISSION",61.14,57.07]
[null,null,null,null,null,"MI112","EVART HOUSING COMMISSION",48.42,45.2]
[null,null,null,null,null,"MI115","WYOMING HOUSING COMMISSION",57.72,53.87]
[null,null,null,null,null,"MI117","IONIA HOUSING COMMMISSION",48.56,45.31]
[null,null,null,null,null,"MI119","IRON COUNTY HSG. COMM.",48.42,45.2]
[null,null,null,null,null,"MI120","DOWAGIAC HOUSING COMMISSION",53.3,49.75]
[null,null,null,null,null,"MI121","ALMA HOUSING COMMISSION",52.27,48.79]
[null,null,null,null,null,"MI132","LUCE COUNTY HSG. COMM.",48.42,45.2]
[null,null,null,null,null,"MI139","WESTLAND HOUSING COMMISSION",61.14,57.07]
[null,null,null,null,null,"MI157","STERLING HEIGHTS HSG. COMM.",61.14,57.07]
[null,null,null,null,null,"MI160","DEARBORN HEIGHTS HSG. COMM.",61.14,57.07]
[null,null,null,null,null,"MI165","ROYAL OAK HOUSING COMMISSION",61.14,57.07]
[null,null,null,null,null,"MI167","POTTERVILLE HOUSING COMMISSION",58.62,54.71]
[null,null,null,null,null,"MI168","INGHAM COUNTY HOUSING COMM",58.62,54.71]
[null,null,null,null,null,"MI178","SCHOOLCRAFT COUNTY HSG. COMM.",48.42,45.2]
[null,null,null,null,null,"MI186","MONTCALM COUNTY HSG. COMM.",48.42,45.2]
[null,null,null,null,null,"MI188","MADISON HEIGHTS HSG COMMISSION",61.14,57.07]
[null,null,null,null,null,"MI194","BATH CHARTER TWNSHP. HSG. COMM.",58.62,54.71]
[null,null,null,null,null,"MI198","KENT COUNTY HOUSING COMMISSION",57.72,53.87]
[null,null,null,null,null,"MI880","EATON COUNTY NON-PROFIT",58.62,54.71]
[null,null,null,null,null,"MI901","MICHIGAN STATE HSG. DEV. AUTH.",61.14,57.07]
[null,null,null,null,null,"MI902","MICHIGAN STATE HSG. DEV. AUTH.",58.62,54.71]
[null,null,null,null,null,"MN001","ST PAUL PHA",73.709999999999994,68.8]
[null,null,null,null,null,"MN002","MINNEAPOLIS PHA",73.709999999999994,68.8]
[null,null,null,null,null,"MN003","DULUTH HRA",54.52,50.89]
[null,null,null,null,null,"MN006","WINONA HRA",50.91,47.52]
[null,null,null,null,null,"MN007","VIRGINIA HRA",54.52,50.89]
[null,null,null,null,null,"MN008","FERGUS FALLS HRA",50.21,46.86]
[null,null,null,null,null,"MN009","BEMIDJI  HRA",50.21,46.86]
[null,null,null,null,null,"MN010","SOUTH ST PAUL HRA",73.709999999999994,68.8]
[null,null,null,null,null,"MN017","MOORHEAD PUBLIC HOUSING AGENCY",59.49,55.52]
[null,null,null,null,null,"MN018","WADENA HRA",50.21,46.86]
[null,null,null,null,null,"MN021","CROOKSTON HRA",56.86,53.08]
[null,null,null,null,null,"MN032","BRAINERD HRA",50.21,46.86]
[null,null,null,null,null,"MN034","WORTHINGTON HRA",50.21,46.86]
[null,null,null,null,null,"MN037","AITKIN COUNTY HRA",50.21,46.86]
[null,null,null,null,null,"MN038","ST. CLOUD HRA",56.16,52.42]
[null,null,null,null,null,"MN045","EAST GRAND FORKS ECONOMIC DEVELOPMENT HOUSING AUTH",56.86,53.08]
[null,null,null,null,null,"MN049","PIPESTONE HRA",50.21,46.86]
[null,null,null,null,null,"MN051","WILLMAR HRA",52.68,49.16]
[null,null,null,null,null,"MN063","MANKATO HRA",54.76,51.11]
[null,null,null,null,null,"MN067","CAMBRIDGE  ECONOMIC DEVELOPMENT AUTHORITY",73.709999999999994,68.8]
[null,null,null,null,null,"MN073","CLOQUET HRA",54.52,50.89]
[null,null,null,null,null,"MN077","ALBERT LEA HRA",54.78,51.13]
[null,null,null,null,null,"MN085","AUSTIN  HRA",50.21,46.86]
[null,null,null,null,null,"MN090","RED WING HRA",50.21,46.86]
[null,null,null,null,null,"MN101","MORA HRA",50.21,46.86]
[null,null,null,null,null,"MN107","DETROIT LAKES HRA",50.21,46.86]
[null,null,null,null,null,"MN128","NEW ULM EDA",50.21,46.86]
[null,null,null,null,null,"MN144","ST LOUIS PARK HRA",73.709999999999994,68.8]
[null,null,null,null,null,"MN147","DAKOTA COUNTY CDA",73.709999999999994,68.8]
[null,null,null,null,null,"MN151","OLMSTED COUNTY HRA",61.03,56.97]
[null,null,null,null,null,"MN152","BLOOMINGTON HRA",73.709999999999994,68.8]
[null,null,null,null,null,"MN153","KOOCHICHING COUNTY HRA",50.21,46.86]
[null,null,null,null,null,"MN154","ITASCA COUNTY HRA",50.21,46.86]
[null,null,null,null,null,"MN158","NW MN MULTI-COUNTY HRA",56.86,53.08]
[null,null,null,null,null,"MN161","RENVILLE COUNTY HRA",52.68,49.16]
[null,null,null,null,null,"MN163","METROPOLITAN COUNCIL HRA",73.709999999999994,68.8]
[null,null,null,null,null,"MN164","CLAY COUNTY HRA",59.49,55.52]
[null,null,null,null,null,"MN166","SWIFT COUNTY HRA",50.21,46.86]
[null,null,null,null,null,"MN167","BLUE EARTH COUNTY HRA",54.76,51.11]
[null,null,null,null,null,"MN168","KANDIYOHI COUNTY HRA",52.68,49.16]
[null,null,null,null,null,"MN169","GRANT COUNTY HRA",50.21,46.86]
[null,null,null,null,null,"MN170","PLYMOUTH HRA",73.709999999999994,68.8]
[null,null,null,null,null,"MN171","LE SUEUR COUNTY HRA",52.21,48.72]
[null,null,null,null,null,"MN172","STEARNS COUNTY HRA",56.16,52.42]
[null,null,null,null,null,"MN173","CHIPPEWA COUNTY HRA",50.21,46.86]
[null,null,null,null,null,"MN174","YELLOW MEDICINE COUNTY HRA",50.21,46.86]
[null,null,null,null,null,"MN176","BIG STONE COUNTY  HRA",50.21,46.86]
[null,null,null,null,null,"MN177","OTTER TAIL COUNTY HRA",50.21,46.86]
[null,null,null,null,null,"MN178","MEEKER COUNTY HRA",52.68,49.16]
[null,null,null,null,null,"MN179","MORRISON COUNTY HRA",50.21,46.86]
[null,null,null,null,null,"MN180","TODD COUNTY HRA",50.21,46.86]
[null,null,null,null,null,"MN182","STEVENS COUNTY HRA",50.21,46.86]
[null,null,null,null,null,"MN184","SCOTT COUNTY HRA",73.709999999999994,68.8]
[null,null,null,null,null,"MN186","CLEARWATER COUNTY HRA",50.21,46.86]
[null,null,null,null,null,"MN188","CASS COUNTY HRA",50.21,46.86]
[null,null,null,null,null,"MN190","BECKER COUNTY HRA",50.21,46.86]
[null,null,null,null,null,"MN191","MOWER COUNTY HRA",50.21,46.86]
[null,null,null,null,null,"MN192","DOUGLAS COUNTY HRA",50.21,46.86]
[null,null,null,null,null,"MN193","RICE COUNTY HRA",56.42,52.67]
[null,null,null,null,null,"MN197","SOUTHEAST MN MULTI-COUNTY HRA",61.03,56.97]
[null,null,null,null,null,"MN200","FARIBAULT COUNTY HRA",50.21,46.86]
[null,null,null,null,null,"MN203","MCLEOD COUNTY HRA",52.68,49.16]
[null,null,null,null,null,"MN212","WASHINGTON COUNTY HRA",73.709999999999994,68.8]
[null,null,null,null,null,"MN216","RICHFIELD HRA",73.709999999999994,68.8]
[null,null,null,null,null,"MN219","SOUTH CENTRAL MULTI COUNTY HRA",54.76,51.11]
[null,null,null,null,null,"MN220","OWATONNA HRA",54.78,51.13]
[null,null,null,null,null,"MN801","MENTAL HEALTH RESOIRCES",73.709999999999994,68.8]
[null,null,null,null,null,"MN802","SOUTH METRO HUMAN SERVICES",73.709999999999994,68.8]
[null,null,null,null,null,"MN803","SCOTT CARVER DAKOTA CAP AGENCY",73.709999999999994,68.8]
[null,null,null,null,null,"MO001","ST. LOUIS HOUSING AUTHORITY",57.81,53.95]
[null,null,null,null,null,"MO002","HOUSING AUTH OF KANSAS CITY, MISSOURI",56.2,52.45]
[null,null,null,null,null,"MO003","HOUSING AUTH  OF THE CITY OF SAINT JOSEPH",54.23,50.62]
[null,null,null,null,null,"MO004","ST. LOUIS COUNTY HOUSING AUTHORITY",57.81,53.95]
[null,null,null,null,null,"MO006","ST CHARLES HOUSING AUTHORITY",57.81,53.95]
[null,null,null,null,null,"MO007","COLUMBIA HOUSING AUTHORITY",54.23,50.62]
[null,null,null,null,null,"MO008","SIKESTON HOUSING AUTHORITY",54.23,50.62]
[null,null,null,null,null,"MO009","JEFFERSON CITY HOUSING AUTHORITY",54.23,50.62]
[null,null,null,null,null,"MO010","MEXICO HOUSING AUTHORITY",54.23,50.62]
[null,null,null,null,null,"MO014","FULTON HOUSING AUTHORITY",54.23,50.62]
[null,null,null,null,null,"MO016","MARSHALL HOUSING AUTHORITY",54.23,50.62]
[null,null,null,null,null,"MO017","INDEPENDENCE HOUSING AUTHORITY",56.2,52.45]
[null,null,null,null,null,"MO030","LEES SUMMIT HOUSING AUTHORITY",56.2,52.45]
[null,null,null,null,null,"MO037","WEST PLAINS HOUSING AUTHORITY",54.23,50.62]
[null,null,null,null,null,"MO040","HOUSTON HOUSING AUTHORITY",54.23,50.62]
[null,null,null,null,null,"MO046","MARCELINE HOUSING AUTHORITY",54.23,50.62]
[null,null,null,null,null,"MO053","EXCELSIOR SPRINGS HOUSING AUTHORITY",56.2,52.45]
[null,null,null,null,null,"MO058","SPRINGFIELD HOUSING AUTHORITY",54.23,50.62]
[null,null,null,null,null,"MO060","MOUNTAIN GROVE HOUSING AUTHORITY",54.23,50.62]
[null,null,null,null,null,"MO065","CHILLICOTHE HOUSING AUTHORITY",54.23,50.62]
[null,null,null,null,null,"MO070","RICHMOND HOUSING AUTHORITY",56.2,52.45]
[null,null,null,null,null,"MO072","MARYVILLE HOUSING AUTHORITY",54.23,50.62]
[null,null,null,null,null,"MO074","SEDALIA HOUSING AUTHORITY",54.23,50.62]
[null,null,null,null,null,"MO075","BROOKFIELD HOUSING AUTHORITY",54.23,50.62]
[null,null,null,null,null,"MO076","EAST PRAIRIE HOUSING AUTHORITY",54.23,50.62]
[null,null,null,null,null,"MO080","ORAN HOUSING AUTHORITY",54.23,50.62]
[null,null,null,null,null,"MO107","CARROLLTON HOUSING AUTHORITY",54.23,50.62]
[null,null,null,null,null,"MO111","MACON HOUSING AUTHORITY",54.23,50.62]
[null,null,null,null,null,"MO129","HANNIBAL HOUSING AUTHORITY",54.23,50.62]
[null,null,null,null,null,"MO133","NEVADA HOUSING AUTHORITY",54.23,50.62]
[null,null,null,null,null,"MO145","KIRKSVILLE HOUSING AUTHORITY",54.23,50.62]
[null,null,null,null,null,"MO149","ROLLA HOUSING AUTHORITY",54.23,50.62]
[null,null,null,null,null,"MO179","VANDALIA HOUSING AUTHORITY",54.23,50.62]
[null,null,null,null,null,"MO188","JOPLIN HOUSING AUTHORITY",54.23,50.62]
[null,null,null,null,null,"MO190","NODAWAY COUNTY PHA",54.23,50.62]
[null,null,null,null,null,"MO192","AVA HOUSING AUTHORITY",54.23,50.62]
[null,null,null,null,null,"MO193","WESTON HOUSING AUTHORITY",56.2,52.45]
[null,null,null,null,null,"MO194","WARRENSBURG HOUSING AUTHORITY",54.23,50.62]
[null,null,null,null,null,"MO196","GRUNDY COUNTY HOUSING AUTHORITY",56.2,52.45]
[null,null,null,null,null,"MO197","ST. CLAIR CO. HSG. AUTHORITY",56.2,52.45]
[null,null,null,null,null,"MO198","BOONE COUNTY PHA",54.23,50.62]
[null,null,null,null,null,"MO199","LINCOLN COUNTY PUB HSG AGENCY",57.81,53.95]
[null,null,null,null,null,"MO200","SCOTLAND COUNTY PUBLIC HSG AGENCY",54.23,50.62]
[null,null,null,null,null,"MO203","ST. FRANCOIS COUNTY PH AGENCY",54.23,50.62]
[null,null,null,null,null,"MO204","LAFAYETTE CO. HSG. AUTHORITY",56.2,52.45]
[null,null,null,null,null,"MO205","FRANKLIN COUNTY PUBLIC HSG AGENCY",57.81,53.95]
[null,null,null,null,null,"MO206","PHELPS COUNTY PHA",57.81,53.95]
[null,null,null,null,null,"MO207","PULASKI COUNTY PHA",54.23,50.62]
[null,null,null,null,null,"MO208","NEW MADRID COUNTY HOUSING AUTHORITY",54.23,50.62]
[null,null,null,null,null,"MO209","CABOOL HOUSING AUTHORITY",54.23,50.62]
[null,null,null,null,null,"MO210","LIBERTY HOUSING AUTHORITY",56.2,52.45]
[null,null,null,null,null,"MO212","RIPLEY COUNTY PHA",54.23,50.62]
[null,null,null,null,null,"MO213","PHA OF THE COUNTY OF RAY",56.2,52.45]
[null,null,null,null,null,"MO215","JASPER COUNTY  PUBLIC HOUSING AUTHORITY",54.23,50.62]
[null,null,null,null,null,"MO216","DALLAS COUNTY PHA",54.23,50.62]
[null,null,null,null,null,"MO217","HOWELL COUNTY PHA",54.23,50.62]
[null,null,null,null,null,"MO219","ABCD HOUSING AGENCY",56.2,52.45]
[null,null,null,null,null,"MO227","HOUSING ASSISTANT PROGRAM OF ST. CHARLES COUNTY",57.81,53.95]
[null,null,null,null,null,"MO880","COMMUNITY HOUSING NETWORK",56.2,52.45]
[null,null,null,null,null,"MS004","MERIDIAN  HA",55.87,52.15]
[null,null,null,null,null,"MS005","HA BILOXI",58.15,54.27]
[null,null,null,null,null,"MS006","HA TENNESSEE VALLEY",55.87,52.15]
[null,null,null,null,null,"MS016","MISS REG H A II",57.35,53.53]
[null,null,null,null,null,"MS019","MISSISSIPPI REGIONAL HOUSING AUTHORITY IV",55.87,52.15]
[null,null,null,null,null,"MS030","HA MISSISSIPPI REGIONAL NO 5",55.87,52.15]
[null,null,null,null,null,"MS040","MISS REGIONAL H/A VIII",58.15,54.27]
[null,null,null,null,null,"MS057","HA MISSISSIPPI REGIONAL NO 7",55.87,52.15]
[null,null,null,null,null,"MS058","MISS REGIONAL H/A VI",68.62,64.040000000000006]
[null,null,null,null,null,"MS095","HA SOUTH DELTA",55.87,52.15]
[null,null,null,null,null,"MS103","JACKSON HOUS AUTH",68.62,64.040000000000006]
[null,null,null,null,null,"MS107","HSG AUTH CITY OF GREENWOOD MS",55.87,52.15]
[null,null,null,null,null,"MS109","HA LONG BEACH",58.15,54.27]
[null,null,null,null,null,"MS128","NORTH DELTA REG HSS AUTH",55.87,52.15]
[null,null,null,null,null,"MS301","THE BAY WAVELAND HOUSING AUTHORITY",58.15,54.27]
[null,null,null,null,null,"MT001","HOUSING AUTHORITY OF BILLINGS",69.260000000000005,64.650000000000006]
[null,null,null,null,null,"MT002","GREAT FALLS HOUSING AUTHORITY",61.32,57.24]
[null,null,null,null,null,"MT003","BUTTE HOUSING AUTHORITY",58.22,54.33]
[null,null,null,null,null,"MT004","HELENA HOUSING AUTHORITY",67.7,63.18]
[null,null,null,null,null,"MT006","RICHLAND COUNTY HOUSING AUTHORITY",54.84,51.2]
[null,null,null,null,null,"MT015","WHITEFISH HOUSING AUTHORITY",59.42,55.45]
[null,null,null,null,null,"MT033","MISSOULA HOUSING AUTHORITY",62.35,58.18]
[null,null,null,null,null,"MT036","CITY OF RONAN HOUSING AUTHORITY",59.42,55.45]
[null,null,null,null,null,"MT901","MT DEPARTMENT OF COMMERCE",65.290000000000006,60.94]
[null,null,null,null,null,"NC001","HOUSING AUTHORITY OF THE CITY OF WILMINGTON",55.69,51.98]
[null,null,null,null,null,"NC002","RALEIGH HOUSING AUTHORITY",66.540000000000006,62.09]
[null,null,null,null,null,"NC003","HA OF THE CITY OF CHARLOTTE",61.02,56.94]
[null,null,null,null,null,"NC004","KINSTON H/A",55.12,51.45]
[null,null,null,null,null,"NC006","HA HIGH POINT",57.63,53.8]
[null,null,null,null,null,"NC007","HSG AUTHORITY OF THE CITY OF ASHEVILLE",55.69,51.98]
[null,null,null,null,null,"NC008","CITY OF CONCORD",61.02,56.94]
[null,null,null,null,null,"NC009","FAYETTEVILLE METROPOLITAN HSG AUTH",56.61,52.83]
[null,null,null,null,null,"NC011","GREENSBORO HOUSING AUTHORITY",57.63,53.8]
[null,null,null,null,null,"NC012","HA WINSTON-SALEM",57.63,53.8]
[null,null,null,null,null,"NC013","HA DURHAM",66.540000000000006,62.09]
[null,null,null,null,null,"NC014","HA LUMBERTON",55.12,51.45]
[null,null,null,null,null,"NC015","HA GOLDSBORO",55.69,51.98]
[null,null,null,null,null,"NC016","SALISBURY HOUSING AUTHORITY",60.39,56.36]
[null,null,null,null,null,"NC018","HA OF THE TOWN OF LAURINBURG",55.12,51.45]
[null,null,null,null,null,"NC019","HA ROCKY MOUNT",55.69,51.98]
[null,null,null,null,null,"NC020","HA WILSON",55.12,51.45]
[null,null,null,null,null,"NC021","HA COUNTY OF WAKE",66.540000000000006,62.09]
[null,null,null,null,null,"NC022","H/A CITY OF GREENVILLE",55.69,51.98]
[null,null,null,null,null,"NC025","HA ROCKINGHAM",55.12,51.45]
[null,null,null,null,null,"NC032","HA WASHINGTON",55.69,51.98]
[null,null,null,null,null,"NC035","HA SANFORD",55.64,51.93]
[null,null,null,null,null,"NC039","HA LEXINGTON",57.04,53.25]
[null,null,null,null,null,"NC043","TROY HOUSING AUTHORITY",55.12,51.45]
[null,null,null,null,null,"NC050","HA WADESBORO",55.69,51.98]
[null,null,null,null,null,"NC056","CITY OF  HICKORY PUBLIC HOUISING AUTHORITY",58.68,54.77]
[null,null,null,null,null,"NC057","GASTONIA HOUS AUTH",61.02,56.94]
[null,null,null,null,null,"NC059","H A GRAHAM",57.63,53.8]
[null,null,null,null,null,"NC065","HA MONROE",61.02,56.94]
[null,null,null,null,null,"NC070","HA LINCOLNTON",60.39,56.36]
[null,null,null,null,null,"NC071","HA THOMASVILLE",57.04,53.25]
[null,null,null,null,null,"NC072","STATESVILLE HOUSING AUTHORITY",60.13,56.13]
[null,null,null,null,null,"NC075","HA ALBEMARLE",55.12,51.45]
[null,null,null,null,null,"NC077","HA WILLIAMSTON",55.12,51.45]
[null,null,null,null,null,"NC081","HA ASHEBORO",57.63,53.8]
[null,null,null,null,null,"NC087","HA MIDEAST REGIONAL",55.69,51.98]
[null,null,null,null,null,"NC089","HA BLADENBORO",55.12,51.45]
[null,null,null,null,null,"NC098","HA REIDSVILLE",55.69,51.98]
[null,null,null,null,null,"NC102","HA ROWAN COUNTY",60.39,56.36]
[null,null,null,null,null,"NC104","ORANGE COUNTY",66.540000000000006,62.09]
[null,null,null,null,null,"NC118","HA ROANOKE CHOWAN REG HSG AUTHORITY",55.12,51.45]
[null,null,null,null,null,"NC120","CHATHAM COUNTY HSG AUT",66.540000000000006,62.09]
[null,null,null,null,null,"NC134","EAST SPENCER HOUS AUTH",60.39,56.36]
[null,null,null,null,null,"NC137","NASH EDGECOMBE ECON",55.69,51.98]
[null,null,null,null,null,"NC138","COLUMBUS CTY PHA",55.12,51.45]
[null,null,null,null,null,"NC139","CHOANOKE AREA DEV ASSN",55.12,51.45]
[null,null,null,null,null,"NC140","WESTERN CAROLINA COMM ACTION",55.69,51.98]
[null,null,null,null,null,"NC141","COASTAL COMMUNITY ACTION, INC.",55.12,51.45]
[null,null,null,null,null,"NC144","EASTERN CAROLINA HUMAN SVC AGCY",55.69,51.98]
[null,null,null,null,null,"NC145","ECONOMIC IMPROVEMENT COUNCIL, INC.",68.22,63.67]
[null,null,null,null,null,"NC146","FOUR SQUARE COMM ACT, INC",55.12,51.45]
[null,null,null,null,null,"NC147","BRUNSWICK COUNTY PUBLIC HOUSING AGENCY",55.69,51.98]
[null,null,null,null,null,"NC149","SANDHILLS COMM ACTION PROG INC",55.12,51.45]
[null,null,null,null,null,"NC150","FOUR COUNTY COMMUNITY SERVICES INC",55.12,51.45]
[null,null,null,null,null,"NC151","TWIN RIVERS OPPORTUNITIES INC",55.12,51.45]
[null,null,null,null,null,"NC152","MOUNTAIN PROJECTS, INC.",55.69,51.98]
[null,null,null,null,null,"NC154","JACKSON COUNTY",55.12,51.45]
[null,null,null,null,null,"NC155","FRANKLIN VANCE WARREN OPP'TY INC",66.540000000000006,62.09]
[null,null,null,null,null,"NC158","COUNTY OF HARNETT",55.12,51.45]
[null,null,null,null,null,"NC159","WESTERN PIEDMONT COUNCIL OF GOVT",58.68,54.77]
[null,null,null,null,null,"NC160","CASWELL CO. SECT.8 HOUSING",55.12,51.45]
[null,null,null,null,null,"NC161","ISOTHERMAL PLANNING & DEV COMM",55.12,51.45]
[null,null,null,null,null,"NC163","GREENE CTY PUBLIC HSG AGENCY",55.69,51.98]
[null,null,null,null,null,"NC164","JOHNSTON CTY HAP PROGRAM",66.540000000000006,62.09]
[null,null,null,null,null,"NC165","MACON PROGRAM FOR PROGRESS",55.12,51.45]
[null,null,null,null,null,"NC166","NORTHWEST PIEDMONT CO OF GOV",57.63,53.8]
[null,null,null,null,null,"NC167","HA NORTHWESTERN REGIONAL",66.97,62.5]
[null,null,null,null,null,"NC173","PENDER COUNTY HOUSING AUTH.",55.69,51.98]
[null,null,null,null,null,"NC175","HA MADISON COUNTY",55.69,51.98]
[null,null,null,null,null,"NC901","NC COMM OF INDIAN AFRS",55.12,51.45]
[null,null,null,null,null,"NC902","N.C. HOUSING FINANCE AGENCY",66.540000000000006,62.09]
[null,null,null,null,null,"ND001","HOUSING AUTHORITY OF CASS COUNTY",59.49,55.52]
[null,null,null,null,null,"ND002","HOUSING AUTHORITY OF THE CITY OF WILLISTON",51.28,47.86]
[null,null,null,null,null,"ND003","ROLETTE COUNTY HOUSING AUTHORITY",51.28,47.86]
[null,null,null,null,null,"ND009","TOWNER COUNTY HOUSING AUTHORITY",51.28,47.86]
[null,null,null,null,null,"ND010","MORTON COUNTY HOUSING AUTHORITY",59.62,55.64]
[null,null,null,null,null,"ND011","STUTSMAN COUNTY HOUSING AUTHORITY",51.28,47.86]
[null,null,null,null,null,"ND012","GRAND FORKS HOUSING AUTHORITY",56.86,53.08]
[null,null,null,null,null,"ND013","RAMSEY COUNTY HOUSING AUTHORITY",51.28,47.86]
[null,null,null,null,null,"ND014","FARGO HOUSING AND REDEVELOPMENT AUTHORITY",59.49,55.52]
[null,null,null,null,null,"ND015","MERCER COUNTY HOUSING AUTHORITY",51.28,47.86]
[null,null,null,null,null,"ND016","EDDY COUNTY",51.28,47.86]
[null,null,null,null,null,"ND017","MINOT HOUSING AUTHORITY",51.28,47.86]
[null,null,null,null,null,"ND019","TRAIL COUNTY HOUSING AUTHORITY",51.28,47.86]
[null,null,null,null,null,"ND021","BURLEIGH COUNTY HOUSING AUTHORITY",59.62,55.64]
[null,null,null,null,null,"ND022","BARNES COUNTY HOUSING AUTHORITY",51.28,47.86]
[null,null,null,null,null,"ND024","CAVALIER COUNTY HOUSING AUTHORITY",51.28,47.86]
[null,null,null,null,null,"ND025","HOUSING AUTHORITY OF THE COUNTY OF RANSOM",51.28,47.86]
[null,null,null,null,null,"ND026","HOUSING AUTHORITY OF MOUNTRAIL COUNTY",51.28,47.86]
[null,null,null,null,null,"ND028","HOUSING AUTHORITY OF FOSTER COUNTY",51.28,47.86]
[null,null,null,null,null,"ND030","BENSON COUNTY HOUSING AUTHORITY",51.28,47.86]
[null,null,null,null,null,"ND031","STARK COUNTY HOUSING AUTHORITY",51.28,47.86]
[null,null,null,null,null,"ND035","RICHLAND COUNTY HOUSING AUTHORITY",51.28,47.86]
[null,null,null,null,null,"ND036","MCKENZIE COUNTY HOUSING AUTHORITY",51.28,47.86]
[null,null,null,null,null,"ND037","DUNN COUNTY HOUSING AUTHORITY",51.28,47.86]
[null,null,null,null,null,"ND038","LA MOURE COUNTY HOUSING AUTHORITY",51.28,47.86]
[null,null,null,null,null,"ND039","HOUSING AUTHORITY OF THE COUNTY OF MCINTOSH",51.28,47.86]
[null,null,null,null,null,"ND040","HOUSING AUTHORITY OF THE CITY OF COOPERSTOWN",51.28,47.86]
[null,null,null,null,null,"ND044","PEMBINA COUNTY HOUSING AUTHORITY",51.28,47.86]
[null,null,null,null,null,"ND049","WALSH COUNTY HOUSING AUTHORITY",51.28,47.86]
[null,null,null,null,null,"ND052","DICKEY/SARGENT HOUSING AUTHORITY",51.28,47.86]
[null,null,null,null,null,"ND054","EMMONS COUNTY HOUSING AUTHORITY",51.28,47.86]
[null,null,null,null,null,"ND055","MCHENRY/PIERCE COUNTY HOUSING AUTHORITY",51.28,47.86]
[null,null,null,null,null,"ND057","HOUSING AUTHORITY OF THE COUNTY OF WELLS",51.28,47.86]
[null,null,null,null,null,"ND070","NORTHWEST REGIONAL HOUSING AUTHORITY",51.28,47.86]
[null,null,null,null,null,"ND901","NORTH DAKOTA HOUSING FINANCE AGENCY",59.62,55.64]
[null,null,null,null,null,"NE001","OMAHA HOUSING AUTHORITY",57.51,53.68]
[null,null,null,null,null,"NE002","HOUSING AUTHORITY OF LINCOLN",56.76,52.98]
[null,null,null,null,null,"NE003","HALL COUNTY HOUSING AUTHORITY",54.27,50.66]
[null,null,null,null,null,"NE004","KEARNEY HOUSING AUTHORITY",54.27,50.66]
[null,null,null,null,null,"NE010","LEXINGTON HOUSING AUTHORITY",54.27,50.66]
[null,null,null,null,null,"NE012","NEBRASKA CITY HOUSING AUTHORITY",54.27,50.66]
[null,null,null,null,null,"NE041","CRETE HOUSING AUTHORITY",54.27,50.66]
[null,null,null,null,null,"NE078","SCOTTS BLUFF COUNTY HOUSING AUTHORITY",54.27,50.66]
[null,null,null,null,null,"NE083","COZAD HOUSING AUTHORITY",54.27,50.66]
[null,null,null,null,null,"NE092","BLAIR HOUSING AUTHORITY",57.51,53.68]
[null,null,null,null,null,"NE094","YORK HSG AUTHORITY",54.27,50.66]
[null,null,null,null,null,"NE100","FREMONT HOUSING AUTHORITY",54.27,50.66]
[null,null,null,null,null,"NE104","COLUMBUS HOUSING AUTHORITY",54.27,50.66]
[null,null,null,null,null,"NE114","BEATRICE HOUSING AUTHORITY",54.27,50.66]
[null,null,null,null,null,"NE120","GOTHENBURG HOUSING AUTHORITY",54.27,50.66]
[null,null,null,null,null,"NE123","MCCOOK HOUSING AUTHORITY",54.27,50.66]
[null,null,null,null,null,"NE125","NORTH PLATTE HOUSING AUTHORITY",54.27,50.66]
[null,null,null,null,null,"NE141","ALLIANCE HOUSING AUTHORITY",54.27,50.66]
[null,null,null,null,null,"NE143","CHADRON HOUSING AUTHORITY",54.27,50.66]
[null,null,null,null,null,"NE150","HASTINGS HOUSING AUTHORITY",54.27,50.66]
[null,null,null,null,null,"NE153","DOUGLAS COUNTY HOUSING AUTHORITY",57.51,53.68]
[null,null,null,null,null,"NE157","NORFOLK HOUSING AUTHORITY",54.27,50.66]
[null,null,null,null,null,"NE174","BELLEVUE HOUSING AUTHORITY",57.51,53.68]
[null,null,null,null,null,"NE175","SOUTH SIOUX CITY HOUSING AUTHORITY",57.02,53.23]
[null,null,null,null,null,"NE179","WEST CENTRAL HOUSING AUTHORITY",54.27,50.66]
[null,null,null,null,null,"NE180","NORTHEAST NEBRASKA JOINT HSG AUTH",57.02,53.23]
[null,null,null,null,null,"NE181","GOLDENROD REGIONAL HSG AUTH",54.27,50.66]
[null,null,null,null,null,"NE182","CENTRAL NEBRASKA JOINT HSG AUTH",54.27,50.66]
[null,null,null,null,null,"NH001","MANCHESTER HOUSING AUTHORITY",79.349999999999994,74.05]
[null,null,null,null,null,"NH002","NASHUA HOUSING AUTHORITY",84.3,78.67]
[null,null,null,null,null,"NH003","DOVER HOUSING AUTHORITY",82.16,76.69]
[null,null,null,null,null,"NH004","PORTSMOUTH HOUSING AUTHORITY",82.16,76.69]
[null,null,null,null,null,"NH005","CONCORD HOUSING AUTHORITY",91.32,85.22]
[null,null,null,null,null,"NH006","SOMERSWORTH HOUSING AUTHORITY",82.16,76.69]
[null,null,null,null,null,"NH007","LACONIA HOUSING & REDEVELOPMNT AUTH",71.930000000000007,67.13]
[null,null,null,null,null,"NH008","ROCHESTER HOUSING AUTHORITY",82.16,76.69]
[null,null,null,null,null,"NH009","LEBANON HOUSING AUTHORITY",74.25,69.290000000000006]
[null,null,null,null,null,"NH010","KEENE HOUSING AUTHORITY",85.34,79.650000000000006]
[null,null,null,null,null,"NH011","BERLIN H A",65.459999999999994,61.1]
[null,null,null,null,null,"NH012","CLAREMONT HOUSING AUTHORITY",69.73,65.08]
[null,null,null,null,null,"NH013","NEWMARKET HOUSING AUTHORITY",82.16,76.69]
[null,null,null,null,null,"NH014","EXETER HOUSING AUTHORITY",82.16,76.69]
[null,null,null,null,null,"NH015","LANCASTER HOUSING AUTHORITY",65.459999999999994,61.1]
[null,null,null,null,null,"NH016","NORTHUMBERLAND HSG AUTHORITY",65.459999999999994,61.1]
[null,null,null,null,null,"NH018","FRANKLIN H A",91.32,85.22]
[null,null,null,null,null,"NH022","DERRY HOUSING & REDEVELOPMENT AUTHORITY",96.21,89.8]
[null,null,null,null,null,"NH888","HARBOR HOMES, INC",84.3,78.67]
[null,null,null,null,null,"NH901","NEW HAMPSHIRE HOUSING FINANCE AUTH",100.7,93.98]
[null,null,null,null,null,"NJ002","NEWARK HOUSING AUTHORITY",95.18,88.82]
[null,null,null,null,null,"NJ003","ELIZABETH HOUSING AUTHORITY",95.18,88.82]
[null,null,null,null,null,"NJ004","NORTH BERGEN HOUSING AUTHORITY",81.239999999999995,75.819999999999993]
[null,null,null,null,null,"NJ006","PERTH AMBOY HOUSING AUTHORITY",97.47,90.98]
[null,null,null,null,null,"NJ007","ASBURY PARK HOUSING AUTHORITY",95.42,89.06]
[null,null,null,null,null,"NJ008","LONG BRANCH HOUSING AUTHORITY",95.42,89.06]
[null,null,null,null,null,"NJ009","JERSEY CITY HOUSING AUTHORITY",81.239999999999995,75.819999999999993]
[null,null,null,null,null,"NJ010","CAMDEN HOUSING AUTHORITY",73.739999999999995,68.83]
[null,null,null,null,null,"NJ011","LODI HOUSING AUTHORITY",97.47,90.98]
[null,null,null,null,null,"NJ012","BAYONNE HOUSING AUTHORITY",81.239999999999995,75.819999999999993]
[null,null,null,null,null,"NJ013","PASSAIC HOUSING AUTHORITY",97.47,90.98]
[null,null,null,null,null,"NJ014","ATLANTIC CITY HOUSING AUTHORITY",80.489999999999995,75.13]
[null,null,null,null,null,"NJ015","HOBOKEN HOUSING AUTHORITY",81.239999999999995,75.819999999999993]
[null,null,null,null,null,"NJ021","PATERSON HOUSING AUTHORITY",97.47,90.98]
[null,null,null,null,null,"NJ022","NEW BRUNSWICK HA",97.47,90.98]
[null,null,null,null,null,"NJ023","MORRISTOWN HOUSING AUTHORITY",95.18,88.82]
[null,null,null,null,null,"NJ025","ORANGE CITY HOUSING AUTHORITY",95.18,88.82]
[null,null,null,null,null,"NJ026","UNION CITY HOUSING AUTHORITY",81.239999999999995,75.819999999999993]
[null,null,null,null,null,"NJ030","WEST NEW YORK HOUSING AUTHORITY",81.239999999999995,75.819999999999993]
[null,null,null,null,null,"NJ032","RAHWAY HOUSING AUTHORITY",95.18,88.82]
[null,null,null,null,null,"NJ033","WOODBRIDGE HOUSING AUTHORITY",97.47,90.98]
[null,null,null,null,null,"NJ035","SOUTH AMBOY HOUSING AUTHORITY",97.47,90.98]
[null,null,null,null,null,"NJ036","GUTTENBERG HOUSING AUTHORITY",81.239999999999995,75.819999999999993]
[null,null,null,null,null,"NJ037","IRVINGTON HOUSING AUTHORITY",95.18,88.82]
[null,null,null,null,null,"NJ039","PLAINFIELD HOUSING AUTHORITY",95.18,88.82]
[null,null,null,null,null,"NJ042","FRANKLIN TOWNSHIP HOUSING AUTHORITY",97.47,90.98]
[null,null,null,null,null,"NJ043","EDISON HOUSING AUTHORITY",97.47,90.98]
[null,null,null,null,null,"NJ044","HIGHLAND PARK HOUSING AUTHORITY",97.47,90.98]
[null,null,null,null,null,"NJ046","RED BANK HOUSING AUTHORITY",95.42,89.06]
[null,null,null,null,null,"NJ047","CARTERET HOUSING AUTHORITY",97.47,90.98]
[null,null,null,null,null,"NJ048","NEPTUNE HOUS AUTH",95.42,89.06]
[null,null,null,null,null,"NJ049","BRIDGETON HOUSING AUTHORITY",77.38,72.22]
[null,null,null,null,null,"NJ050","EAST ORANGE HOUSING AUTHORITY",95.18,88.82]
[null,null,null,null,null,"NJ051","GLASSBORO HOUSING AUTHORITY",73.739999999999995,68.83]
[null,null,null,null,null,"NJ052","BOONTON HOUSING AUTHORITY",95.18,88.82]
[null,null,null,null,null,"NJ054","LAKEWOOD HOUSING AUTHORITY",95.42,89.06]
[null,null,null,null,null,"NJ055","ENGLEWOOD HOUSING AUTHORITY",97.47,90.98]
[null,null,null,null,null,"NJ056","BERKELEY HOUSING AUTHORITY",95.42,89.06]
[null,null,null,null,null,"NJ058","SALEM HOUSING AUTHORITY",73.739999999999995,68.83]
[null,null,null,null,null,"NJ059","PLEASANTVILLE HOUSING AUTHORITY",80.489999999999995,75.13]
[null,null,null,null,null,"NJ060","KEANSBURG HOUSING AUTHORITY",95.42,89.06]
[null,null,null,null,null,"NJ061","MILLVILLE HOUSING AUTHORITY",77.38,72.22]
[null,null,null,null,null,"NJ063","VINELAND HOUSING AUTHORITY",77.38,72.22]
[null,null,null,null,null,"NJ065","BRICK HOUS AUTH",95.42,89.06]
[null,null,null,null,null,"NJ066","CITY OF LINDEN",95.18,88.82]
[null,null,null,null,null,"NJ067","BERGEN COUNTY HOUSING AUTHORITY",97.47,90.98]
[null,null,null,null,null,"NJ068","DOVER HOUSING AUTHORITY",95.18,88.82]
[null,null,null,null,null,"NJ070","CLIFFSIDE PARK HOUSING AUTHORITY",97.47,90.98]
[null,null,null,null,null,"NJ071","FORT LEE HOUSING AUTHORITY",97.47,90.98]
[null,null,null,null,null,"NJ073","CLEMENTON HOUSING AUTHORITY",73.739999999999995,68.83]
[null,null,null,null,null,"NJ074","PENNS GROVE HOUSING AUTHORITY",73.739999999999995,68.83]
[null,null,null,null,null,"NJ075","EDGEWATER HOUSING AUTHORITY",97.47,90.98]
[null,null,null,null,null,"NJ077","WEEHAWKEN HOUSING AUTHORITY",81.239999999999995,75.819999999999993]
[null,null,null,null,null,"NJ081","MIDDLETOWN HOUS AUTH",95.42,89.06]
[null,null,null,null,null,"NJ083","SECAUCUS HOUSING AUTHORITY",81.239999999999995,75.819999999999993]
[null,null,null,null,null,"NJ084","HUNTERDON  HOUSING AUTHORITY",97.47,90.98]
[null,null,null,null,null,"NJ086","MONTCLAIR HOUSING AUTHORITY",95.18,88.82]
[null,null,null,null,null,"NJ088","PHILLIPSBURG HOUSING AUTHORITY",95.18,88.82]
[null,null,null,null,null,"NJ089","CLIFTON HOUSING AUTHORITY",97.47,90.98]
[null,null,null,null,null,"NJ090","PASSAIC COUNTY HOUSING AUTHORITY",97.47,90.98]
[null,null,null,null,null,"NJ091","PATERSON DCD HOUSING AUTHORITY",97.47,90.98]
[null,null,null,null,null,"NJ092","MORRIS COUNTY HOUSING AUTHORITY",95.18,88.82]
[null,null,null,null,null,"NJ095","MONMOUTH COUNTY HOUSING AUTHORITY",95.42,89.06]
[null,null,null,null,null,"NJ097","SOMERVILLE HOUSING AUTHORITY",97.47,90.98]
[null,null,null,null,null,"NJ099","BLOOMFIELD HOUSING AUTHORITY",95.18,88.82]
[null,null,null,null,null,"NJ102","WARREN COUNTY HOUSING AUTHORITY",95.18,88.82]
[null,null,null,null,null,"NJ105","MADISON HOUSING AUTHORITY",95.18,88.82]
[null,null,null,null,null,"NJ106","SAYREVILLE HOUS AUTH",97.47,90.98]
[null,null,null,null,null,"NJ108","WEST ORANGE HOUSING AUTHORITY",95.18,88.82]
[null,null,null,null,null,"NJ109","UNION TOWNSHIP HOUSING AUTHORITY",95.18,88.82]
[null,null,null,null,null,"NJ110","OLD BRIDGE HOUSING AUTHORITY",97.47,90.98]
[null,null,null,null,null,"NJ112","MANVILLE HOUSING AUTHORITY",97.47,90.98]
[null,null,null,null,null,"NJ113","UNION COUNTY HOUSING AUTHORITY",95.18,88.82]
[null,null,null,null,null,"NJ114","MIDDLESEX COUNTY HOUSING AUTHORITY",97.47,90.98]
[null,null,null,null,null,"NJ115","CHERRY HILL HOUSING AUTHORITY",73.739999999999995,68.83]
[null,null,null,null,null,"NJ118","PENNSAUKEN HOUSING AUTHORITY",73.739999999999995,68.83]
[null,null,null,null,null,"NJ204","GLOUCESTER HOUSING AUTHORITY",73.739999999999995,68.83]
[null,null,null,null,null,"NJ211","CAPE MAY HOUSING AUTHORITY",80.489999999999995,75.13]
[null,null,null,null,null,"NJ212","HAMILTON HOUSING AUTHORITY",93.51,87.28]
[null,null,null,null,null,"NJ214","LAKEWOOD HOUSING AUTHORITY",95.42,89.06]
[null,null,null,null,null,"NJ215","BURLINGTON COUNTY HOUSING AUTHORITY",73.739999999999995,68.83]
[null,null,null,null,null,"NJ880","COLLABORATIVE SUPPORT PROGRAMS",95.42,89.06]
[null,null,null,null,null,"NJ881","COMMUNITY ENTERPRISES CORP",81.239999999999995,75.819999999999993]
[null,null,null,null,null,"NJ882","JERSEY CITY EPISCOPAL CDC",95.18,88.82]
[null,null,null,null,null,"NJ902","NEW JERSEY HOUSING & MORTGAGE FINANCE AGENCY",97.47,90.98]
[null,null,null,null,null,"NJ912","NEW JERSEY DEPARTMENT OF COMMUNITY AFFAIRS",97.47,90.98]
[null,null,null,null,null,"NM001","ALBUQUERQUE HSG AUTHORITY",70.41,65.709999999999994]
[null,null,null,null,null,"NM002","CLOVIS HOUSING AUTHORITY",52.47,48.97]
[null,null,null,null,null,"NM003","LAS CRUCES HSG AUTHORITY",55.88,52.15]
[null,null,null,null,null,"NM004","HA OF THE CITY OF  ALAMOGORDO",53.09,49.55]
[null,null,null,null,null,"NM006","GALLUP HSG AUTHORITY",67.8,63.28]
[null,null,null,null,null,"NM009","SANTA FE CIVIC HOUSING AUTHORITY",83.32,77.760000000000005]
[null,null,null,null,null,"NM010","HSG AUTH CITY OF ESPANOLA",83.32,77.760000000000005]
[null,null,null,null,null,"NM020","TRUTH OR CONSEQUENCES HSG AUTHORITY",53.09,49.55]
[null,null,null,null,null,"NM030","HOUSING AUTHORITY CITY OF GRANTS",52.47,48.97]
[null,null,null,null,null,"NM033","TUCUMCARI HOUSING AUTHORITY",52.47,48.97]
[null,null,null,null,null,"NM034","LORDSBURG HOUSING AUTHORITY",52.47,48.97]
[null,null,null,null,null,"NM035","BERNALILLO (TOWN OF) HSG AUTH",70.41,65.709999999999994]
[null,null,null,null,null,"NM038","TAOS COUNTY HSG AUTHORITY",55.95,52.23]
[null,null,null,null,null,"NM039","HSG AUTH OF RIO ARRIBA",52.47,48.97]
[null,null,null,null,null,"NM042","MORA COUNTY HSG AUTHORITY",52.47,48.97]
[null,null,null,null,null,"NM050","SANTA FE COUNTY HSG AUTHORITY",83.32,77.760000000000005]
[null,null,null,null,null,"NM057","BERNALILLO COUNTY HSG DEPT",70.41,65.709999999999994]
[null,null,null,null,null,"NM061","SAN MIGUEL COUNTY HA",52.47,48.97]
[null,null,null,null,null,"NM062","DONA ANA  HSG AUTHORITY",55.88,52.15]
[null,null,null,null,null,"NM063","REGION VI REGIONAL HSG AUTHORITY",53.09,49.55]
[null,null,null,null,null,"NM064","REGION IV HOUSING AUTHORITY",52.47,48.97]
[null,null,null,null,null,"NM066","SAN JUAN COUNTY HSG AUTHORITY",69.290000000000006,64.66]
[null,null,null,null,null,"NM067","REGION V HOUSING AUTHORITY",52.47,48.97]
[null,null,null,null,null,"NM069","MOUNTAINAIR HOUSING AUTHORITY",70.41,65.709999999999994]
[null,null,null,null,null,"NM070","LOS LUNAS (VILLAGE OF) HSG AUTH",70.41,65.709999999999994]
[null,null,null,null,null,"NM071","CUBA (VILLAGE OF) HOUSING AUTHORITY",70.41,65.709999999999994]
[null,null,null,null,null,"NM076","REGION II HOUSING AUTHORITY",81.53,76.09]
[null,null,null,null,null,"NM077","SOCORRO COUNTY HOUSING AUTHORITY",53.09,49.55]
[null,null,null,null,null,"NV001","CITY OF RENO HSG AUTHORITY",71.56,66.8]
[null,null,null,null,null,"NV007","NORTH LAS VEGAS HOUSING AUTHORITY",82.6,77.099999999999994]
[null,null,null,null,null,"NV013","COUNTY OF CLARK HOUSING AUTHORITY",82.6,77.099999999999994]
[null,null,null,null,null,"NV014","SOUTHERN NEVADA REGIONAL HOUSING AUTH",82.6,77.099999999999994]
[null,null,null,null,null,"NV905","NEVADA RURAL HSG AUTH",73.67,68.760000000000005]
[null,null,null,null,null,"NV906","ASI SO NEVADA MAINSTREAM HSG VOUCHER",82.6,77.099999999999994]
[null,null,null,null,null,"NY001","HA OF SYRACUSE",60.97,56.91]
[null,null,null,null,null,"NY002","BUFFALO MUNICIPAL HOUSING AUTH",56.99,53.2]
[null,null,null,null,null,"NY003","MUNICIPAL HOUS AUTH CITY OF YONKERS",94.91,88.59]
[null,null,null,null,null,"NY005","NEW YORK CITY HOUSING AUTHORITY",82.5,77]
[null,null,null,null,null,"NY006","HA OF UTICA CITY",55.82,52.11]
[null,null,null,null,null,"NY009","ALBANY HOUSING AUTHORITY",66.260000000000005,61.84]
[null,null,null,null,null,"NY012","HA OF TROY",66.260000000000005,61.84]
[null,null,null,null,null,"NY015","HA OF MECHANICVILLE",66.260000000000005,61.84]
[null,null,null,null,null,"NY016","BINGHAMTON HOUSING AUTHORITY",57.82,53.96]
[null,null,null,null,null,"NY017","HA OF JAMESTOWN",50.42,47.06]
[null,null,null,null,null,"NY018","HA OF PLATTSBURGH",53.45,49.88]
[null,null,null,null,null,"NY019","HA OF HERKIMER",55.82,52.11]
[null,null,null,null,null,"NY020","HA OF SARATOGA SPRINGS",66.260000000000005,61.84]
[null,null,null,null,null,"NY021","HA OF CORTLAND",58.21,54.33]
[null,null,null,null,null,"NY022","HA OF COHOES",66.260000000000005,61.84]
[null,null,null,null,null,"NY023","HA OF FREEPORT",94.91,88.59]
[null,null,null,null,null,"NY025","HA OF WATERVLIET",66.260000000000005,61.84]
[null,null,null,null,null,"NY027","CITY OF OSWEGO",60.97,56.91]
[null,null,null,null,null,"NY028","HA OF SCHENECTADY",66.260000000000005,61.84]
[null,null,null,null,null,"NY033","HA OF RENSSELAER",66.260000000000005,61.84]
[null,null,null,null,null,"NY034","HA OF ROME",55.82,52.11]
[null,null,null,null,null,"NY035","HA OF HUNTINGTON",94.91,88.59]
[null,null,null,null,null,"NY038","MOUNT KISKO HOUS AUTH",94.91,88.59]
[null,null,null,null,null,"NY039","HA OF OGDENSBURG",52.8,49.28]
[null,null,null,null,null,"NY041","HA OF ROCHESTER",69.75,65.099999999999994]
[null,null,null,null,null,"NY044","HA OF GENEVA",69.75,65.099999999999994]
[null,null,null,null,null,"NY045","KINGSTON HOUSING AUTHORITY",74.62,69.650000000000006]
[null,null,null,null,null,"NY046","TOWN OF HEMPSTEAD HOUS AUTH",94.91,88.59]
[null,null,null,null,null,"NY048","HA OF GLOVERSVILLE",47.82,44.63]
[null,null,null,null,null,"NY049","HA OF BEACON",84.8,79.150000000000006]
[null,null,null,null,null,"NY050","HA OF LONG BEACH",94.91,88.59]
[null,null,null,null,null,"NY051","NEWBURGH HOUSING AUTHORITY",84.8,79.150000000000006]
[null,null,null,null,null,"NY054","HA OF ITHACA",65.17,60.83]
[null,null,null,null,null,"NY055","HA OF OYSTER BAY",94.91,88.59]
[null,null,null,null,null,"NY057","HA OF GREENBURGH",94.91,88.59]
[null,null,null,null,null,"NY059","HA OF ILION VILLAGE",55.82,52.11]
[null,null,null,null,null,"NY060","HA OF AMSTERDAM",61.25,57.17]
[null,null,null,null,null,"NY061","CITY OF HUDSON",55.21,51.53]
[null,null,null,null,null,"NY062","POUGHKEEPSIE HOUSING AUTHORITY",84.8,79.150000000000006]
[null,null,null,null,null,"NY065","HA OF NORWICH",55.93,52.21]
[null,null,null,null,null,"NY066","HA OF AUBURN",56.36,52.61]
[null,null,null,null,null,"NY067","HA OF HORNELL",53.35,49.78]
[null,null,null,null,null,"NY068","HA OF ONEONTA",52.26,48.77]
[null,null,null,null,null,"NY070","HA OF LOCKPORT",56.99,53.2]
[null,null,null,null,null,"NY071","HA OF MONTICELLO",62.49,58.32]
[null,null,null,null,null,"NY073","WHITEHALL HOUSING AUTHORITY",62.73,58.55]
[null,null,null,null,null,"NY077","TOWN OF ISLIP HOUSING AUTHORITY",94.91,88.59]
[null,null,null,null,null,"NY079","HA OF GLENS FALLS",62.73,58.55]
[null,null,null,null,null,"NY083","VILLAGE OF LIBERTY HOUSING AUTHORITY",62.49,58.32]
[null,null,null,null,null,"NY084","TOWN OF RAMAPO HOUSING AUTHORITY",82.5,77]
[null,null,null,null,null,"NY085","HEMPSTEAD HOUSING AUTHORITY",94.91,88.59]
[null,null,null,null,null,"NY086","HA OF NORTH HEMPSTEAD",94.91,88.59]
[null,null,null,null,null,"NY087","HA OF HARRIETSTOWN",51.4,47.97]
[null,null,null,null,null,"NY088","HA OF NEW ROCHELLE",94.91,88.59]
[null,null,null,null,null,"NY089","NEWARK HOUSING AUTHORITY",69.75,65.099999999999994]
[null,null,null,null,null,"NY091","TOWN OF AMHERST",56.99,53.2]
[null,null,null,null,null,"NY094","VILLAGE OF OSSINING",94.91,88.59]
[null,null,null,null,null,"NY098","HA OF ST JOHNSVILLE",61.25,57.17]
[null,null,null,null,null,"NY101","VILLAGE OF MAMARONECK HOUSING AUTHORITY",94.91,88.59]
[null,null,null,null,null,"NY102","HA OF ONEIDA",60.97,56.91]
[null,null,null,null,null,"NY103","VILLAGE OF ELLENVILLE HOUSING AUTHORITY",74.62,69.650000000000006]
[null,null,null,null,null,"NY107","HOUSING AUTHORITY OF NORTH SYRACUSE",60.97,56.91]
[null,null,null,null,null,"NY109","LITTLE FALLS HOUSING AUTHORITY",55.82,52.11]
[null,null,null,null,null,"NY110","THE CITY OF NEW YORK",82.5,77]
[null,null,null,null,null,"NY111","TOWN OF EASTCHESTER",94.91,88.59]
[null,null,null,null,null,"NY113","CITY OF NEW ROCHELLE",94.91,88.59]
[null,null,null,null,null,"NY114","VILLAGE OF NYACK HOUSING AUTHORITY",82.5,77]
[null,null,null,null,null,"NY115","THE CITY OF WHITE PLAINS",94.91,88.59]
[null,null,null,null,null,"NY116","VILLAGE OF PELHAM HOUSING  AUTHORITY",94.91,88.59]
[null,null,null,null,null,"NY117","TOWN OF MAMARONECK PHA",94.91,88.59]
[null,null,null,null,null,"NY118","VILLAGE OF PORT CHESTER COMMUNITY DEVELOPMENT DEPT",94.91,88.59]
[null,null,null,null,null,"NY120","ISLAND PARK HOUSING AUTHORITY",94.91,88.59]
[null,null,null,null,null,"NY121","GLEN COVE CDA",94.91,88.59]
[null,null,null,null,null,"NY123","CITY OF PEEKSKILL",94.91,88.59]
[null,null,null,null,null,"NY125","VILLAGE OF HIGHLAND FALLS",84.8,79.150000000000006]
[null,null,null,null,null,"NY127","RIVERHEAD HOUSING DEVELOPMENT",94.91,88.59]
[null,null,null,null,null,"NY128","VILLAGE OF PATCHOGUE CDA",94.91,88.59]
[null,null,null,null,null,"NY130","TOWN OF BABYLON HOUSING ASSISTANCE AGENCY",94.91,88.59]
[null,null,null,null,null,"NY132","TOWN OF YORKTOWN",94.91,88.59]
[null,null,null,null,null,"NY134","PORT JARVIS",84.8,79.150000000000006]
[null,null,null,null,null,"NY137","CITY OF POUGHKEEPSIE MUNICIPAL BLDG",84.8,79.150000000000006]
[null,null,null,null,null,"NY138","VILLAGE OF NEW SQUARE PHA",82.5,77]
[null,null,null,null,null,"NY139","KINGSTON COMMUNITY DEVELOPMENT AGENCY",74.62,69.650000000000006]
[null,null,null,null,null,"NY141","TOWN OF SOUTHAMPTON",94.91,88.59]
[null,null,null,null,null,"NY146","VILLAGE OF GREENPORT",94.91,88.59]
[null,null,null,null,null,"NY147","VILLAGE OF SEA CLIFF",94.91,88.59]
[null,null,null,null,null,"NY148","VILLAGE OF SPRING VALLEY CDA",82.5,77]
[null,null,null,null,null,"NY149","TOWN OF BROOKHAVEN DEPT OF HSG COMM DEVELOPMENT",94.91,88.59]
[null,null,null,null,null,"NY151","VILLAGE OF FARMINGDALE HOUSING AUTHORITY",94.91,88.59]
[null,null,null,null,null,"NY152","NORTH FORK HSG ALLIANCE INC",94.91,88.59]
[null,null,null,null,null,"NY154","TOWN OF EAST HAMPTON",94.91,88.59]
[null,null,null,null,null,"NY155","TOWN OF SMITHTOWN",94.91,88.59]
[null,null,null,null,null,"NY158","VILLAGE OF KIRYAS JOEL",84.8,79.150000000000006]
[null,null,null,null,null,"NY159","VILLAGE  OF ROCKVILLE CENTRE",94.91,88.59]
[null,null,null,null,null,"NY160","VILLAGE OF KASER",82.5,77]
[null,null,null,null,null,"NY165","HOUSING AUTHORITY OF TUCKAHOE",94.91,88.59]
[null,null,null,null,null,"NY175","MT VERNON URBAN RENEWAL AGENCY",94.91,88.59]
[null,null,null,null,null,"NY176","VILLAGE OF MOUNT KISCO SEC. 8",94.91,88.59]
[null,null,null,null,null,"NY400","HA OF KENMORE",56.99,53.2]
[null,null,null,null,null,"NY402","VILLAGE OF ELMIRA HEIGHTS",58.88,54.95]
[null,null,null,null,null,"NY403","CITY OF SALAMANCA",47.6,44.43]
[null,null,null,null,null,"NY404","CITY OF NIAGARA FALLS",56.99,53.2]
[null,null,null,null,null,"NY405","CITY OF NORTH TONAWANDA",56.99,53.2]
[null,null,null,null,null,"NY406","VILLAGE OF FAIRPORT",69.75,65.099999999999994]
[null,null,null,null,null,"NY408","TOWN OF COLONIE",66.260000000000005,61.84]
[null,null,null,null,null,"NY409","CITY OF BUFFALO",56.99,53.2]
[null,null,null,null,null,"NY410","VILLAGE OF DELHI",52.26,48.77]
[null,null,null,null,null,"NY413","VILLAGE OF CANAJOHARIE",61.25,57.17]
[null,null,null,null,null,"NY416","TOWN OF CLIFTON PARK",66.260000000000005,61.84]
[null,null,null,null,null,"NY417","DOLGEVILLE HOUSING AUTHORITY",55.82,52.11]
[null,null,null,null,null,"NY418","VILLAGE OF CLINTON",55.82,52.11]
[null,null,null,null,null,"NY419","VILLAGE OF SYLVAN BEACH",55.82,52.11]
[null,null,null,null,null,"NY421","TOWN OF HADLEY",66.260000000000005,61.84]
[null,null,null,null,null,"NY422","TOWN OF GUILDERLAND",66.260000000000005,61.84]
[null,null,null,null,null,"NY423","TOWN OF NEW HARTFORD",55.82,52.11]
[null,null,null,null,null,"NY424","TOWN OF WILTON",66.260000000000005,61.84]
[null,null,null,null,null,"NY425","TOWN OF FORESTPORT",55.82,52.11]
[null,null,null,null,null,"NY426","VILLAGE OF HANCOCK",52.26,48.77]
[null,null,null,null,null,"NY427","TOWN OF BETHLEHEM",66.260000000000005,61.84]
[null,null,null,null,null,"NY428","TOWN OF DUANESBURG",66.260000000000005,61.84]
[null,null,null,null,null,"NY429","VILLAGE OF MARGARETVILLE",52.26,48.77]
[null,null,null,null,null,"NY430","TOWN OF NISKAYUNA",66.260000000000005,61.84]
[null,null,null,null,null,"NY431","TOWN OF SCHODACK",66.260000000000005,61.84]
[null,null,null,null,null,"NY432","VILLAGE OF HORSEHEADS",58.88,54.95]
[null,null,null,null,null,"NY433","CITY OF JOHNSTOWN",47.82,44.63]
[null,null,null,null,null,"NY435","TOWN OF STAMFORD",52.26,48.77]
[null,null,null,null,null,"NY437","CITY OF BINGHAMTON",57.82,53.96]
[null,null,null,null,null,"NY440","TOWN OF MIDDLETOWN",52.26,48.77]
[null,null,null,null,null,"NY441","TOWN OF DAVENPORT",52.26,48.77]
[null,null,null,null,null,"NY443","CITY OF UTICA",55.82,52.11]
[null,null,null,null,null,"NY446","VILLAGE OF DEPOSIT",57.82,53.96]
[null,null,null,null,null,"NY447","TOWN OF KNOX",66.260000000000005,61.84]
[null,null,null,null,null,"NY448","TOWN OF KORTRIGHT",52.26,48.77]
[null,null,null,null,null,"NY449","CITY OF BUFFALO",56.99,53.2]
[null,null,null,null,null,"NY501","HA OF HOOSICK FALLS",66.260000000000005,61.84]
[null,null,null,null,null,"NY503","TOWN OF WATERFORD",66.260000000000005,61.84]
[null,null,null,null,null,"NY504","CITY OF FULTON",60.97,56.91]
[null,null,null,null,null,"NY505","TOWN OF UNION",57.82,53.96]
[null,null,null,null,null,"NY508","VILLAGE OF PHOENIX",60.97,56.91]
[null,null,null,null,null,"NY512","VILLAGE OF SCOTIA",66.260000000000005,61.84]
[null,null,null,null,null,"NY513","TOWN OF GLENVILLE",66.260000000000005,61.84]
[null,null,null,null,null,"NY516","TOWN OF ROTTERDAM",66.260000000000005,61.84]
[null,null,null,null,null,"NY517","VILLAGE OF LAKE PLACID",51.4,47.97]
[null,null,null,null,null,"NY519","TOWN OF CORINTH",66.260000000000005,61.84]
[null,null,null,null,null,"NY520","VILLAGE OF SARANAC LAKE",51.4,47.97]
[null,null,null,null,null,"NY521","CANASTOTA HOUSING AUTHORITY",60.97,56.91]
[null,null,null,null,null,"NY522","TOWN OF JAY",53.45,49.88]
[null,null,null,null,null,"NY523","TOWN OF CAMDEN",55.82,52.11]
[null,null,null,null,null,"NY524","VILLAGE OF WATERVILLE",55.82,52.11]
[null,null,null,null,null,"NY525","VILLAGE OF CLAYVILLE",55.82,52.11]
[null,null,null,null,null,"NY527","VILLAGE OF MANLIUS",60.97,56.91]
[null,null,null,null,null,"NY528","VILLAGE OF SIDNEY",52.26,48.77]
[null,null,null,null,null,"NY529","TOWN OF SAUGERTIES",74.62,69.650000000000006]
[null,null,null,null,null,"NY530","VILLAGE OF FORT PLAIN",61.25,57.17]
[null,null,null,null,null,"NY532","VILLAGE OF COBLESKILL",66.260000000000005,61.84]
[null,null,null,null,null,"NY533","TOWN OF VERNON",55.82,52.11]
[null,null,null,null,null,"NY534","BOONVILLE HOUSING AUTHORITY",55.82,52.11]
[null,null,null,null,null,"NY535","VILLAGE OF GREEN ISLAND",66.260000000000005,61.84]
[null,null,null,null,null,"NY538","VILLAGE OF CORINTH",66.260000000000005,61.84]
[null,null,null,null,null,"NY541","VILLAGE OF WALTON",52.26,48.77]
[null,null,null,null,null,"NY542","TOWN OF WHITESTOWN",55.82,52.11]
[null,null,null,null,null,"NY552","VILLAGE OF NEW HARTFORD",55.82,52.11]
[null,null,null,null,null,"NY557","TOWN OF COEYMANS",66.260000000000005,61.84]
[null,null,null,null,null,"NY561","TOWN OF STILLWATER",66.260000000000005,61.84]
[null,null,null,null,null,"NY562","VILLAGE OF BALLSTON SPA",66.260000000000005,61.84]
[null,null,null,null,null,"NY564","TOWN OF NASSAU",66.260000000000005,61.84]
[null,null,null,null,null,"NY568","TOWN OF POUGHKEEPSIE",84.8,79.150000000000006]
[null,null,null,null,null,"NY630","VILLAGE OF WATERFORD",66.260000000000005,61.84]
[null,null,null,null,null,"NY888","Mercy Haven Inc.",94.91,88.59]
[null,null,null,null,null,"NY889","SOUTHERN TIER ENVIRONMENTS",50.42,47.06]
[null,null,null,null,null,"NY890","NEW YORK SOCIETY FOR THE DEAF",82.5,77]
[null,null,null,null,null,"NY891","OPTIONS FOR COMMUNITY LIVING",94.91,88.59]
[null,null,null,null,null,"NY892","TOWN OF HEMPSTEAD DEPARTMENT OF URBAN RENEWAL",94.91,88.59]
[null,null,null,null,null,"NY893","TRANSITIONAL SVCS OF NY FOR LONG ISLAND",94.91,88.59]
[null,null,null,null,null,"NY894","FAMILY AND CHILDREN'S ASSOCIATION",94.91,88.59]
[null,null,null,null,null,"NY912","NYS HOUSING FINANCE AGENCY",66.260000000000005,61.84]
[null,null,null,null,null,"NY913","NEW YORK STATE HOUSING FINANCE AGENCY",82.5,77]
[null,null,null,null,null,"OH001","COLUMBUS METRO. HA",58.94,55]
[null,null,null,null,null,"OH002","YOUNGSTOWN MHA",53.53,49.95]
[null,null,null,null,null,"OH003","CUYAHOGA MHA",62.14,57.99]
[null,null,null,null,null,"OH004","CINCINNATI METROPOLITAN HSG.AUTH.",60.17,56.15]
[null,null,null,null,null,"OH005","DAYTON METROPOLITAN HA",54.89,51.23]
[null,null,null,null,null,"OH006","LUCAS MHA",61.76,57.64]
[null,null,null,null,null,"OH007","AKRON MHA",61.12,57.05]
[null,null,null,null,null,"OH008","TRUMBULL MHA",53.53,49.95]
[null,null,null,null,null,"OH009","ZANESVILLE MET HA",51.88,48.43]
[null,null,null,null,null,"OH010","PORTSMOUTH METRO HA",51.88,48.43]
[null,null,null,null,null,"OH012","LORAIN MHA",62.14,57.99]
[null,null,null,null,null,"OH014","JEFFERSON MHA",53.89,50.29]
[null,null,null,null,null,"OH015","BUTLER MET.HA",60.17,56.15]
[null,null,null,null,null,"OH016","MANSFIELD MHA",52.66,49.15]
[null,null,null,null,null,"OH018","STARK METROPOLITAN HOUSING AUTH.",52.66,49.15]
[null,null,null,null,null,"OH019","IRONTON METRO HSG AUTHORITY",51.88,48.43]
[null,null,null,null,null,"OH020","BELMONT METRO HSG AUTHORITY",51.88,48.43]
[null,null,null,null,null,"OH021","SPRINGFIELD MET.HA",54.89,51.23]
[null,null,null,null,null,"OH022","GREENE METRO HSG AUTH",54.89,51.23]
[null,null,null,null,null,"OH024","CHILLICOTHE MET HA",51.88,48.43]
[null,null,null,null,null,"OH025","LAKE MHA",62.14,57.99]
[null,null,null,null,null,"OH026","COLUMBIANA MHA",52.74,49.22]
[null,null,null,null,null,"OH027","MEDINA MHA",62.14,57.99]
[null,null,null,null,null,"OH028","ERIE MHA",54.87,51.21]
[null,null,null,null,null,"OH029","ASHTABULA MHA",61.23,57.14]
[null,null,null,null,null,"OH030","HURON MHA",51.88,48.43]
[null,null,null,null,null,"OH031","PORTAGE MHA",61.12,57.05]
[null,null,null,null,null,"OH032","HOCKING MET HA",51.88,48.43]
[null,null,null,null,null,"OH033","CAMBRIDGE METROPOLITAN HSG. AUTH.",51.88,48.43]
[null,null,null,null,null,"OH034","PERRY METRO HSG AUTHORITY",51.88,48.43]
[null,null,null,null,null,"OH035","THE MEIGS MHA",51.88,48.43]
[null,null,null,null,null,"OH036","WAYNE MHA",52.13,48.65]
[null,null,null,null,null,"OH037","COSHOCTON MET.HSG AUTH",51.88,48.43]
[null,null,null,null,null,"OH038","CLERMONT MET.HSG AUTH.",60.17,56.15]
[null,null,null,null,null,"OH039","CRAWFORD MHA",51.88,48.43]
[null,null,null,null,null,"OH040","JACKSON COUNTY HA",51.88,48.43]
[null,null,null,null,null,"OH041","ATHENS MET HA",51.88,48.43]
[null,null,null,null,null,"OH042","GEAUGA MHA",62.14,57.99]
[null,null,null,null,null,"OH043","LICKING METRO HA",58.94,55]
[null,null,null,null,null,"OH044","ALLEN MHA 160001003  A/C #",53.53,49.95]
[null,null,null,null,null,"OH045","DARKE COUNTY METROPOLITAN HSG",51.88,48.43]
[null,null,null,null,null,"OH046","ADAMS MET.HA",51.88,48.43]
[null,null,null,null,null,"OH047","GALLIA METRO HA",51.88,48.43]
[null,null,null,null,null,"OH048","HAMILTON COUNTY PUBLIC HSG",60.17,56.15]
[null,null,null,null,null,"OH049","WARREN MET.HA",60.17,56.15]
[null,null,null,null,null,"OH050","KNOX METROPOLITAN HOUSING AUTHORITY",51.88,48.43]
[null,null,null,null,null,"OH053","CLINTON METROPOLITAN HOUSING AUTH.",51.88,48.43]
[null,null,null,null,null,"OH054","SANDUSKY MHA",54.07,50.46]
[null,null,null,null,null,"OH056","FAYETTE METRO HSG AUTH",51.88,48.43]
[null,null,null,null,null,"OH057","HARDIN METROPOLITAN HOUSING AUTHORITY",51.88,48.43]
[null,null,null,null,null,"OH058","MONROE METRO HOUSING AUTHORITY",51.88,48.43]
[null,null,null,null,null,"OH059","PICKAWAY METROPOLITAN HOUSING AUTH.",58.94,55]
[null,null,null,null,null,"OH060","PIKE METROPLITAN HA",51.88,48.43]
[null,null,null,null,null,"OH061","SHELBY MET HA",53.08,49.54]
[null,null,null,null,null,"OH062","MIAMI METROPOLITAN HSG AUTH",54.89,51.23]
[null,null,null,null,null,"OH063","TUSCARAWAS MHA",51.88,48.43]
[null,null,null,null,null,"OH065","MIDDLETOWN PUBLIC HOUSING AGENCY",60.17,56.15]
[null,null,null,null,null,"OH066","MORGAN MET HA",51.88,48.43]
[null,null,null,null,null,"OH067","HARRISON MHA",51.88,48.43]
[null,null,null,null,null,"OH069","NOBLE METROPOLITAN HA",51.88,48.43]
[null,null,null,null,null,"OH070","FAIRFIELD MHA",58.94,55]
[null,null,null,null,null,"OH071","HENRY MHA",61.76,57.64]
[null,null,null,null,null,"OH072","LOGAN COUNTY MHA",51.88,48.43]
[null,null,null,null,null,"OH073","PARMA PHA",62.14,57.99]
[null,null,null,null,null,"OH074","WILLIAMS MHA",53.34,49.78]
[null,null,null,null,null,"OH075","SENECA MHA",51.88,48.43]
[null,null,null,null,null,"OH076","MARION METRO HOUSING AUTHORITY",51.88,48.43]
[null,null,null,null,null,"OH077","CITY OF MARIETTA",51.88,48.43]
[null,null,null,null,null,"OH078","VINTON METROPOLITAN H. A.",51.88,48.43]
[null,null,null,null,null,"OH079","DELAWARE METRO HOUSING AUTHORITY",58.94,55]
[null,null,null,null,null,"OH080","PREBLE METROPOLITAN HOUSING AUTH",52.79,49.26]
[null,null,null,null,null,"OH081","BROWN METRO HOUSING AUTHORITY",52.66,49.15]
[null,null,null,null,null,"OH082","HANCOCK MHA",52.01,48.54]
[null,null,null,null,null,"OH083","MORROW METRO. HSG. AUT",58.94,55]
[null,null,null,null,null,"OH085","BOWLING GREEN HA",61.76,57.64]
[null,null,null,null,null,"OH086","HIGHLAND METROPOLITAN HOUSING AUTHORITY",51.88,48.43]
[null,null,null,null,null,"OH880","NEW AVENUES TO INDEPENDENCE",62.14,57.99]
[null,null,null,null,null,"OH882","EDEN",62.14,57.99]
[null,null,null,null,null,"OK002","OKLAHOMA CITY HOUSING AUTHORITY",54.86,51.2]
[null,null,null,null,null,"OK005","HOUSING AUTHORITY OF LAWTON",53.36,49.81]
[null,null,null,null,null,"OK006","BROKEN BOW HOUSING AUTHORITY",51.05,47.65]
[null,null,null,null,null,"OK020","COALGATE HOUSING AUTHORITY",51.05,47.65]
[null,null,null,null,null,"OK024","ADA HOUSING AUTHORITY",51.05,47.65]
[null,null,null,null,null,"OK027","MIAMI HOUSING AUTHORITY",51.05,47.65]
[null,null,null,null,null,"OK032","SEMINOLE HOUSING AUTHORITY",51.05,47.65]
[null,null,null,null,null,"OK033","BRISTOW HOUSING AUTHORITY",53.36,49.81]
[null,null,null,null,null,"OK044","HUGO HOUSING AUTHORITY",51.05,47.65]
[null,null,null,null,null,"OK045","CHEROKEE NATION HSG AUTH",51.05,47.65]
[null,null,null,null,null,"OK062","MC ALESTER HOUSING AUTHORITY",51.05,47.65]
[null,null,null,null,null,"OK067","STILWELL HOUSING AUTHORITY",51.05,47.65]
[null,null,null,null,null,"OK073","TULSA HOUSING AUTHORITY",53.36,49.81]
[null,null,null,null,null,"OK095","SHAWNEE HOUSING AUTHORITY",52.48,48.98]
[null,null,null,null,null,"OK096","WEWOKA HOUSING AUTHORITY",51.05,47.65]
[null,null,null,null,null,"OK099","MUSKOGEE HOUSING AUTHORITY",51.05,47.65]
[null,null,null,null,null,"OK111","PONCA CITY HOUSING AUTHORITY",51.05,47.65]
[null,null,null,null,null,"OK118","FT. GIBSON HOUSING AUTHORITY",51.05,47.65]
[null,null,null,null,null,"OK139","NORMAN HOUSING AUTHORITY",54.86,51.2]
[null,null,null,null,null,"OK142","HENRYETTA HOUSING AUTHORITY",53.36,49.81]
[null,null,null,null,null,"OK146","STILLWATER HOUSING AUTHORITY",51.05,47.65]
[null,null,null,null,null,"OK148","TECUMSEH HOUSING AUTHORITY",52.48,48.98]
[null,null,null,null,null,"OK150","DEL CITY HOUSING AUTHORITY",54.86,51.2]
[null,null,null,null,null,"OK901","OKLAHOMA HOUSING FINANCE AGENCY",53.36,49.81]
[null,null,null,null,null,"OR001","HOUSING AUTHORITY OF THE COUNTY OF CLACKAMAS",64.22,59.93]
[null,null,null,null,null,"OR002","HOUSING AUTHORITY OF PORTLAND",64.22,59.93]
[null,null,null,null,null,"OR003","HOUSING AUTHORITY OF DOUGLAS COUNTY",68.3,63.75]
[null,null,null,null,null,"OR005","HOUSING AUTHORITY OF LINCOLN COUNTY",63.56,59.33]
[null,null,null,null,null,"OR006","HA & COMM SERVICES AGENCY OF LANE COUNTY",73.8,68.88]
[null,null,null,null,null,"OR007","HOUS AUTH OF THE COUNTY OF UMATILLA",65.349999999999994,60.99]
[null,null,null,null,null,"OR008","HOUS & URBAN RENEWAL AGCY OF POLK COUNTY",68.95,64.349999999999994]
[null,null,null,null,null,"OR011","HOUSING AUTHORITY OF THE CITY OF SALEM",68.95,64.349999999999994]
[null,null,null,null,null,"OR014","MARION COUNTY HOUSING AUTHORITY",68.95,64.349999999999994]
[null,null,null,null,null,"OR015","HOUSING AUTHORITY OF JACKSON COUNTY",73.319999999999993,68.430000000000007]
[null,null,null,null,null,"OR016","HOUSING AUTHORITY OF YAMHILL COUNTY",64.22,59.93]
[null,null,null,null,null,"OR017","KLAMATH HOUSING AUTHORITY",62.38,58.23]
[null,null,null,null,null,"OR019","LINN-BENTON HOUSING AUTHORITY",66.66,62.2]
[null,null,null,null,null,"OR020","COOS-CURRY HOUSING AUTHORITY",68.3,63.75]
[null,null,null,null,null,"OR022","HOUSING AUTHORITY OF WASHINGTON COUNTY",64.22,59.93]
[null,null,null,null,null,"OR026","MID COLUMBIA HOUSING AUTHORITY",69.13,64.53]
[null,null,null,null,null,"OR027","HOUSING AUTHORITY OF MALHEUR COUNTY",62.38,58.23]
[null,null,null,null,null,"OR028","NORTHWEST OREGON HOUSING AGENCY",64.22,59.93]
[null,null,null,null,null,"OR031","JOSEPHINE HOUSING COMMUNITY DEVELOPMENT COUNCIL",68.3,63.75]
[null,null,null,null,null,"OR032","NORTHEAST OREGON HOUSING AUTHORITY",65.349999999999994,60.99]
[null,null,null,null,null,"OR034","CENTRAL OREGON REGIONAL HOUSING AUTHORITY",70.89,66.16]
[null,null,null,null,null,"PA001","HOUSING AUTHORITY OF THE CITY OF PITTSBURGH",51.46,48.03]
[null,null,null,null,null,"PA002","PHILADELPHIA HOUSING AUTHORITY",73.739999999999995,68.83]
[null,null,null,null,null,"PA003","SCRANTON HOUSING AUTHORITY",49.94,46.6]
[null,null,null,null,null,"PA004","ALLENTOWN HOUSING AUTHORITY",62.8,58.61]
[null,null,null,null,null,"PA005","MCKEESPORT HOUSING AUTHORITY",51.46,48.03]
[null,null,null,null,null,"PA006","ALLEGHENY COUNTY HOUSING AUTHORITY",51.46,48.03]
[null,null,null,null,null,"PA007","CHESTER HOUSING AUTHORITY",73.739999999999995,68.83]
[null,null,null,null,null,"PA008","HARRISBURG HOUSING AUTHORITY",64.27,59.99]
[null,null,null,null,null,"PA009","READING HOUSING AUTHORITY",61.25,57.16]
[null,null,null,null,null,"PA010","HSG AUTH OF THE COUNTY OF BUTLER",51.46,48.03]
[null,null,null,null,null,"PA011","BETHLEHEM HOUSING AUTHORITY",62.8,58.61]
[null,null,null,null,null,"PA012","MONTGOMERY COUNTY HOUSING AUTHORITY",73.739999999999995,68.83]
[null,null,null,null,null,"PA013","ERIE CITY HOUSING AUTHORITY",62.47,58.31]
[null,null,null,null,null,"PA014","BEAVER COUNTY HOUSING AUTHORITY",51.46,48.03]
[null,null,null,null,null,"PA015","FAYETTE COUNTY HOUSING AUTHORITY",51.46,48.03]
[null,null,null,null,null,"PA016","SCHUYLKILL COUNTY HOUSING AUTHORITY",57.39,53.56]
[null,null,null,null,null,"PA017","WASHINGTON COUNTY HOUSING AUTHORITY",51.46,48.03]
[null,null,null,null,null,"PA018","WESTMORELAND COUNTY HSG AUTHORITY",51.46,48.03]
[null,null,null,null,null,"PA019","JOHNSTOWN HOUSING AUTHORITY",52.81,49.29]
[null,null,null,null,null,"PA020","MERCER COUNTY HOUSING AUTHORITY",57.98,54.11]
[null,null,null,null,null,"PA021","LYCOMING COUNTY HOUSING AUTHORITY",52.81,49.29]
[null,null,null,null,null,"PA022","YORK CITY HOUSING AUTHORITY",59,55.06]
[null,null,null,null,null,"PA023","DELAWARE COUNTY HOUSING AUTHORITY",73.739999999999995,68.83]
[null,null,null,null,null,"PA024","EASTON HOUSING AUTHORITY",62.8,58.61]
[null,null,null,null,null,"PA026","HOUSING AUTH CO OF LAWRENCE",52.69,49.17]
[null,null,null,null,null,"PA027","HUNTINGDON COUNTY HOUSING AUTHORITY",49.94,46.6]
[null,null,null,null,null,"PA028","MONROE COUNTY HOUSING AUTHORITY",67.83,63.31]
[null,null,null,null,null,"PA029","SOMERSET COUNTY HOUSING AUTHORITY",52.81,49.29]
[null,null,null,null,null,"PA030","CARBONDALE HOUSING AUTHORITY",49.94,46.6]
[null,null,null,null,null,"PA031","ALTOONA HOUSING AUTHORITY",54.38,50.76]
[null,null,null,null,null,"PA032","MONTOUR COUNTY HOUSING AUTHORITY",53.15,49.6]
[null,null,null,null,null,"PA033","MEADVILLE HOUSING AUTHORITY",52.69,49.17]
[null,null,null,null,null,"PA034","FRANKLIN COUNTY HOUSING AUTHORITY",56.82,53.03]
[null,null,null,null,null,"PA035","DAUPHIN COUNTY HOUSING AUTHORITY",64.27,59.99]
[null,null,null,null,null,"PA036","LANCASTER HOUSING AUTHORITY",65.28,60.93]
[null,null,null,null,null,"PA037","POTTSVILLE HOUSING AUTHORITY",57.39,53.56]
[null,null,null,null,null,"PA038","LACKAWANNA COUNTY HOUSING AUTHORITY",49.94,46.6]
[null,null,null,null,null,"PA039","ARMSTRONG COUNTY HOUSING AUTHORITY",60.45,56.42]
[null,null,null,null,null,"PA041","HOUSING AUTHORITY OF MIFFLIN CO",52.57,49.06]
[null,null,null,null,null,"PA042","PITTSTON HOUSING AUTHORITY",49.94,46.6]
[null,null,null,null,null,"PA043","NANTICOKE HOUSING AUTHORITY",49.94,46.6]
[null,null,null,null,null,"PA044","HAZLETON HOUSING AUTHORITY",49.94,46.6]
[null,null,null,null,null,"PA045","GREENE COUNTY HOUSING AUTHORITY",53.15,49.6]
[null,null,null,null,null,"PA046","HOUS AUTH OF THE CO OF CHESTER",73.739999999999995,68.83]
[null,null,null,null,null,"PA047","WILKES BARRE HOUSING AUTHORITY",49.94,46.6]
[null,null,null,null,null,"PA048","INDIANA COUNTY HOUSING AUTHORITY",61.75,57.63]
[null,null,null,null,null,"PA049","BRADFORD CITY    HOUSING AUTHORITY",52,48.53]
[null,null,null,null,null,"PA050","TIOGA COUNTY HOUSING AUTHORITY",51.3,47.89]
[null,null,null,null,null,"PA051","BUCKS COUNTY HOUSING AUTHORITY",73.739999999999995,68.83]
[null,null,null,null,null,"PA052","LEBANON COUNTY HOUSING AUTHORITY",64.27,59.99]
[null,null,null,null,null,"PA053","SUNBURY HOUSING AUTHORITY",53.15,49.6]
[null,null,null,null,null,"PA054","ELK COUNTY HOUSING AUTHORITY",52,48.53]
[null,null,null,null,null,"PA055","SHAMOKIN HOUSING AUTHORITY",53.15,49.6]
[null,null,null,null,null,"PA056","FRANKLIN CITY HOUSING AUTHORITY",50.86,47.46]
[null,null,null,null,null,"PA057","LUZERNE COUNTY HOUSING AUTHORITY",49.94,46.6]
[null,null,null,null,null,"PA058","TITUSVILLE HOUSING AUTHORITY",52.69,49.17]
[null,null,null,null,null,"PA059","OIL CITY HOUSING AUTHORITY",50.86,47.46]
[null,null,null,null,null,"PA060","NORTHUMBERLAND COUNTY HOUSING AUTH.",53.15,49.6]
[null,null,null,null,null,"PA061","JEFFERSON COUNTY HOUSING AUTHORITY",53.15,49.6]
[null,null,null,null,null,"PA062","WILLIAMSPORT HOUSING AUTHORITY",52.81,49.29]
[null,null,null,null,null,"PA063","DUBOIS HOUSING AUTHORITY",53.15,49.6]
[null,null,null,null,null,"PA064","BRADFORD COUNTY HOUSING AUTHORITY",51.3,47.89]
[null,null,null,null,null,"PA065","CLEARFIELD COUNTY HOUSING AUTHORITY",53.15,49.6]
[null,null,null,null,null,"PA066","CORRY HOUSING AUTHORITY",62.47,58.31]
[null,null,null,null,null,"PA067","CARBON COUNTY HOUSING AUTHORITY",62.8,58.61]
[null,null,null,null,null,"PA068","SULLIVAN COUNTY HOUSING AUTHORITY",51.3,47.89]
[null,null,null,null,null,"PA069","BLAIR COUNTY HOUSING AUTHORITY",54.38,50.76]
[null,null,null,null,null,"PA071","BERKS COUNTY HOUSING AUTHORITY",61.25,57.16]
[null,null,null,null,null,"PA072","FULTON COUNTY HOUSING AUTHORITY",49.94,46.6]
[null,null,null,null,null,"PA073","WYOMING COUNTY HOUSING AUTHORITY",49.94,46.6]
[null,null,null,null,null,"PA074","SUSQUEHANNA COUNTY HOUSING AUTHORIT",51.3,47.89]
[null,null,null,null,null,"PA075","CUMBERLAND COUNTY HOUSING AUTHORITY",64.27,59.99]
[null,null,null,null,null,"PA076","NORTHAMPTON COUNTY HOUSING AUTH.",62.8,58.61]
[null,null,null,null,null,"PA077","COUNTY OF POTTER HOUSING AUTHORITY",52,48.53]
[null,null,null,null,null,"PA078","WAYNE COUNTY HOUSING AUTHORITY",81.41,75.989999999999995]
[null,null,null,null,null,"PA079","HSG AUTHORITY OF THE COUNTY OF WARREN",52.69,49.17]
[null,null,null,null,null,"PA080","MCKEAN COUNTY HOUSING AUTHORITY",52,48.53]
[null,null,null,null,null,"PA081","LEHIGH COUNTY HOUSING AUTHORITY",62.8,58.61]
[null,null,null,null,null,"PA082","HOUSING AUTHORITY OF UNION COUNTY",60.14,56.14]
[null,null,null,null,null,"PA083","COLUMBIA COUNTY HOUSING AUTHORITY",50.96,47.56]
[null,null,null,null,null,"PA085","BEDFORD COUNTY HOUSING AUTHORITY",49.94,46.6]
[null,null,null,null,null,"PA086","CLARION COUNTY HOUSING AUTHORITY",50.86,47.46]
[null,null,null,null,null,"PA087","ERIE COUNTY HOUSING AUTHORITY",62.47,58.31]
[null,null,null,null,null,"PA088","CENTRE COUNTY HOUSING AUTHORITY",70.010000000000005,65.34]
[null,null,null,null,null,"PA089","VENANGO COUNTY HOUSING AUTHORITY",50.86,47.46]
[null,null,null,null,null,"PA090","LANCASTER COUNTY HOUSING AUTHORITY",65.28,60.93]
[null,null,null,null,null,"PA091","ADAMS COUNTY HOUSING AUTHORITY",60.27,56.24]
[null,null,null,null,null,"PA092","SNYDER COUNTY HOUSING AUTHORITY",51.42,47.99]
[null,null,null,null,null,"PA889","1260 HOUSING DEVELOPMENT CORP",73.739999999999995,68.83]
[null,null,null,null,null,"RI001","PROVIDENCE H A",96.21,89.8]
[null,null,null,null,null,"RI002","PAWTUCKET H A",96.21,89.8]
[null,null,null,null,null,"RI003","WOONSOCKET H A",96.21,89.8]
[null,null,null,null,null,"RI004","CENTRAL FALLS H A",96.21,89.8]
[null,null,null,null,null,"RI005","NEWPORT HOUSING AUTHORITY",95.59,89.21]
[null,null,null,null,null,"RI006","CRANSTON H A",96.21,89.8]
[null,null,null,null,null,"RI007","EAST PROVIDENCE H A",96.21,89.8]
[null,null,null,null,null,"RI008","TOWN OF WESTERLY H A",87,81.2]
[null,null,null,null,null,"RI009","JOHNSTON HOUSING AUTHORITY",96.21,89.8]
[null,null,null,null,null,"RI010","CUMBERLAND HOUSING AUTHORITY",96.21,89.8]
[null,null,null,null,null,"RI011","WARWICK H A",96.21,89.8]
[null,null,null,null,null,"RI012","SOUTH KINGSTON HOUSIN AUTHORITY",96.21,89.8]
[null,null,null,null,null,"RI013","PORTSMOUTH HOUSING AUTHORITY",95.59,89.21]
[null,null,null,null,null,"RI014","BURRILLVILLE HOUSING AUTHORITY",96.21,89.8]
[null,null,null,null,null,"RI015","WEST WARWICK HOUSING AUTHORITY",96.21,89.8]
[null,null,null,null,null,"RI016","COVENTRY HOUSING AUTHORITY",96.21,89.8]
[null,null,null,null,null,"RI017","NORTH PROVIDENCE HOUSING AUTHORITY",96.21,89.8]
[null,null,null,null,null,"RI018","LINCOLN HOUSING AUTHORITY",96.21,89.8]
[null,null,null,null,null,"RI019","TOWN OF BRISTOL H A",96.21,89.8]
[null,null,null,null,null,"RI020","SMITHFIELD HOUSING AUTHORITY",96.21,89.8]
[null,null,null,null,null,"RI022","WARREN HOUSING AUTHORITY",96.21,89.8]
[null,null,null,null,null,"RI024","EAST GREENWICH H A",96.21,89.8]
[null,null,null,null,null,"RI026","NARRAGANSETT HOUSING AUTHORITY",96.21,89.8]
[null,null,null,null,null,"RI027","TIVERTON HOUSING AUTHORITY",96.21,89.8]
[null,null,null,null,null,"RI028","THE KENT CENTER",96.21,89.8]
[null,null,null,null,null,"RI029","GATEWAY HEALTHCARE, INC",96.21,89.8]
[null,null,null,null,null,"RI901","RHODE ISLAND HSG MORT FIN CORP",96.21,89.8]
[null,null,null,null,null,"RQ006","MUNICIPALITY OF SAN JUAN",68.61,64.03]
[null,null,null,null,null,"RQ007","MUNICIPALITY OF CAGUAS",63.83,59.58]
[null,null,null,null,null,"RQ008","MUNICIPALITY OF PONCE",68.61,64.03]
[null,null,null,null,null,"RQ009","MUNICIPALITY OF MAYAGUEZ",63.83,59.58]
[null,null,null,null,null,"RQ010","MUNICIPALITY OF MOCA",63.83,59.58]
[null,null,null,null,null,"RQ011","MUNICIPALITY OF BAYAMON",68.61,64.03]
[null,null,null,null,null,"RQ012","MUNICIPALITY OF AGUADILLA",63.83,59.58]
[null,null,null,null,null,"RQ013","MUNICIPALITY OF TRUJILLO ALTO",68.61,64.03]
[null,null,null,null,null,"RQ014","MUNICIPALITY OF CAROLINA",68.61,64.03]
[null,null,null,null,null,"RQ015","MUNICIPALITY OF DORADO",68.61,64.03]
[null,null,null,null,null,"RQ016","MUNICIPALITY OF GUAYNABO",68.61,64.03]
[null,null,null,null,null,"RQ017","MUNICIPALITY OF GUAYAMA",63.83,59.58]
[null,null,null,null,null,"RQ018","MUNICIPALITY OF CAYEY",63.83,59.58]
[null,null,null,null,null,"RQ019","MUNICIPALITY OF PENUELAS",68.61,64.03]
[null,null,null,null,null,"RQ020","MUNICIPALITY OF ARECIBO",70.099999999999994,65.42]
[null,null,null,null,null,"RQ021","MUNICIPALITY OF GUAYANILLA",68.61,64.03]
[null,null,null,null,null,"RQ022","MUNICIPALITY OF TOA BAJA",68.61,64.03]
[null,null,null,null,null,"RQ023","MUNICIPALITY OF COROZAL",68.61,64.03]
[null,null,null,null,null,"RQ024","MUNICIPALFITY OF MOROVIS",68.61,64.03]
[null,null,null,null,null,"RQ025","MUNICIPALITY HUMACAO",68.61,64.03]
[null,null,null,null,null,"RQ026","MUNICIPALITY OF SAN SEBASTIAN",63.83,59.58]
[null,null,null,null,null,"RQ027","MUNICIPALITY OF LOIZA",68.61,64.03]
[null,null,null,null,null,"RQ028","MUNICIPALITY  OF MANATI",68.61,64.03]
[null,null,null,null,null,"RQ029","MUNICIPALITY OF MARICAO",63.83,59.58]
[null,null,null,null,null,"RQ030","MUNICIPALITY OF SAN GERMAN",63.83,59.58]
[null,null,null,null,null,"RQ031","MUNICIPALITY OF QUEBRADILLAS",63.83,59.58]
[null,null,null,null,null,"RQ032","MUNICIPALITY OF VEGA BAJA",68.61,64.03]
[null,null,null,null,null,"RQ033","MUNICIPALITY OF UTUADO",63.83,59.58]
[null,null,null,null,null,"RQ034","MUNICIPALITY OF COMERIO",68.61,64.03]
[null,null,null,null,null,"RQ035","MUNICIPALITY OF HORMIGUEROS",63.83,59.58]
[null,null,null,null,null,"RQ036","MUNICIPALITY OF FAJARDO",68.61,64.03]
[null,null,null,null,null,"RQ037","MUNICIPALITY OF SAN LORENZO",63.83,59.58]
[null,null,null,null,null,"RQ038","MUNICIPALITY OF JUANA DIAZ",68.61,64.03]
[null,null,null,null,null,"RQ039","MUNICIPALITY OF HATILLO",70.099999999999994,65.42]
[null,null,null,null,null,"RQ040","MUNICIPALITY OF CAMUY",70.099999999999994,65.42]
[null,null,null,null,null,"RQ041","MUNICIPALITY OF GURABO",63.83,59.58]
[null,null,null,null,null,"RQ042","MUNICIPALITY OF COAMO",63.83,59.58]
[null,null,null,null,null,"RQ043","ANASCO HOUSING AUTHORITY",63.83,59.58]
[null,null,null,null,null,"RQ044","MUNICIPALITY OF GUANICA",68.61,64.03]
[null,null,null,null,null,"RQ045","MUNICIPALITY OF YABUCOA",68.61,64.03]
[null,null,null,null,null,"RQ046","MUNICIPALITY OF LAS MARIAS",63.83,59.58]
[null,null,null,null,null,"RQ047","MUNICIPALITY OF NAGUABO",68.61,64.03]
[null,null,null,null,null,"RQ048","MUNICIPALITY OF SABANA GRANDE",63.83,59.58]
[null,null,null,null,null,"RQ049","MUNICIPALITY OF VILLALBA",68.61,64.03]
[null,null,null,null,null,"RQ050","MUNICIPALITY OF RIO GRANDE",68.61,64.03]
[null,null,null,null,null,"RQ052","MUNICIPALITY OF CIALES",63.83,59.58]
[null,null,null,null,null,"RQ053","MUNICIPALITY OF TOA ALTA",68.61,64.03]
[null,null,null,null,null,"RQ054","MUNICIPALITY  OF  BARCELONETA",68.61,64.03]
[null,null,null,null,null,"RQ055","MUNICIPALITY OF ADJUNTAS",63.83,59.58]
[null,null,null,null,null,"RQ056","MUNICIPALLITY OF VEGA ALTA",68.61,64.03]
[null,null,null,null,null,"RQ057","MUNICIPALITY OF PATILLAS",63.83,59.58]
[null,null,null,null,null,"RQ058","MUNICIPALITY OF SANTA ISABEL",63.83,59.58]
[null,null,null,null,null,"RQ059","MUNICIPALITY OF AIBONITO",63.83,59.58]
[null,null,null,null,null,"RQ060","MUNICIPALITY OF BARRANQUITAS",63.83,59.58]
[null,null,null,null,null,"RQ061","MUNICIPALITY OF CABO ROJO",63.83,59.58]
[null,null,null,null,null,"RQ062","MUNICIPALITY OF CIDRA",63.83,59.58]
[null,null,null,null,null,"RQ063","MUNICIPALITY OF LAS PIEDRAS",68.61,64.03]
[null,null,null,null,null,"RQ064","MUNICIPALITY OF NARANJITO",68.61,64.03]
[null,null,null,null,null,"RQ065","MUNICIPALITY OF LARES",63.83,59.58]
[null,null,null,null,null,"RQ066","MUNICIPALITY OF ISABELA",63.83,59.58]
[null,null,null,null,null,"RQ067","MUNICIPALITY OF RINCON",63.83,59.58]
[null,null,null,null,null,"RQ068","MUNICIPALITY OF ARROYO",63.83,59.58]
[null,null,null,null,null,"RQ069","MUNICIPALITY OF SALINAS",63.83,59.58]
[null,null,null,null,null,"RQ070","MUNICIPALITY OF CEIBA",68.61,64.03]
[null,null,null,null,null,"RQ071","MUNICIPALITY OF LAJAS",63.83,59.58]
[null,null,null,null,null,"RQ072","MUNICIPALITY OF FLORIDA",68.61,64.03]
[null,null,null,null,null,"RQ073","MUNICIPALITY OF AGUADA",63.83,59.58]
[null,null,null,null,null,"RQ074","MUNICIPALITY OF VIEQUES",63.83,59.58]
[null,null,null,null,null,"RQ075","MUNICIPALITY OF CANOVANAS",68.61,64.03]
[null,null,null,null,null,"RQ076","MUNICIPALITY OF JAYUYA",63.83,59.58]
[null,null,null,null,null,"RQ077","MUNICIPALITY OF JUNCOS",68.61,64.03]
[null,null,null,null,null,"RQ080","MUNICIPALITY OF OROCOVIS",63.83,59.58]
[null,null,null,null,null,"RQ081","MUNICIPALITY LUQUILLO",68.61,64.03]
[null,null,null,null,null,"RQ082","MUNICIPALITY OF AGUAS BUENAS",68.61,64.03]
[null,null,null,null,null,"RQ083","MUNICIPALITY OF YAUCO",68.61,64.03]
[null,null,null,null,null,"RQ901","PUERTO RICO DEPT OF HOUSING",68.61,64.03]
[null,null,null,null,null,"RQ911","PUERTO RICO HOUSING FINANCE CORP",68.61,64.03]
[null,null,null,null,null,"SC001","H/A OF CHARLESTON",60.74,56.69]
[null,null,null,null,null,"SC002","HA COLUMBIA",61.4,57.3]
[null,null,null,null,null,"SC003","CITY OF SPARTANBURG H/A",55.37,51.67]
[null,null,null,null,null,"SC004","HA GREENVILLE",55.37,51.67]
[null,null,null,null,null,"SC005","HA DARLINGTON",55.37,51.67]
[null,null,null,null,null,"SC007","HA AIKEN",56.44,52.68]
[null,null,null,null,null,"SC008","HA SOUTH CAROLINA REG NO 1",61.4,57.3]
[null,null,null,null,null,"SC015","HA BENNETTSVILLE",55.37,51.67]
[null,null,null,null,null,"SC016","HA GREER",55.37,51.67]
[null,null,null,null,null,"SC018","HA LAKE CITY",55.37,51.67]
[null,null,null,null,null,"SC019","HA UNION",55.37,51.67]
[null,null,null,null,null,"SC020","HA CHESTER",55.37,51.67]
[null,null,null,null,null,"SC021","HA MARION",55.37,51.67]
[null,null,null,null,null,"SC022","CITY OF ROCK HILL",61.02,56.94]
[null,null,null,null,null,"SC023","HA SUMTER",55.37,51.67]
[null,null,null,null,null,"SC024","HA SOUTH CAROLINA REG NO 3",60.74,56.69]
[null,null,null,null,null,"SC025","HA CONWAY",55.37,51.67]
[null,null,null,null,null,"SC026","HA BEAUFORT",56.5,52.73]
[null,null,null,null,null,"SC027","HA FLORENCE",55.37,51.67]
[null,null,null,null,null,"SC028","HA GEORGETOWN",55.37,51.67]
[null,null,null,null,null,"SC029","HA HARTSVILLE",55.37,51.67]
[null,null,null,null,null,"SC030","HA GREENWOOD",55.37,51.67]
[null,null,null,null,null,"SC031","HA CHERAW",55.37,51.67]
[null,null,null,null,null,"SC032","HA LANCASTER",55.37,51.67]
[null,null,null,null,null,"SC033","HA MULLINS",55.37,51.67]
[null,null,null,null,null,"SC034","HOUSING AUTHORITY OF MYRTLE BEACH",55.37,51.67]
[null,null,null,null,null,"SC035","HA NEWBERRY",55.37,51.67]
[null,null,null,null,null,"SC036","HA FORT MILL",61.02,56.94]
[null,null,null,null,null,"SC037","HA ANDERSON",55.37,51.67]
[null,null,null,null,null,"SC046","HA YORK",61.02,56.94]
[null,null,null,null,null,"SC056","CHARLESTON COUNTY HOUS REDVEL AUTH",60.74,56.69]
[null,null,null,null,null,"SC057","HA NORTH CHARLESTON",60.74,56.69]
[null,null,null,null,null,"SC059","HSG & COM  REDEV AUTHORITY OF MARLBORO CO.",55.37,51.67]
[null,null,null,null,null,"SC911","S C STATE HOUSING FINANCE & DEV",61.4,57.3]
[null,null,null,null,null,"SD010","CITY OF LENNOX HOUSING & REDEV COMMISSION",56.11,52.37]
[null,null,null,null,null,"SD011","MADISON HOUSING & REDEV COMMISSION",52.35,48.86]
[null,null,null,null,null,"SD014","CITY OF MITCHELL HOUSING & REDEV COMM",52.35,48.86]
[null,null,null,null,null,"SD016","SIOUX FALLS HOUSING & REDEV COMMISSION",56.11,52.37]
[null,null,null,null,null,"SD021","WESSINGTON SPGS HSG & REDEV COMM",52.35,48.86]
[null,null,null,null,null,"SD026","REDFIELD HOUSING AND REDEV COMMISSION",52.35,48.86]
[null,null,null,null,null,"SD028","CLARK HOUSING & REDEVELOPMENT COMMISSION",52.35,48.86]
[null,null,null,null,null,"SD034","ABERDEEN HOUSING & REDEV COMMISSION",52.35,48.86]
[null,null,null,null,null,"SD035","PIERRE HOUSING & REDEVELOPMENT COMMISSION",56.88,53.08]
[null,null,null,null,null,"SD036","HURON HOUSING AUTHORITY",52.35,48.86]
[null,null,null,null,null,"SD037","MILBANK HOUSING & REDEVELOPMENT COMMISSION",52.35,48.86]
[null,null,null,null,null,"SD038","MILLER HOUSING & REDEVELOPMENT COMMISSION",52.35,48.86]
[null,null,null,null,null,"SD039","CANTON HOUSING & REDEVELOPMENT COMMISSION",56.11,52.37]
[null,null,null,null,null,"SD043","WATERTOWN HOUSING & REDEV COMMISSION",52.35,48.86]
[null,null,null,null,null,"SD045","PENNINGTON COUNTY HSG & REDEV COMM",52.54,49.04]
[null,null,null,null,null,"SD047","MEADE COUNTY HOUSING & REDEV COMMISSION",52.35,48.86]
[null,null,null,null,null,"SD048","LAWRENCE COUNTY HOUSING  AUTHORITY",52.35,48.86]
[null,null,null,null,null,"SD055","VERMILLION HOUSING & REDEV COMMISSION",52.35,48.86]
[null,null,null,null,null,"SD056","BROOKINGS HOUSING & REDEV COMMISSION",52.35,48.86]
[null,null,null,null,null,"SD057","MOBRIDGE HOUSING & REDEV COMMISSION",52.35,48.86]
[null,null,null,null,null,"SD058","YANKTON HSG & REDEV COMMISSION",52.35,48.86]
[null,null,null,null,null,"SD059","BUTTE COUNTY HOUSING & REDEV COMMISSION",52.35,48.86]
[null,null,null,null,null,"TN001","HA MEMPHIS",57.35,53.53]
[null,null,null,null,null,"TN002","HA JOHNSON CITY",53.13,49.59]
[null,null,null,null,null,"TN003","KNOXVILLE COMMUNITY DEVEL CORP",53.5,49.94]
[null,null,null,null,null,"TN004","CHATTANOOGA H/A",57.1,53.3]
[null,null,null,null,null,"TN005","METROPOLITAN DEVELOPMNT & HSG AGNCY",63.56,59.32]
[null,null,null,null,null,"TN006","KINGSPORT HOUSING AND REDEV AUTHORITY",53.13,49.59]
[null,null,null,null,null,"TN007","HA JACKSON",53.13,49.59]
[null,null,null,null,null,"TN011","HA PULASKI",52.45,48.95]
[null,null,null,null,null,"TN012","HA LAFOLLETTE",53.5,49.94]
[null,null,null,null,null,"TN013","HA BROWNSVILLE",52.45,48.95]
[null,null,null,null,null,"TN015","HA ATHENS",52.45,48.95]
[null,null,null,null,null,"TN016","HA SWEETWATER",52.45,48.95]
[null,null,null,null,null,"TN020","HA MURFREESBORO",63.56,59.32]
[null,null,null,null,null,"TN024","TULLAHOMA",52.45,48.95]
[null,null,null,null,null,"TN026","HA ETOWAH",52.45,48.95]
[null,null,null,null,null,"TN038","HA MORRISTOWN",53.13,49.59]
[null,null,null,null,null,"TN042","HA CROSSVILLE",52.45,48.95]
[null,null,null,null,null,"TN054","HA CLEVELAND",53.13,49.59]
[null,null,null,null,null,"TN062","HA DAYTON",52.45,48.95]
[null,null,null,null,null,"TN065","HA MARYVILLE",53.5,49.94]
[null,null,null,null,null,"TN066","BRISTOL HOUSING & REDEVELOPMENT AUTHORITY",53.13,49.59]
[null,null,null,null,null,"TN076","HSG DEV AGENCY ELIZABETHTON",53.13,49.59]
[null,null,null,null,null,"TN079","HA DICKSON",63.56,59.32]
[null,null,null,null,null,"TN088","HA OAK RIDGE",53.5,49.94]
[null,null,null,null,null,"TN095","SHELBY COUNTY HOUSING AUTHORITY",57.35,53.53]
[null,null,null,null,null,"TN111","HA KNOX COUNTY",53.5,49.94]
[null,null,null,null,null,"TN113","EAST TENN HUMAN RESOURCE AGENCY",53.5,49.94]
[null,null,null,null,null,"TN117","SOUTHEAST TENN HUMAN RESOURCE AGENCY",57.1,53.3]
[null,null,null,null,null,"TN903","TENNESSEE HOUSING DEV AGENCY",63.56,59.32]
[null,null,null,null,null,"TQ901","MARIANA ISLANDS",96.21,89.8]
[null,null,null,null,null,"TX001","AUSTIN HOUSING AUTHORITY",70.31,65.63]
[null,null,null,null,null,"TX003","HOUSING AUTHORITY OF EL PASO",59.74,55.75]
[null,null,null,null,null,"TX004","FORT WORTH HOUSING AUTHORITY",67.180000000000007,62.7]
[null,null,null,null,null,"TX005","HOUSTON HOUSING AUTHORITY",63.78,59.53]
[null,null,null,null,null,"TX006","SAN ANTONIO HOUSING AUTHORITY",61.81,57.7]
[null,null,null,null,null,"TX007","BROWNSVILLE HSG AUTHORITY",54.8,51.15]
[null,null,null,null,null,"TX008","CORPUS CHRISTI HOUSING AUTHORITY",63.02,58.81]
[null,null,null,null,null,"TX009","HOUSING AUTHORITY OF DALLAS",72.09,67.3]
[null,null,null,null,null,"TX010","HOUSING AUTHORITY OF WACO",54.05,50.44]
[null,null,null,null,null,"TX011","LAREDO HOUSING AUTHORITY",54.05,50.44]
[null,null,null,null,null,"TX012","BAYTOWN HOUSING AUTHORITY",63.78,59.53]
[null,null,null,null,null,"TX014","HOUSING AUTHORITY OF TEXARKANA",54.05,50.44]
[null,null,null,null,null,"TX016","DEL RIO HOUSING AUTHORITY",50.79,47.41]
[null,null,null,null,null,"TX017","GALVESTON HOUSING AUTHORITY",63.78,59.53]
[null,null,null,null,null,"TX018","HOUSING AUTHORITY OF LUBBOCK",54.05,50.44]
[null,null,null,null,null,"TX019","EAGLE PASS HOUSING AUTHORITY",50.79,47.41]
[null,null,null,null,null,"TX021","HOUSING AUTHORITY OF BROWNWOOD",50.79,47.41]
[null,null,null,null,null,"TX023","HOUSING AUTHORITY OF BEAUMONT",61.76,57.63]
[null,null,null,null,null,"TX024","COMMERCE HOUSING AUTHORITY",72.09,67.3]
[null,null,null,null,null,"TX025","SAN BENITO HSG AUTHORITY",54.8,51.15]
[null,null,null,null,null,"TX028","MC ALLEN HOUSING AUTHORITY",54.18,50.56]
[null,null,null,null,null,"TX029","MERCEDES HOUSING AUTHORITY",54.18,50.56]
[null,null,null,null,null,"TX030","TEMPLE HOUSING AUTHORITY",54.05,50.44]
[null,null,null,null,null,"TX031","TAYLOR HSG AUTHORITY",70.31,65.63]
[null,null,null,null,null,"TX032","TEXAS CITY HSG AUTHORITY",63.78,59.53]
[null,null,null,null,null,"TX033","CORSICANA HOUSING AUTHORITY",50.79,47.41]
[null,null,null,null,null,"TX034","HOUSING AUTHORITY OF PORT ARTHUR",61.76,57.63]
[null,null,null,null,null,"TX035","BAY CITY HOUSING AUTHORITY",50.92,47.52]
[null,null,null,null,null,"TX037","HOUSING AUTHORITY OF ORANGE",61.76,57.63]
[null,null,null,null,null,"TX039","HOUSING AUTHORITY OF BRECKENRIDGE",50.79,47.41]
[null,null,null,null,null,"TX042","CISCO HOUSING AUTHORITY",50.79,47.41]
[null,null,null,null,null,"TX044","HOUSING AUTHORITY OF JEFFERSON",50.79,47.41]
[null,null,null,null,null,"TX046","MISSION HA",54.18,50.56]
[null,null,null,null,null,"TX048","HOUSINGG AUTHORITY OF PARIS",50.79,47.41]
[null,null,null,null,null,"TX049","HOUSING AUTHORITY OF PITTSBURG",50.79,47.41]
[null,null,null,null,null,"TX050","HOUSING AUTHORITY OF HENDERSON",54.05,50.44]
[null,null,null,null,null,"TX051","WESLACO HOUSING AUTHORITY",54.18,50.56]
[null,null,null,null,null,"TX053","HOUSING AUTHORITY OF HASKELL",50.79,47.41]
[null,null,null,null,null,"TX062","EDINBURG HOUSING AUTHORITY",54.18,50.56]
[null,null,null,null,null,"TX064","ALAMO HOUSING AUTHORITY",54.18,50.56]
[null,null,null,null,null,"TX065","HARLINGEN HSG AUTHORITY",54.8,51.15]
[null,null,null,null,null,"TX072","GAINESVILLE HOUSING AUTHORITY",50.79,47.41]
[null,null,null,null,null,"TX073","PHARR HOUSING AUTHORITY",54.18,50.56]
[null,null,null,null,null,"TX075","HOUSING AUTHORITY OF QUANAH",50.79,47.41]
[null,null,null,null,null,"TX079","HOUSING AUTHORITY OF KILLEEN",54.05,50.44]
[null,null,null,null,null,"TX081","GONZALES HOUSING AUTHORTIY",50.79,47.41]
[null,null,null,null,null,"TX085","VICTORIA HOUSING AUTHORITY",74.89,69.89]
[null,null,null,null,null,"TX087","SAN MARCOS HOUSING AUTHORITY",70.31,65.63]
[null,null,null,null,null,"TX095","HOUSING AUTHORITY OF ROCKWALL",72.09,67.3]
[null,null,null,null,null,"TX096","EDNA HOUSING AUTHORITY",50.79,47.41]
[null,null,null,null,null,"TX105","CRYSTAL CITY HSG AUTHORITY",50.79,47.41]
[null,null,null,null,null,"TX114","KINGSVILLE HSG. AUTHORITY",50.79,47.41]
[null,null,null,null,null,"TX128","HOUSING AUTHORITY OF PLANO",72.09,67.3]
[null,null,null,null,null,"TX134","HOUSING AUTHORITY OF CAMERON",50.79,47.41]
[null,null,null,null,null,"TX137","HOUSING AUTHORITY OF DEKALB",54.05,50.44]
[null,null,null,null,null,"TX147","KENEDY HOUSING AUTHORITY",50.79,47.41]
[null,null,null,null,null,"TX152","BEEVILLE HOUSING AUTHORITY",50.79,47.41]
[null,null,null,null,null,"TX158","HOUSING AUTHORITY OF MERKEL",54.05,50.44]
[null,null,null,null,null,"TX163","ROBSTOWN HOUSING AUTHORITY",63.02,58.81]
[null,null,null,null,null,"TX164","MATHIS HOUSING AUTHORITY",63.02,58.81]
[null,null,null,null,null,"TX167","HOUSING AUTHORITY OF STAMFORD",54.05,50.44]
[null,null,null,null,null,"TX173","PORT ISABEL HOUSING AUTHORITY",54.8,51.15]
[null,null,null,null,null,"TX174","SINTON HOUSING AUTHORITY",63.02,58.81]
[null,null,null,null,null,"TX175","NIXON HOUSING AUTHORITY",50.79,47.41]
[null,null,null,null,null,"TX177","HSG AUTH CITY OF DONNA",54.18,50.56]
[null,null,null,null,null,"TX178","ALICE HOUSING AUTHORITY",50.79,47.41]
[null,null,null,null,null,"TX183","HOUSING AUTHORITY OF TULIA",50.79,47.41]
[null,null,null,null,null,"TX189","HOUSING AUTHORITY OF FLOYDADA",50.79,47.41]
[null,null,null,null,null,"TX193","FLORESVILLE HSG AUTHORITY",61.81,57.7]
[null,null,null,null,null,"TX197","BAIRD HOUSING AUTHORITY",54.05,50.44]
[null,null,null,null,null,"TX201","FALFURRIAS HOUSING AUTHORITY",50.79,47.41]
[null,null,null,null,null,"TX202","EDCOUCH HOUSING AUTHORITY",54.18,50.56]
[null,null,null,null,null,"TX206","LOS FRESNOS HSG AUTHORITY",54.8,51.15]
[null,null,null,null,null,"TX208","PLEASANTON HOUSING AUTHORITY",54.05,50.44]
[null,null,null,null,null,"TX210","DEVINE HOUSING AUTHORITY",54.05,50.44]
[null,null,null,null,null,"TX217","HOUSING AUTHORITY OF WILLS POINT",50.79,47.41]
[null,null,null,null,null,"TX224","ELSA HOUSING AUTHORITY/LA HACIENDA",54.18,50.56]
[null,null,null,null,null,"TX232","HOUSING AUTHORITY OF THE CITY OF BECKVILLE",50.79,47.41]
[null,null,null,null,null,"TX236","POTEET HOUSING AUTHORITY",54.05,50.44]
[null,null,null,null,null,"TX242","HOUSING AUTHORITY OF EDGEWOOD",50.79,47.41]
[null,null,null,null,null,"TX248","POTH HOUSING AUTHORITY",61.81,57.7]
[null,null,null,null,null,"TX251","HOUSING AUTHORITY OF BRADY",50.79,47.41]
[null,null,null,null,null,"TX257","HOUSING AUTHORITY OF SLATON",54.05,50.44]
[null,null,null,null,null,"TX259","BASTROP HOUSING AUTHORITY",70.31,65.63]
[null,null,null,null,null,"TX263","HSG AUTH CITY OF MARBLE FALLS",50.79,47.41]
[null,null,null,null,null,"TX264","GEORGETOWN HOUSING AUTHORITY",70.31,65.63]
[null,null,null,null,null,"TX266","SMITHVILLE HOUSING AUTHORITY",70.31,65.63]
[null,null,null,null,null,"TX272","HOUSING AUTHORITY OF ALTO",50.79,47.41]
[null,null,null,null,null,"TX284","HOUSING  AUTHORITY OF  ALPINE",50.79,47.41]
[null,null,null,null,null,"TX291","HOUSING AUTHORITY OF GRAPEVINE",67.180000000000007,62.7]
[null,null,null,null,null,"TX294","LA FERIA",54.8,51.15]
[null,null,null,null,null,"TX298","HOUSING AUTHORITY OF MINERAL WELLS",50.79,47.41]
[null,null,null,null,null,"TX300","CARRIZO SPRINGS HSG AUTHORITY",50.79,47.41]
[null,null,null,null,null,"TX302","GREGORY HSG AUTHORITY",63.02,58.81]
[null,null,null,null,null,"TX303","SEGUIN HOUSING AUTHORITY",61.81,57.7]
[null,null,null,null,null,"TX309","CUERO HOUSING AUTHORITY",50.79,47.41]
[null,null,null,null,null,"TX313","ARANSAS PASS HOUSING AUTHORITY",63.02,58.81]
[null,null,null,null,null,"TX318","HOUSING AUTHORITY OF MARFA",50.79,47.41]
[null,null,null,null,null,"TX322","ROUND ROCK HOUSING AUTHORITY",70.31,65.63]
[null,null,null,null,null,"TX326","YOAKUM HOUSING AUTHORITY",50.79,47.41]
[null,null,null,null,null,"TX327","HOUSING AUTHORITY OF ABILENE",54.05,50.44]
[null,null,null,null,null,"TX330","BRENHAM (CITY OF)",50.79,47.41]
[null,null,null,null,null,"TX332","PEARSALL HOUSING AUTHORITY",50.79,47.41]
[null,null,null,null,null,"TX335","COTULLA HOUSING AUTHORITY",50.79,47.41]
[null,null,null,null,null,"TX341","HOUSING AUTHORITY OF TATUM",60.61,56.57]
[null,null,null,null,null,"TX343","NEW BRAUNFELS HOUSING AUTHORITY",61.81,57.7]
[null,null,null,null,null,"TX349","WEATHERFORD HOUSING AUTHORITY",67.180000000000007,62.7]
[null,null,null,null,null,"TX350","SCHERTZ HOUSING AUTHORITY",61.81,57.7]
[null,null,null,null,null,"TX352","HOUSING AUTHORITY OF LIVINGSTON",50.79,47.41]
[null,null,null,null,null,"TX358","BURNET HOUSING AUTHORITY",50.79,47.41]
[null,null,null,null,null,"TX367","KYLE HOUSING AUTHORITY",70.31,65.63]
[null,null,null,null,null,"TX372","RUSK HOUSING AUTHORITY",61.62,57.51]
[null,null,null,null,null,"TX376","DUVAL COUNTY HSG AUTHORITY",50.79,47.41]
[null,null,null,null,null,"TX377","ELGIN HOUSING AUTHORITY",70.31,65.63]
[null,null,null,null,null,"TX378","PALACIOS HOUSING AUTHORITY",50.92,47.52]
[null,null,null,null,null,"TX381","LA GRANGE HOUSING AUTHORITY",50.79,47.41]
[null,null,null,null,null,"TX391","KERMIT HOUSING AUTHORITY",50.79,47.41]
[null,null,null,null,null,"TX392","DENTON HOUSING AUTHORITY",72.09,67.3]
[null,null,null,null,null,"TX395","PORT LAVACA HOUSING AUTHORITY",54.05,50.44]
[null,null,null,null,null,"TX396","STARR COUNTY HSG AUTHORITY",50.79,47.41]
[null,null,null,null,null,"TX397","DILLEY HOUSING AUTHORITY",50.79,47.41]
[null,null,null,null,null,"TX408","HOUSING AUTHORITY OF MONAHANS",50.79,47.41]
[null,null,null,null,null,"TX421","UVALDE HOUSING AUTHORITY",50.79,47.41]
[null,null,null,null,null,"TX428","HALLETTSVILLE HOUSING AUTHORITY",50.79,47.41]
[null,null,null,null,null,"TX431","TARRANT COUNTY HOUSING ASSISTANCE PROGRAM",67.180000000000007,62.7]
[null,null,null,null,null,"TX432","HOUSING AUTHORITY OF EL PASO COUNTY",59.74,55.75]
[null,null,null,null,null,"TX433","ARLINGTON HOUSING AUTHORITY",67.180000000000007,62.7]
[null,null,null,null,null,"TX434","GRAND PRAIRIE HSNG & COMM DEV.",72.09,67.3]
[null,null,null,null,null,"TX435","GARLAND HOUSING AUTHORITY",72.09,67.3]
[null,null,null,null,null,"TX436","MESQUITE HOUSING AUTHORITY",72.09,67.3]
[null,null,null,null,null,"TX437","LANCASTER HOUSING AUTHORITY",72.09,67.3]
[null,null,null,null,null,"TX439","HOUSING AUTHORITY OF ANTHONY",59.74,55.75]
[null,null,null,null,null,"TX440","PASADENA (CITY OF)",63.78,59.53]
[null,null,null,null,null,"TX441","HARRIS COUNTY HSG AND COMMUNITY DEV. AGENCY",63.78,59.53]
[null,null,null,null,null,"TX444","BOERNE HOUSING AUTHORITY",54.05,50.44]
[null,null,null,null,null,"TX445","HIDALGO HOUSING AUTHORITY",54.18,50.56]
[null,null,null,null,null,"TX447","SAN JUAN HOUSING AUTHORITY",54.18,50.56]
[null,null,null,null,null,"TX448","LA JOYA HOUSING AUTHORITY",54.18,50.56]
[null,null,null,null,null,"TX449","ROMA HOUSING AUTHORITY",50.79,47.41]
[null,null,null,null,null,"TX451","ASHERTON HOUSING AUTHORITY",50.79,47.41]
[null,null,null,null,null,"TX452","BEXAR COUNTY HSG AUTHORITY",61.81,57.7]
[null,null,null,null,null,"TX454","WILLACY COUNTY HSG AUTHORITY",50.79,47.41]
[null,null,null,null,null,"TX455","HOUSING AUTHORITY OF ODESSA",69.45,64.819999999999993]
[null,null,null,null,null,"TX456","TYLER HOUSING AUTHORITY",61.62,57.51]
[null,null,null,null,null,"TX457","MARSHALL HOUSING AUTHORITY",56.96,53.17]
[null,null,null,null,null,"TX458","GRAYSON COUNTY HOUSING AUTHORITY",54.05,50.44]
[null,null,null,null,null,"TX459","LONGVIEW HSG. & COMM. DEVELOPMENT",60.61,56.57]
[null,null,null,null,null,"TX461","WALKER COUNTY HOUSING AUTHORITY",54.04,50.44]
[null,null,null,null,null,"TX469","NAVASOTA HOUSING AUTHORITY",63.78,59.53]
[null,null,null,null,null,"TX470","HOUSING AUTHORITY OF SAN ANGELO",54.05,50.44]
[null,null,null,null,null,"TX472","AMARILLO  HOUSING  AUTHORITY",54.05,50.44]
[null,null,null,null,null,"TX476","HILL COUNTY HOUSING AUTHORITY",50.79,47.41]
[null,null,null,null,null,"TX480","TRAVIS COUNTY HOUSING AUTHORITY",70.31,65.63]
[null,null,null,null,null,"TX481","PANHANDLE COMMUNITY SERVICES",54.05,50.44]
[null,null,null,null,null,"TX482","CENTRAL TEXAS COUNCIL OF GOVTS",54.05,50.44]
[null,null,null,null,null,"TX483","ROSENBERG HOUSING AUTHORITY",63.78,59.53]
[null,null,null,null,null,"TX484","BRAZORIA",68.88,64.28]
[null,null,null,null,null,"TX485","BIG SPRING HOUSING AGENCY",50.79,47.41]
[null,null,null,null,null,"TX486","HOUSING AUTHORITY OF NACOGDOCHES",51.63,48.18]
[null,null,null,null,null,"TX488","ANDERSON COUNTY HOUSING AUTHORITY",50.79,47.41]
[null,null,null,null,null,"TX489","MC KINNEY HOUSING AUTHORITY",72.09,67.3]
[null,null,null,null,null,"TX493","TERRELL HOUSISNG AUTHORITY",72.09,67.3]
[null,null,null,null,null,"TX494","SOMERVELL COUNTY HOUSING AUTHORITY",50.79,47.41]
[null,null,null,null,null,"TX495","CLEBURNE HOUSING AUTHORITY",67.180000000000007,62.7]
[null,null,null,null,null,"TX497","HIDALGO COUNTY HOUSING AUTHORITY",54.18,50.56]
[null,null,null,null,null,"TX498","WICHITA FALLS HOUSING ASSISTANCE PROGRAM",55.31,51.62]
[null,null,null,null,null,"TX499","ARK-TEX COUNCIL OF GOVTS",54.05,50.44]
[null,null,null,null,null,"TX500","FORT STOCKTON HOUSING AUTHORITY",50.79,47.41]
[null,null,null,null,null,"TX502","BURKBURNETT HOUSING ASSISTANCE PROGRAM",55.31,51.62]
[null,null,null,null,null,"TX505","LIBERTY COUNTY HOUSING AUTHORITY",63.78,59.53]
[null,null,null,null,null,"TX507","ZAPATA COUNTY HA",50.79,47.41]
[null,null,null,null,null,"TX509","CAMERON COUNTY HSG AUTHORITY",54.8,51.15]
[null,null,null,null,null,"TX511","JIM HOGG COUNTY HA",50.79,47.41]
[null,null,null,null,null,"TX512","DEEP EAST TX COUNCIL OF GOVTS",61.76,57.63]
[null,null,null,null,null,"TX514","SOUTH PLAINS REGIONAL HSG AUTH",50.79,47.41]
[null,null,null,null,null,"TX516","JACKSONVILLE HOUSING AUTHORITY",50.79,47.41]
[null,null,null,null,null,"TX519","ATHENS HOUSING AUTHORITY",50.79,47.41]
[null,null,null,null,null,"TX522","GREENVILLE HOUSING AUTHORITY",72.09,67.3]
[null,null,null,null,null,"TX523","ELECTRA HOUSING AUTHORITY",55.31,51.62]
[null,null,null,null,null,"TX526","BRAZOS VALLEY DEVELOPMENT COUNCIL",72.23,67.41]
[null,null,null,null,null,"TX530","LA MARQUE, CITY OF",63.78,59.53]
[null,null,null,null,null,"TX533","BALCH SPRINGS HOUSING AUTHORITY",72.09,67.3]
[null,null,null,null,null,"TX534","MIDLAND COUNTY HOUSING AUTHORITY",69.45,64.819999999999993]
[null,null,null,null,null,"TX535","LAMESA HOUSING AUTHORITY",50.79,47.41]
[null,null,null,null,null,"TX537","HALE COUNTY HOUSING AUTHORITY",50.79,47.41]
[null,null,null,null,null,"TX542","TEXOMA COUNCIL OF GOVERNMENTS",54.05,50.44]
[null,null,null,null,null,"TX546","HOUSING AUTHORITY OF RALLS",54.05,50.44]
[null,null,null,null,null,"TX556","ODEM HOUSING AUTHORITY",63.02,58.81]
[null,null,null,null,null,"TX559","DALLAS COUNTY HOUSING ASSISTANCE PROGRAM",72.09,67.3]
[null,null,null,null,null,"TX560","MONTGOMERY COUNTY HA",63.78,59.53]
[null,null,null,null,null,"TX564","ALAMO AREA COUNCIL OF GOVERNME",50.79,47.41]
[null,null,null,null,null,"TX901","TEXAS DEPT HOUSING & COMMUNITY AFFAIRS",72.09,67.3]
[null,null,null,null,null,"UT002","HA OF CITY OF OGDEN",60.66,56.62]
[null,null,null,null,null,"UT003","HOUSING AUTHORITY OF THE COUNTY OF SALT LAKE",60.66,56.62]
[null,null,null,null,null,"UT004","HOUSING AUTHORITY OF SALT LAKE CITY",60.66,56.62]
[null,null,null,null,null,"UT006","BEAVER CITY HOUSING AUTHORITY",65.989999999999995,61.58]
[null,null,null,null,null,"UT007","HOUSING AUTHORITY OF THE CITY OF PROVO",60.66,56.62]
[null,null,null,null,null,"UT009","DAVIS COUNTY HOUSING AUTHORITY",60.66,56.62]
[null,null,null,null,null,"UT011","HOUSING AUTHORITY OF UTAH COUNTY",60.66,56.62]
[null,null,null,null,null,"UT014","GRAND COUNTY HOUSING AUTHORITY",75.06,70.05]
[null,null,null,null,null,"UT015","EMERY COUNTY HOUSING AUTHORITY",75.06,70.05]
[null,null,null,null,null,"UT016","HOUSING AUTHORITY OF CARBON COUNTY",75.06,70.05]
[null,null,null,null,null,"UT020","TOOELE COUNTY HOUSING AUTHORITY",60.66,56.62]
[null,null,null,null,null,"UT021","ST. GEORGE HOUSING AUTHORITY",65.95,61.56]
[null,null,null,null,null,"UT022","WEBER COUNTY HOUSING AUTHORITY",60.66,56.62]
[null,null,null,null,null,"UT025","WEST VALLEY CITY HOUSING AUTHORITY",60.66,56.62]
[null,null,null,null,null,"UT026","LOGAN CITY HOUSING AUTHORITY",60.66,56.62]
[null,null,null,null,null,"UT028","ROOSEVELT CITY HOUSING AUTHORITY",75.06,70.05]
[null,null,null,null,null,"UT029","MYTON CITY HOUSING AUTHORITY",75.06,70.05]
[null,null,null,null,null,"UT030","BEAR RIVER",60.66,56.62]
[null,null,null,null,null,"UT031","CEDAR CITY HOUSING AUTHORITY",65.989999999999995,61.58]
[null,null,null,null,null,"VA001","PORTSMOUTH REDEVELOPMENT & H/A",68.22,63.67]
[null,null,null,null,null,"VA002","BRISTOL REDEVELOPMENT HA",53.13,49.59]
[null,null,null,null,null,"VA003","NEWPORT NEWS REDEVELOPMENT & HA",68.22,63.67]
[null,null,null,null,null,"VA004","ALEXANDRIA REDEVELOPMENT & H/A",100.59,93.89]
[null,null,null,null,null,"VA005","HOPEWELL REDEVELOPMENT & H/A",61.89,57.75]
[null,null,null,null,null,"VA006","NORFOLK REDEVELOPMENT & H/A",68.22,63.67]
[null,null,null,null,null,"VA007","RICHMOND REDEVELOPMENT & H/A",61.89,57.75]
[null,null,null,null,null,"VA010","DANVILLE REDEVELOPMENT AND H/A",53.09,49.55]
[null,null,null,null,null,"VA011","ROANOKE REDEVELOPMENT & H/A",54.46,50.82]
[null,null,null,null,null,"VA012","CHESAPEAKE REDEVELOPMENT & H/A",68.22,63.67]
[null,null,null,null,null,"VA013","LYNCHBURG REDEVELOPMENT & H/A",55.07,51.4]
[null,null,null,null,null,"VA014","HARRISONBURG REDEVELOPMENT & H/A",55.07,51.4]
[null,null,null,null,null,"VA015","NORTON REDEVELOPMENT & H/A",49.77,46.46]
[null,null,null,null,null,"VA016","CHARLOTTESVILLE REDEVELOPMENT & H/A",69.2,64.58]
[null,null,null,null,null,"VA017","HAMPTON REDEVELOPEMENT & HSG AUTH",68.22,63.67]
[null,null,null,null,null,"VA018","FRANKLIN REDEVELOPMENT & H/A",49.77,46.46]
[null,null,null,null,null,"VA019","FAIRFAX CO RED AND HNG AUTHORITY",100.59,93.89]
[null,null,null,null,null,"VA020","PETERSBURG REDEVELOPMENT & H/A",61.89,57.75]
[null,null,null,null,null,"VA021","WYTHEVILLE REDEVELOPMENET & HOUSING AUTHORITY",49.77,46.46]
[null,null,null,null,null,"VA022","WAYNESBORO REDEVELOPMENT & H/A",49.9,46.57]
[null,null,null,null,null,"VA023","STAUNTON REDEVELOPEMENT & HOUSING AUTHORITY",49.9,46.57]
[null,null,null,null,null,"VA024","WISE COUNTY REDEVELOPMENT & H/A",49.77,46.46]
[null,null,null,null,null,"VA025","SUFFOLK REDEVELOPMENT & H/A",68.22,63.67]
[null,null,null,null,null,"VA028","ARLINGTON CO DEPT OF  HUMAN SERVICES",100.59,93.89]
[null,null,null,null,null,"VA030","MARION REDEVELOPEMENT AND  HSG AUTH",49.77,46.46]
[null,null,null,null,null,"VA031","SCOTT COUNTY REDEVELOPMENT & H/A",53.13,49.59]
[null,null,null,null,null,"VA032","ABINGDON REDEVELOPMENT HSG. AUTH.",53.13,49.59]
[null,null,null,null,null,"VA034","LEE COUNTY HOUSING AUTHORITY",49.77,46.46]
[null,null,null,null,null,"VA035","LOUDOUN COUNTY HOUSING SERVICES",100.59,93.89]
[null,null,null,null,null,"VA036","COUNTY OF ALBEMARLE/DEPT.OF FINANCE",69.2,64.58]
[null,null,null,null,null,"VA037","COVINGTON REDEV & HSG AUTHORITY",49.9,46.57]
[null,null,null,null,null,"VA038","BIG STONE GAP REDEVELOPMENT AND",49.77,46.46]
[null,null,null,null,null,"VA039","CITY OF VIRGINIA BEACH",68.22,63.67]
[null,null,null,null,null,"VA040","ACCOMACK-NORTHHAMPTON REGIONAL HOUSING AUTHORITY",49.77,46.46]
[null,null,null,null,null,"VA041","JAMES CITY COUNTY HSG & COMMUNITY DEVELOPEMENT",68.22,63.67]
[null,null,null,null,null,"VA042","PEOPLE INCORPORATED OF SOUTHWEST VIRGINIA",53.13,49.59]
[null,null,null,null,null,"VA043","TOTAL ACTION AGAINST POVERTY IN ROANOKE",54.46,50.82]
[null,null,null,null,null,"VA044","BUCKINGHAM  HOUSING DEVELOPMENT CORPRATION",61.89,57.75]
[null,null,null,null,null,"VA045","MARTINSVILLE REDEVELOPMENT & HOUSING AUTHORITY",50.01,46.67]
[null,null,null,null,null,"VA046","PRINCE WILLIAM COUNTY",100.59,93.89]
[null,null,null,null,null,"VA880","PEIDMONT HOUSING ALLIANCE",69.2,64.58]
[null,null,null,null,null,"VA901","VIRGINIA HOUSING DEVELOPMENT AUTHORITY",61.89,57.75]
[null,null,null,null,null,"VQ901","VIRGIN ISLANDS",79.77,74.459999999999994]
[null,null,null,null,null,"VT001","BURLINGTON HOUSING AUTHORITY",80.25,74.900000000000006]
[null,null,null,null,null,"VT002","BRATTLEBORO HOUSING AUTHORITY",69.099999999999994,64.489999999999995]
[null,null,null,null,null,"VT003","RUTLAND HOUSING AUTHORITY",71.47,66.709999999999994]
[null,null,null,null,null,"VT004","SPRINGFIELD HOUSING AUTHORITY",70.760000000000005,66.040000000000006]
[null,null,null,null,null,"VT005","BARRE HOUSING AUTHORITY",66.25,61.83]
[null,null,null,null,null,"VT006","WINOOSKI HOUSING AUTHORITY",80.25,74.900000000000006]
[null,null,null,null,null,"VT008","MONTPELIER HOUSING AUTHORITY",66.25,61.83]
[null,null,null,null,null,"VT009","BENNINGTON HOUSING AUTHORITY",66.959999999999994,62.5]
[null,null,null,null,null,"VT010","HARTFORD HOUSING AUTHORITY",70.760000000000005,66.040000000000006]
[null,null,null,null,null,"VT011","ST ALBANS HSG AUTHORITY",80.25,74.900000000000006]
[null,null,null,null,null,"VT901","VERMONT STATE HOUSING AUTHORITY",80.25,74.900000000000006]
[null,null,null,null,null,"WA001","SEATTLE HOUSING AUTHORITY",80.44,75.06]
[null,null,null,null,null,"WA002","KING COUNTY HOUSING AUTHORITY",80.44,75.06]
[null,null,null,null,null,"WA003","HA OF THE CITY OF BREMERTON",71.05,66.31]
[null,null,null,null,null,"WA004","HOUSING AUTHORITY OF THE COUNTY OF CLALLAM",68.040000000000006,63.5]
[null,null,null,null,null,"WA005","HOUSING AUTHORITY OF THE CITY OF TACOMA",68.3,63.76]
[null,null,null,null,null,"WA006","HOUSING AUTHORITY CITY OF EVERETT",80.44,75.06]
[null,null,null,null,null,"WA007","HOUSING AUTHORITY CITY OF LONGVIEW",54.77,51.11]
[null,null,null,null,null,"WA008","HOUSING AUTHORITY OF THE CITY OF VANCOUVER",64.22,59.93]
[null,null,null,null,null,"WA010","HOUSING AUTHORITY OF THE CITY OF ANACORTES",71.819999999999993,67.010000000000005]
[null,null,null,null,null,"WA011","HA OF THE CITY OF RENTON",80.44,75.06]
[null,null,null,null,null,"WA012","HOUSING AUTHORITY CITY OF KENNEWICK",62.05,57.91]
[null,null,null,null,null,"WA013","COLUMBIA GORGE HOUSING AUTHORITY",63.14,58.92]
[null,null,null,null,null,"WA014","HOUSING AUTHORITY OF GRANT COUNTY",52.47,48.97]
[null,null,null,null,null,"WA017","HOUSING AUTHORITY OF ASOTIN COUNTY",57.81,53.96]
[null,null,null,null,null,"WA018","HOUSING AUTHORITY OF GRAYS HARBOR COUNTY",68.040000000000006,63.5]
[null,null,null,null,null,"WA019","HOUSING AUTHORITY OF THE CITY OF KALAMA",54.77,51.11]
[null,null,null,null,null,"WA020","KELSO HOUSING AUTHORITY",54.77,51.11]
[null,null,null,null,null,"WA021","HSG AUTH OF THE CITY OF PASCO & FRANKLIN COUNTY",62.05,57.91]
[null,null,null,null,null,"WA024","HOUSING AUTHORITY OF ISLAND COUNTY",79.94,74.599999999999994]
[null,null,null,null,null,"WA025","BELLINGHAM HOUSING AUTHORITY",76.36,71.260000000000005]
[null,null,null,null,null,"WA036","KITSAP COUNTY CONSOLIDATED HOUSING AUTH",71.05,66.31]
[null,null,null,null,null,"WA039","HOUSING AUTHORITY OF SNOHOMISH COUNTY",80.44,75.06]
[null,null,null,null,null,"WA042","HOUSING AUTHORITY OF THE CITY OF YAKIMA",64.52,60.21]
[null,null,null,null,null,"WA049","HOUSING AUTHORITY OF THURSTON COUNTY",73.400000000000006,68.5]
[null,null,null,null,null,"WA054","PIERCE COUNTY HOUSING AUTHORITY",68.3,63.76]
[null,null,null,null,null,"WA055","SPOKANE HOUSING AUTHORITY",61.79,57.68]
[null,null,null,null,null,"WA057","HOUSING AUTHORITY OF THE CITY OF WALLA WALLA",67.67,63.16]
[null,null,null,null,null,"WA059","MASON COUNTY HOUSING AUTHORITY",68.040000000000006,63.5]
[null,null,null,null,null,"WA061","HOUSING AUTHORITY OF SKAGIT COUNTY",69.81,65.16]
[null,null,null,null,null,"WA064","HA OF CHELAN COUNTY/CITY OF WENATCHEE",63.53,59.29]
[null,null,null,null,null,"WA065","HOUSING AUTHORITY OF THE CITY OF RICHLAND",62.05,57.91]
[null,null,null,null,null,"WA068","HOUSING AUTHORITY OF JEFFERSON COUNTY",68.040000000000006,63.5]
[null,null,null,null,null,"WA069","FERRY COUNTY JOINT HOUSING AUTHORITY",52.47,48.97]
[null,null,null,null,null,"WA071","OKANOGAN COUNTY HOUSING AUTHORITY",57.5,53.66]
[null,null,null,null,null,"WI001","HOUSING AUTH.CITY OF SUPERIOR",54.52,50.89]
[null,null,null,null,null,"WI002","HA OF THE CITY OF MILWAUKEE",58.06,54.2]
[null,null,null,null,null,"WI003","MADISON CDA",64.62,60.32]
[null,null,null,null,null,"WI006","HA OF THE CITY OF LACROSSE",55.55,51.85]
[null,null,null,null,null,"WI011","MARSHFIELD HA",47.75,44.56]
[null,null,null,null,null,"WI019","AMERY HA",46.97,43.84]
[null,null,null,null,null,"WI020","NEW RICHMOND HA",73.709999999999994,68.8]
[null,null,null,null,null,"WI031","WAUSAU CDA",47.78,44.6]
[null,null,null,null,null,"WI037","STEVENS POINT HA",47.85,44.66]
[null,null,null,null,null,"WI039","WITTENBERG HOUSING AUTHORITY",46.97,43.84]
[null,null,null,null,null,"WI043","KAUKAUNA HA",48.89,45.64]
[null,null,null,null,null,"WI045","SHAWANO CITY HA",46.97,43.84]
[null,null,null,null,null,"WI047","SHEBOYGAN HA",48.12,44.91]
[null,null,null,null,null,"WI048","NEW LONDON HA",46.97,43.84]
[null,null,null,null,null,"WI050","RICE LAKE HA",46.97,43.84]
[null,null,null,null,null,"WI060","RIVER FALLS HA",73.709999999999994,68.8]
[null,null,null,null,null,"WI064","BELOIT CDA",53.88,50.29]
[null,null,null,null,null,"WI065","APPLETON HA",48.89,45.64]
[null,null,null,null,null,"WI068","WISCONSIN RAPIDS HA",47.75,44.56]
[null,null,null,null,null,"WI069","MAUSTON HA",47.75,44.56]
[null,null,null,null,null,"WI070","RHINELANDER HOUSING AUTHORITY",46.97,43.84]
[null,null,null,null,null,"WI083","WEST BEND HOUSING AUTHORITY",58.06,54.2]
[null,null,null,null,null,"WI085","ANTIGO HA",46.97,43.84]
[null,null,null,null,null,"WI091","DODGEVILLE HA",46.97,43.84]
[null,null,null,null,null,"WI096","TOMAH HOUSING AUTHORITY",46.97,43.84]
[null,null,null,null,null,"WI113","OSHKOSH HA",48.89,45.64]
[null,null,null,null,null,"WI127","WASHBURN HA",46.97,43.84]
[null,null,null,null,null,"WI131","ASHLAND HA",46.97,43.84]
[null,null,null,null,null,"WI142","WAUKESHA HOUSING AUTHORITY",58.06,54.2]
[null,null,null,null,null,"WI146","HARTFORD CDA",58.06,54.2]
[null,null,null,null,null,"WI156","MIDDLETON HOUSING AUTHORITY",64.62,60.32]
[null,null,null,null,null,"WI160","DUNN COUNTY HA",46.97,43.84]
[null,null,null,null,null,"WI166","TREMPEALEAU CO HA",46.97,43.84]
[null,null,null,null,null,"WI183","RACINE COUNTY HA",53.05,49.5]
[null,null,null,null,null,"WI186","BROWN COUNTY HA",48.67,45.42]
[null,null,null,null,null,"WI193","EAU CLAIRE COUNTY HA",46.97,43.84]
[null,null,null,null,null,"WI195","KENOSHA HOUSING AUTHORITY",60.05,56.04]
[null,null,null,null,null,"WI201","WEST ALLIS CDA",58.06,54.2]
[null,null,null,null,null,"WI203","EVANSVILLE HA",53.88,50.29]
[null,null,null,null,null,"WI204","SAUK COUNTY HOUSING AUTHORITY",47.75,44.56]
[null,null,null,null,null,"WI205","MONROE COUNTY HA",46.97,43.84]
[null,null,null,null,null,"WI206","DOOR COUNTY HOUSING AUTHORITY",46.97,43.84]
[null,null,null,null,null,"WI207","EAU CLAIRE HOUSING AUTHORITY",46.97,43.84]
[null,null,null,null,null,"WI208","PLATTEVILLE HOUSING AUTHORITY",46.97,43.84]
[null,null,null,null,null,"WI213","OSHKOSH/WINNEBAGO COUNTY HA",48.89,45.64]
[null,null,null,null,null,"WI214","DANE COUNTY HOUSING AUTHORITY",64.62,60.32]
[null,null,null,null,null,"WI218","MILWAUKEE CO HA",58.06,54.2]
[null,null,null,null,null,"WI219","JANESVILLE CDA",53.88,50.29]
[null,null,null,null,null,"WI221","LAFAYETTE CO. HSG AUTH",46.97,43.84]
[null,null,null,null,null,"WI222","SAWYER COUNTY HA",46.97,43.84]
[null,null,null,null,null,"WI230","CRAWFORD COUNTY HSG AUTH",46.97,43.84]
[null,null,null,null,null,"WI231","ASHLAND COUNTY HA",46.97,43.84]
[null,null,null,null,null,"WI233","DODGE COUNTY HA",46.97,43.84]
[null,null,null,null,null,"WI237","PORTAGE COUNTY HA",47.85,44.66]
[null,null,null,null,null,"WI241","MARINETTE CO HA",46.97,43.84]
[null,null,null,null,null,"WI242","BURNETT CTY HA",46.97,43.84]
[null,null,null,null,null,"WI244","WALWORTH COUNTY HA",51.57,48.13]
[null,null,null,null,null,"WI245","BARRON COUNTY HA",46.97,43.84]
[null,null,null,null,null,"WI246","FOND DU LAC COUNTY HA",49.11,45.83]
[null,null,null,null,null,"WI248","CHIPPEWA CO. HOUSING AUTHORITY",46.97,43.84]
[null,null,null,null,null,"WI256","RICHLAND COUNTY HA",46.97,43.84]
[null,null,null,null,null,"WI259","CITY OF NEW BERLIN HA",58.06,54.2]
[null,null,null,null,null,"WI261","WAUKESHA COUNTY HA",58.06,54.2]
[null,null,null,null,null,"WI262","OCONTO COUNTY HA  /  NEWCAP, INC.",46.97,43.84]
[null,null,null,null,null,"WI263","TAYLOR COUNTY HA",46.97,43.84]
[null,null,null,null,null,"WI901","WISCONSIN HOUSING & ECONOMIC",58.06,54.2]
[null,null,null,null,null,"WV001","CHARLESTON HOUSING AUTHORITY",62.13,57.99]
[null,null,null,null,null,"WV002","HA OF THE CITY OF MORGANTOWN",52.33,48.84]
[null,null,null,null,null,"WV003","WHEELING HOUSING AUTHORITY",51.88,48.43]
[null,null,null,null,null,"WV004","HUNTINGTON WV HOUSING AUTHORITY",51.88,48.43]
[null,null,null,null,null,"WV005","PARKERSBURG HOUSING AUTHORITY",51.88,48.43]
[null,null,null,null,null,"WV006","MARTINSBURG HOUSING AUTHORITY",51.78,48.32]
[null,null,null,null,null,"WV009","THE CITY OF FAIRMONT HSG AUTH",52.33,48.84]
[null,null,null,null,null,"WV010","HOUSING AUTHORITY CITY OF KEYSER",55.68,51.97]
[null,null,null,null,null,"WV013","BUCKHANNON HOUSING AUTHORITY",48.38,45.15]
[null,null,null,null,null,"WV014","BENWOOD HOUSING AUTHORITY",51.88,48.43]
[null,null,null,null,null,"WV015","HA OF THE CITY OF BECKLEY",48.38,45.15]
[null,null,null,null,null,"WV016","WEIRTON HOUSING AUTHORITY",53.89,50.29]
[null,null,null,null,null,"WV017","POINT PLEASANT HOUSING AUTHORITY",48.38,45.15]
[null,null,null,null,null,"WV018","HOUSING AUTHORITY CITY OF BLUEFIELD",48.38,45.15]
[null,null,null,null,null,"WV027","CLARKSBURG HOUSING AUTHORITY",49.39,46.1]
[null,null,null,null,null,"WV034","GRANT COUNTY HOUSING AUTHORITY",48.38,45.15]
[null,null,null,null,null,"WV035","JACKSON HOUSING AUTHORITY",49.39,46.1]
[null,null,null,null,null,"WV036","KANAWHA COUNTY HA",62.13,57.99]
[null,null,null,null,null,"WV037","HOUSING AUTHORITY OF MINGO COUNTY",51.88,48.43]
[null,null,null,null,null,"WV039","HOUSING AUTHORITY OF RALEIGH CO",48.38,45.15]
[null,null,null,null,null,"WV042","BOONE COUNTY HOUSING AUTHORITY",48.38,45.15]
[null,null,null,null,null,"WV043","HARRISON COUNTY HOUSING AUTHORITY",49.39,46.1]
[null,null,null,null,null,"WV045","RANDOLPH COUNTY HOUSING AUTHORITY",48.38,45.15]
[null,null,null,null,null,"WV046","GREENBRIER CO HOUSING AUTHORITY",48.38,45.15]
[null,null,null,null,null,"WY002","HOUSING AUTHORITY OF THE CITY OF CHEYENNE",73.39,68.510000000000005]
[null,null,null,null,null,"WY003","ROCK SPRINGS HOUSING AUTHORITY",59.74,55.76]
[null,null,null,null,null,"WY004","HOUSING AUTHORITY OF THE CITY OF CASPER",88.43,82.54]
[null,null,null,null,null,"WY013","EVANSTON HOUSING AUTHORITY",59.74,55.76]

{"sheet":"Tracking Actual Success Rate","index":2,"n_rows":34,"n_cols":36,"rows_kept":34,"cut":false,"hidden":false,"merged":[[1,0,14,0],[0,4,0,8],[0,9,0,20]]}
[null,null,null,null,{"$f":"'Projection Analysis'!C6-1","v":-1},null,null,null,null,{"$f":"'Projection Analysis'!C6","v":0}]
[null," Issuance Month","# issued Each Month","Eventual # leased","Aug","Sept","Oct","Nov","Dec","Jan","Feb","March","April","May","June","July","Aug","Sept","Oct","Nov","Dec",null,null,null,null,null,null,null,null,null,"30 days","60 days","90 days","120 days","150 days"]
[null,{"$f":" \"July  \"&$E$1","v":"July  -1"},null,{"$f":"SUM(E3:I3)","v":0},null,null,null,null,null,null,null,null,null,null,null,null,null,null,null,null,null,null,null,null,null,null,null,null,null,null,{"$f":"E3","v":0},{"$f":"F3","v":0},{"$f":"G3","v":0},{"$f":"H3","v":0},{"$f":"I3","v":0}]
[null,{"$f":" \"August  \"&$E$1","v":"August  -1"},null,{"$f":"SUM(F4:J4)","v":0},null,null,null,null,null,null,null,null,null,null,null,null,null,null,null,null,null,null,null,null,null,null,null,null,null,null,{"$f":"F4","v":0},{"$f":"G4","v":0},{"$f":"H4","v":0},{"$f":"I4","v":0},{"$f":"J4","v":0}]
[null,{"$f":" \"September  \"&$E$1","v":"September  -1"},null,{"$f":"SUM(G5:K5)","v":0},null,null,null,null,null,null,null,null,null,null,null,null,null,null,null,null,null,null,null,null,null,null,null,null,null,null,{"$f":"G5","v":0},{"$f":"H5","v":0},{"$f":"I5","v":0},{"$f":"J5","v":0},{"$f":"K5","v":0}]
[null,{"$f":" \"October  \"&$E$1","v":"October  -1"},null,{"$f":"SUM(H6:L6)","v":0},null,null,null,null,null,null,null,null,null,null,null,null,null,null,null,null,null,null,null,null,null,null,null,null,null,null,{"$f":"H6","v":0},{"$f":"I6","v":0},{"$f":"J6","v":0},{"$f":"K6","v":0},{"$f":"L6","v":0}]
[null,{"$f":" \"November  \"&$E$1","v":"November  -1"},null,{"$f":"SUM(I7:M7)","v":0},null,null,null,null,null,null,null,null,null,null,null,null,null,null,null,null,null,null,null,null,null,null,null,null,null,null,{"$f":"I7","v":0},{"$f":"J7","v":0},{"$f":"K7","v":0},{"$f":"L7","v":0},{"$f":"M7","v":0}]
[null,{"$f":" \"December  \"&$E$1","v":"December  -1"},null,{"$f":"SUM(J8:N8)","v":0},null,null,null,null,null,null,null,null,null,null,null,null,null,null,null,null,null,null,null,null,null,null,null,null,null,null,{"$f":"J8","v":0},{"$f":"K8","v":0},{"$f":"L8","v":0},{"$f":"M8","v":0},{"$f":"N8","v":0}]
[null,{"$f":" \"January  \"&$J$1","v":"January  0"},null,{"$f":"SUM(K9:O9)","v":0},null,null,null,null,null,null,null,null,null,null,null,null,null,null,null,null,null,null,null,null,null,null,null,null,null,null,{"$f":"K9","v":0},{"$f":"L9","v":0},{"$f":"M9","v":0},{"$f":"N9","v":0},{"$f":"O9","v":0}]
[null,{"$f":" \"February  \"&$J$1","v":"February  0"},null,{"$f":"SUM(L10:P10)","v":0},null,null,null,null,null,null,null,null,null,null,null,null,null,null,null,null,null,null,null,null,null,null,null,null,null,null,{"$f":"L10","v":0},{"$f":"M10","v":0},{"$f":"N10","v":0},{"$f":"O10","v":0},{"$f":"P10","v":0}]
[null,{"$f":" \"March  \"&$J$1","v":"March  0"},null,{"$f":"SUM(M11:Q11)","v":0},null,null,null,null,null,null,null,null,null,null,null,null,null,null,null,null,null,null,null,null,null,null,null,null,null,null,{"$f":"M11","v":0},{"$f":"N11","v":0},{"$f":"O11","v":0},{"$f":"P11","v":0},{"$f":"Q11","v":0}]
[null,{"$f":" \"April  \"&$J$1","v":"April  0"},null,{"$f":"SUM(N12:R12)","v":0},null,null,null,null,null,null,null,null,null,null,null,null,null,null,null,null,null,null,null,null,null,null,null,null,null,null,{"$f":"N12","v":0},{"$f":"O12","v":0},{"$f":"P12","v":0},{"$f":"Q12","v":0},{"$f":"R12","v":0}]
[null,{"$f":" \"May  \"&$J$1","v":"May  0"},null,{"$f":"SUM(O13:S13)","v":0},null,null,null,null,null,null,null,null,null,null,null,null,null,null,null,null,null,null,null,null,null,null,null,null,null,null,{"$f":"O13","v":0},{"$f":"P13","v":0},{"$f":"Q13","v":0},{"$f":"R13","v":0},{"$f":"S13","v":0}]
[null,{"$f":" \"June  \"&$J$1","v":"June  0"},null,{"$f":"SUM(P14:T14)","v":0},null,null,null,null,null,null,null,null,null,null,null,null,null,null,null,null,null,null,null,null,null,null,null,null,null,null,{"$f":"P14","v":0},{"$f":"Q14","v":0},{"$f":"R14","v":0},{"$f":"S14","v":0},{"$f":"T14","v":0}]
[null,{"$f":" \"July  \"&$J$1","v":"July  0"},null,{"$f":"SUM(Q15:U15)","v":0},null,null,null,null,null,null,null,null,null,null,null,null,null,null,null,null,null,null,null,null,null,null,null,null,null,null,{"$f":"Q15","v":0},{"$f":"R15","v":0},{"$f":"S15","v":0},{"$f":"T15","v":0},{"$f":"U15","v":0}]
[null,"Total",{"$f":"SUM(C3:C15)","v":0},{"$f":"SUM(D3:D15)","v":0},{"$f":"SUM(E3:E15)","v":0},{"$f":"SUM(F3:F15)","v":0},0,0,0,0,0,0,0,0,0,0,0,0,0,0,0,null,null,null,null,null,null,null,null,null,{"$f":"SUM(AE3:AE15)","v":0},{"$f":"SUM(AF3:AF15)","v":0},{"$f":"SUM(AG3:AG15)","v":0},{"$f":"SUM(AH3:AH15)","v":0},{"$f":"SUM(AI3:AI15)","v":0},{"$f":"SUM(AE16:AI16)","v":0}]
[]
[]
[null,null,null,null,null,null,null,null,null,null,null,null,null,null,null,null,null,null,null,null,null,null,null,null,null,null,null,null,null,null,{"$f":"AE16/$AJ16","v":{"$error":"#DIV/0!"}},{"$f":"AF16/$AJ16","v":{"$error":"#DIV/0!"}},{"$f":"AG16/$AJ16","v":{"$error":"#DIV/0!"}},{"$f":"AH16/$AJ16","v":{"$error":"#DIV/0!"}},{"$f":"AI16/$AJ16","v":{"$error":"#DIV/0!"}},{"$f":"SUM(AE19:AI19)","v":{"$error":"#DIV/0!"}}]
[null," Issuance Month","Success Rate","% Leased  in 30 days","% Leased  in 30 to 60 days","% Leased  in 60 - 90 days","% Leased  in 90 to 120 days","% Leased  in 90 to 120 days","Avg Months"]
[null,{"$f":" \"July  \"&$E$1","v":"July  -1"},{"$f":"D3/C3","v":{"$error":"#DIV/0!"}},{"$f":"E3/$D3","v":{"$error":"#DIV/0!"}},{"$f":"F3/$D3","v":{"$error":"#DIV/0!"}},{"$f":"G3/$D3","v":{"$error":"#DIV/0!"}},{"$f":"H3/$D3","v":{"$error":"#DIV/0!"}},{"$f":"I3/$D3","v":{"$error":"#DIV/0!"}},{"$f":"((D21*100)+(E21*200)+(F21*300)+(G21*400)+(H21*500))/100","v":{"$error":"#DIV/0!"}}]
[null,{"$f":" \"August  \"&$E$1","v":"August  -1"},{"$error":"#DIV/0!"},{"$f":"F4/$D4","v":{"$error":"#DIV/0!"}},{"$f":"G4/$D4","v":{"$error":"#DIV/0!"}},{"$f":"H4/$D4","v":{"$error":"#DIV/0!"}},{"$f":"I4/$D4","v":{"$error":"#DIV/0!"}},{"$f":"J4/$D4","v":{"$error":"#DIV/0!"}},{"$f":"((D22*100)+(E22*200)+(F22*300)+(G22*400)+(H22*500))/100","v":{"$error":"#DIV/0!"}}]
[null,{"$f":" \"September  \"&$E$1","v":"September  -1"},{"$error":"#DIV/0!"},{"$f":"G5/$D5","v":{"$error":"#DIV/0!"}},{"$f":"H5/$D5","v":{"$error":"#DIV/0!"}},{"$f":"I5/$D5","v":{"$error":"#DIV/0!"}},{"$f":"J5/$D5","v":{"$error":"#DIV/0!"}},{"$f":"K5/$D5","v":{"$error":"#DIV/0!"}},{"$error":"#DIV/0!"}]
[null,{"$f":" \"October  \"&$E$1","v":"October  -1"},{"$error":"#DIV/0!"},{"$f":"H6/$D6","v":{"$error":"#DIV/0!"}},{"$f":"I6/$D6","v":{"$error":"#DIV/0!"}},{"$f":"J6/$D6","v":{"$error":"#DIV/0!"}},{"$f":"K6/$D6","v":{"$error":"#DIV/0!"}},{"$f":"L6/$D6","v":{"$error":"#DIV/0!"}},{"$error":"#DIV/0!"}]
[null,{"$f":" \"November  \"&$E$1","v":"November  -1"},{"$error":"#DIV/0!"},{"$f":"I7/$D7","v":{"$error":"#DIV/0!"}},{"$f":"J7/$D7","v":{"$error":"#DIV/0!"}},{"$f":"K7/$D7","v":{"$error":"#DIV/0!"}},{"$f":"L7/$D7","v":{"$error":"#DIV/0!"}},{"$f":"M7/$D7","v":{"$error":"#DIV/0!"}},{"$error":"#DIV/0!"}]
[null,{"$f":" \"December  \"&$E$1","v":"December  -1"},{"$error":"#DIV/0!"},{"$f":"J8/$D8","v":{"$error":"#DIV/0!"}},{"$f":"K8/$D8","v":{"$error":"#DIV/0!"}},{"$f":"L8/$D8","v":{"$error":"#DIV/0!"}},{"$f":"M8/$D8","v":{"$error":"#DIV/0!"}},{"$f":"N8/$D8","v":{"$error":"#DIV/0!"}},{"$error":"#DIV/0!"}]
[null,{"$f":" \"January  \"&$J$1","v":"January  0"},{"$error":"#DIV/0!"},{"$f":"K9/$D9","v":{"$error":"#DIV/0!"}},{"$f":"L9/$D9","v":{"$error":"#DIV/0!"}},{"$f":"M9/$D9","v":{"$error":"#DIV/0!"}},{"$f":"N9/$D9","v":{"$error":"#DIV/0!"}},{"$f":"O9/$D9","v":{"$error":"#DIV/0!"}},{"$error":"#DIV/0!"}]
[null,{"$f":" \"February  \"&$J$1","v":"February  0"},{"$error":"#DIV/0!"},{"$f":"L10/$D10","v":{"$error":"#DIV/0!"}},{"$f":"M10/$D10","v":{"$error":"#DIV/0!"}},{"$f":"N10/$D10","v":{"$error":"#DIV/0!"}},{"$f":"O10/$D10","v":{"$error":"#DIV/0!"}},{"$f":"P10/$D10","v":{"$error":"#DIV/0!"}},{"$error":"#DIV/0!"}]
[null,{"$f":" \"March  \"&$J$1","v":"March  0"},{"$error":"#DIV/0!"},{"$f":"M11/$D11","v":{"$error":"#DIV/0!"}},{"$f":"N11/$D11","v":{"$error":"#DIV/0!"}},{"$f":"O11/$D11","v":{"$error":"#DIV/0!"}},{"$f":"P11/$D11","v":{"$error":"#DIV/0!"}},{"$f":"Q11/$D11","v":{"$error":"#DIV/0!"}},{"$error":"#DIV/0!"}]
[null,{"$f":" \"April  \"&$J$1","v":"April  0"},{"$error":"#DIV/0!"},{"$f":"N12/$D12","v":{"$error":"#DIV/0!"}},{"$f":"O12/$D12","v":{"$error":"#DIV/0!"}},{"$f":"P12/$D12","v":{"$error":"#DIV/0!"}},{"$f":"Q12/$D12","v":{"$error":"#DIV/0!"}},{"$f":"R12/$D12","v":{"$error":"#DIV/0!"}},{"$error":"#DIV/0!"}]
[null,{"$f":" \"May  \"&$J$1","v":"May  0"},{"$error":"#DIV/0!"},{"$f":"O13/$D13","v":{"$error":"#DIV/0!"}},{"$f":"P13/$D13","v":{"$error":"#DIV/0!"}},{"$f":"Q13/$D13","v":{"$error":"#DIV/0!"}},{"$f":"R13/$D13","v":{"$error":"#DIV/0!"}},{"$f":"S13/$D13","v":{"$error":"#DIV/0!"}},{"$error":"#DIV/0!"}]
[null,{"$f":" \"June  \"&$J$1","v":"June  0"},{"$error":"#DIV/0!"},{"$f":"P14/$D14","v":{"$error":"#DIV/0!"}},{"$f":"Q14/$D14","v":{"$error":"#DIV/0!"}},{"$f":"R14/$D14","v":{"$error":"#DIV/0!"}},{"$f":"S14/$D14","v":{"$error":"#DIV/0!"}},{"$f":"T14/$D14","v":{"$error":"#DIV/0!"}},{"$error":"#DIV/0!"}]
[null,{"$f":" \"July  \"&$J$1","v":"July  0"},{"$error":"#DIV/0!"},{"$f":"Q15/$D15","v":{"$error":"#DIV/0!"}},{"$f":"R15/$D15","v":{"$error":"#DIV/0!"}},{"$f":"S15/$D15","v":{"$error":"#DIV/0!"}},{"$f":"T15/$D15","v":{"$error":"#DIV/0!"}},{"$f":"U15/$D15","v":{"$error":"#DIV/0!"}},{"$error":"#DIV/0!"}]
[null,"Cumulative",{"$error":"#DIV/0!"},{"$f":"AE16/$AJ16","v":{"$error":"#DIV/0!"}},{"$f":"AF16/$AJ16","v":{"$error":"#DIV/0!"}},{"$f":"AG16/$AJ16","v":{"$error":"#DIV/0!"}},{"$f":"AH16/$AJ16","v":{"$error":"#DIV/0!"}},{"$f":"AI16/$AJ16","v":{"$error":"#DIV/0!"}},{"$f":"((D34*100)+(E34*200)+(F34*300)+(G34*400)+(H34*500))/100","v":{"$error":"#DIV/0!"}}]

{"sheet":"Re-benchmarking Est. Yr 2 & 3","index":3,"n_rows":47,"n_cols":3,"rows_kept":47,"cut":false,"hidden":false,"merged":[[0,0,0,4],[3,0,3,2],[26,0,26,2]]}
["Re-Benchmarking and Set Aside - Years 2 and 3 Estimate"]
[]
[]
["Year 2 CY Re-Benchmark Period Jan - Dec Current Year"]
[]
["Months","UMLs","HAP Exp"]
["January",{"$f":"'Projection Analysis'!J17","v":0},{"$f":"'Projection Analysis'!K17","v":0}]
["February",{"$f":"'Projection Analysis'!J18","v":0},{"$f":"'Projection Analysis'!K18","v":{"$error":"#VALUE!"}}]
["March",{"$f":"'Projection Analysis'!J19","v":0},{"$f":"'Projection Analysis'!K19","v":{"$error":"#VALUE!"}}]
["April",{"$f":"'Projection Analysis'!J20","v":0},{"$f":"'Projection Analysis'!K20","v":{"$error":"#VALUE!"}}]
["May",{"$f":"'Projection Analysis'!J21","v":0},{"$f":"'Projection Analysis'!K21","v":{"$error":"#VALUE!"}}]
["June",{"$f":"'Projection Analysis'!J22","v":0},{"$f":"'Projection Analysis'!K22","v":{"$error":"#VALUE!"}}]
["July",{"$f":"'Projection Analysis'!J23","v":0},{"$f":"'Projection Analysis'!K23","v":{"$error":"#VALUE!"}}]
["August",{"$f":"'Projection Analysis'!J24","v":0},{"$f":"'Projection Analysis'!K24","v":{"$error":"#VALUE!"}}]
["September",{"$f":"'Projection Analysis'!J25","v":0},{"$f":"'Projection Analysis'!K25","v":{"$error":"#VALUE!"}}]
["October",{"$f":"'Projection Analysis'!J26","v":0},{"$f":"'Projection Analysis'!K26","v":{"$error":"#VALUE!"}}]
["November",{"$f":"'Projection Analysis'!J27","v":0},{"$f":"'Projection Analysis'!K27","v":{"$error":"#VALUE!"}}]
["December",{"$f":"'Projection Analysis'!J28","v":0},{"$f":"'Projection Analysis'!K28","v":{"$error":"#VALUE!"}}]
[]
["Total",{"$f":"SUM(B7:B18)","v":0},{"$f":"SUM(C7:C18)","v":{"$error":"#VALUE!"}}]
[]
["Eligibility with UMA Cap- funding limit",{"$f":"SUM('Projection Analysis'!C17:C28)","v":0},{"$f":"IF(B22>B20,C20,(B22*(C20/B20)))","v":{"$error":"#VALUE!"}}]
[]
["Re-benchmarking PUC",{"$f":"C20/B20","v":{"$error":"#VALUE!"}}]
[]
["YEAR 3"]
["CY Re-Benchmark Period Jan - Dec Following Year"]
[]
["Months","UMLs","HAP Exp"]
["January",{"$f":"'Projection Analysis'!J31","v":0},{"$f":"'Projection Analysis'!K31","v":{"$error":"#VALUE!"}}]
["February",{"$f":"'Projection Analysis'!J32","v":0},{"$f":"'Projection Analysis'!K32","v":{"$error":"#VALUE!"}}]
["March",{"$f":"'Projection Analysis'!J33","v":0},{"$f":"'Projection Analysis'!K33","v":{"$error":"#VALUE!"}}]
["April",{"$f":"'Projection Analysis'!J34","v":0},{"$f":"'Projection Analysis'!K34","v":{"$error":"#VALUE!"}}]
["May",{"$f":"'Projection Analysis'!J35","v":0},{"$f":"'Projection Analysis'!K35","v":{"$error":"#VALUE!"}}]
["June",{"$f":"'Projection Analysis'!J36","v":0},{"$f":"'Projection Analysis'!K36","v":{"$error":"#VALUE!"}}]
["July",{"$f":"'Projection Analysis'!J37","v":0},{"$f":"'Projection Analysis'!K37","v":{"$error":"#VALUE!"}}]
["August",{"$f":"'Projection Analysis'!J38","v":0},{"$f":"'Projection Analysis'!K38","v":{"$error":"#VALUE!"}}]
["September",{"$f":"'Projection Analysis'!J39","v":0},{"$f":"'Projection Analysis'!K39","v":{"$error":"#VALUE!"}}]
["October",{"$f":"'Projection Analysis'!J40","v":0},{"$f":"'Projection Analysis'!K40","v":{"$error":"#VALUE!"}}]
["November",{"$f":"'Projection Analysis'!J41","v":0},{"$f":"'Projection Analysis'!K41","v":{"$error":"#VALUE!"}}]
["December",{"$f":"'Projection Analysis'!J42","v":0},{"$f":"'Projection Analysis'!K42","v":{"$error":"#VALUE!"}}]
[]
["Total",{"$f":"SUM(B30:B41)","v":0},{"$f":"SUM(C30:C41)","v":{"$error":"#VALUE!"}}]
[]
["Eligibility with UMA Cap- funding limit",{"$f":"SUM('Projection Analysis'!C31:C42)","v":0},{"$f":"IF(B45>B43,C43,(B45*(C43/B43)))","v":{"$error":"#VALUE!"}}]
[]
["Re-benchmarking PUC",{"$f":"C43/B43","v":{"$error":"#VALUE!"}}]

{"sheet":"background leasing","index":4,"n_rows":44,"n_cols":17,"rows_kept":44,"cut":false,"hidden":false,"merged":[[38,9,38,16],[35,1,35,3],[17,0,35,0],[38,7,38,8],[34,1,34,2]]}
[]
[null,"Month","# issued Each Month","Eventual # leased","Jan","Feb","March","April","May","June","July","Aug","Sept","Oct","Nov","Dec","Total Projected leased"]
[null,"Jan",{"$f":"'Projection Analysis'!F17","v":0},{"$f":"C3*$D$39","v":0},null,{"$f":"$D3*$D$40","v":0},{"$f":"$D3*$D$41","v":0},{"$f":"$D3*$D$42","v":0},{"$f":"$D3*$D$43","v":0},{"$f":"$D3*$D$44","v":0},null,null,null,null,null,null,{"$f":"SUM(F3:P3)","v":0}]
[null,"Feb",{"$f":"'Projection Analysis'!F18","v":0},{"$f":"C4*$D$39","v":0},null,null,{"$f":"$D4*$D$40","v":0},{"$f":"$D4*$D$41","v":0},{"$f":"$D4*$D$42","v":0},{"$f":"$D4*$D$43","v":0},{"$f":"$D4*$D$44","v":0},null,null,null,null,null,{"$f":"SUM(E4:P4)","v":0}]
[null,"March",{"$f":"'Projection Analysis'!F19","v":0},0,null,null,null,{"$f":"$D5*$D$40","v":0},{"$f":"$D5*$D$41","v":0},{"$f":"$D5*$D$42","v":0},{"$f":"$D5*$D$43","v":0},{"$f":"$D5*$D$44","v":0},null,null,null,null,0]
[null,"April",{"$f":"'Projection Analysis'!F20","v":0},0,null,null,null,null,{"$f":"$D6*$D$40","v":0},{"$f":"$D6*$D$41","v":0},{"$f":"$D6*$D$42","v":0},{"$f":"$D6*$D$43","v":0},{"$f":"$D6*$D$44","v":0},null,null,null,0]
[null,"May",{"$f":"'Projection Analysis'!F21","v":0},0,null,null,null,null,null,{"$f":"$D7*$D$40","v":0},{"$f":"$D7*$D$41","v":0},{"$f":"$D7*$D$42","v":0},{"$f":"$D7*$D$43","v":0},{"$f":"$D7*$D$44","v":0},null,null,0]
[null,"June",{"$f":"'Projection Analysis'!F22","v":0},0,null,null,null,null,null,null,{"$f":"$D8*$D$40","v":0},{"$f":"$D8*$D$41","v":0},{"$f":"$D8*$D$42","v":0},{"$f":"$D8*$D$43","v":0},{"$f":"$D8*$D$44","v":0},null,0]
[null,"July",{"$f":"'Projection Analysis'!F23","v":0},0,null,null,null,null,null,null,null,{"$f":"$D9*$D$40","v":0},{"$f":"$D9*$D$41","v":0},{"$f":"$D9*$D$42","v":0},{"$f":"$D9*$D$43","v":0},{"$f":"$D9*$D$44","v":0},0]
[null,"Aug",{"$f":"'Projection Analysis'!F24","v":0},0,null,null,null,null,null,null,null,null,{"$f":"$D10*$D$40","v":0},{"$f":"$D10*$D$41","v":0},{"$f":"$D10*$D$42","v":0},{"$f":"$D10*$D$43","v":0},0]
[null,"Sept",{"$f":"'Projection Analysis'!F25","v":0},0,null,null,null,null,null,null,null,null,null,{"$f":"$D11*$D$40","v":0},{"$f":"$D11*$D$41","v":0},{"$f":"$D11*$D$42","v":0},0]
[null,"Oct",{"$f":"'Projection Analysis'!F26","v":0},0,null,null,null,null,null,null,null,null,null,null,{"$f":"$D12*$D$40","v":0},{"$f":"$D12*$D$41","v":0},0]
[null,"Nov",{"$f":"'Projection Analysis'!F27","v":0},0,null,null,null,null,null,null,null,null,null,null,null,{"$f":"$D13*$D$40","v":0},0]
[null,"Dec",{"$f":"'Projection Analysis'!F28","v":0},0,null,null,null,null,null,null,null,null,null,null,null,null,0]
[null,null,{"$f":"SUM(C3:C14)","v":0},null,"Jan","Feb","March","April","May","June","July","Aug","Sept","Oct","Nov","Dec",{"$f":"SUM(E21:H21)","v":0}]
[null,null,"Total Leased",null,{"$f":"SUM(E3:E14)","v":0},0,0,0,0,0,0,0,0,0,0,0,{"$f":"SUM(E16:P16)","v":0}]
[]
["following year leasing impact from current year issuances & Following Year Issuance","issued Aug Current Yr",null,null,{"$f":"D10*$D$44","v":0}]
[null,"issued Sept Current Yr",null,null,{"$f":"D11*$D$43","v":0},{"$f":"D11*D44","v":0}]
[null,"issued Oct Current Yr",null,null,{"$f":"D12*D42","v":0},{"$f":"D12*D43","v":0},{"$f":"D12*D44","v":0}]
[null,"issued Nov Current Yr",null,null,{"$f":"$D13*$D$41","v":0},{"$f":"$D13*$D$42","v":0},{"$f":"$D13*$D$43","v":0},{"$f":"$D13*$D$44","v":0}]
[null,"issued Dec Current Yr",null,null,{"$f":"D14*D40","v":0},{"$f":"D14*D41","v":0},{"$f":"+D14*D42","v":0},{"$f":"D14*D43","v":0},{"$f":"D14*D44","v":0}]
[null,"issued Jan ",{"$f":"'Projection Analysis'!F31","v":0},{"$f":"C23*$D$39","v":0},null,{"$f":"$D23*$D$40","v":0},{"$f":"$D23*$D$41","v":0},{"$f":"$D23*$D$42","v":0},{"$f":"$D23*$D$43","v":0},{"$f":"$D23*$D$44","v":0},null,null,null,null,null,null,{"$f":"SUM(F23:P23)","v":0}]
[null,"issued Feb",{"$f":"'Projection Analysis'!F32","v":0},0,null,null,{"$f":"$D24*$D$40","v":0},{"$f":"$D24*$D$41","v":0},{"$f":"$D24*$D$42","v":0},{"$f":"$D24*$D$43","v":0},{"$f":"$D24*$D$44","v":0},null,null,null,null,null,0]
[null,"issued March",{"$f":"'Projection Analysis'!F33","v":0},0,null,null,null,{"$f":"$D25*$D$40","v":0},{"$f":"$D25*$D$41","v":0},{"$f":"$D25*$D$42","v":0},{"$f":"$D25*$D$43","v":0},{"$f":"$D25*$D$44","v":0},null,null,null,null,0]
[null,"issued April",{"$f":"'Projection Analysis'!F34","v":0},0,null,null,null,null,{"$f":"$D26*$D$40","v":0},{"$f":"$D26*$D$41","v":0},{"$f":"$D26*$D$42","v":0},{"$f":"$D26*$D$43","v":0},{"$f":"$D26*$D$44","v":0},null,null,null,0]
[null,"issued May",{"$f":"'Projection Analysis'!F35","v":0},0,null,null,null,null,null,{"$f":"$D27*$D$40","v":0},{"$f":"$D27*$D$41","v":0},{"$f":"$D27*$D$42","v":0},{"$f":"$D27*$D$43","v":0},{"$f":"$D27*$D$44","v":0},null,null,0]
[null,"issued June",{"$f":"'Projection Analysis'!F36","v":0},0,null,null,null,null,null,null,{"$f":"$D28*$D$40","v":0},{"$f":"$D28*$D$41","v":0},{"$f":"$D28*$D$42","v":0},{"$f":"$D28*$D$43","v":0},{"$f":"$D28*$D$44","v":0},null,0]
[null,"issued July",{"$f":"'Projection Analysis'!F37","v":0},0,null,null,null,null,null,null,null,{"$f":"$D29*$D$40","v":0},{"$f":"$D29*$D$41","v":0},{"$f":"$D29*$D$42","v":0},{"$f":"$D29*$D$43","v":0},{"$f":"$D29*$D$44","v":0},0]
[null,"issued August",{"$f":"'Projection Analysis'!F38","v":0},0,null,null,null,null,null,null,null,null,{"$f":"$D30*$D$40","v":0},{"$f":"$D30*$D$41","v":0},{"$f":"$D30*$D$42","v":0},{"$f":"$D30*$D$43","v":0},0]
[null,"issued Sept",{"$f":"'Projection Analysis'!F39","v":0},0,null,null,null,null,null,null,null,null,null,{"$f":"$D31*$D$40","v":0},{"$f":"$D31*$D$41","v":0},{"$f":"$D31*$D$42","v":0},0]
[null,"issued Oct",{"$f":"'Projection Analysis'!F40","v":0},0,null,null,null,null,null,null,null,null,null,null,{"$f":"$D32*$D$40","v":0},{"$f":"$D32*$D$41","v":0},0]
[null,"issued Nov",{"$f":"'Projection Analysis'!F41","v":0},0,null,null,null,null,null,null,null,null,null,null,null,{"$f":"$D33*$D$40","v":0},0]
[null,"issued Dec",{"$f":"'Projection Analysis'!F42","v":0},0,null,null,null,null,null,null,null,null,null,null,null,null,0]
[null,"total leasing following year",null,null,{"$f":"SUM(E18:E34)","v":0},{"$f":"SUM(F18:F34)","v":0},0,0,0,0,0,0,0,0,0,0,{"$f":"SUM(E35:P35)","v":0}]
[null,"following year",null,null,"Jan","Feb","March","April","May","June","July","Aug","Sept","Oct","Nov","Dec"]
[]
[null,null,"Assumptions"]
[null,null,"Success Rate",{"$f":"'Projection Analysis'!K5","v":0},"cumulative"]
[null,null,"% RLA + insp pass in 30 days",{"$f":"'Projection Analysis'!K7","v":0},{"$f":"D40","v":0}]
[null,null,"% RLA + insp pass in 30 to 60 days",{"$f":"'Projection Analysis'!K8","v":0},{"$f":"E40+D41","v":0}]
[null,null,"% RLA + insp pass in 60 to 90 days",{"$f":"'Projection Analysis'!K9","v":0},{"$f":"E41+D42","v":0}]
[null,null,"% RLA + insp pass in 90 to 120 days",{"$f":"'Projection Analysis'!K10","v":0},{"$f":"E42+D43","v":0}]
[null,null,"% RLA + insp pass in 120 to 150 days",{"$f":"'Projection Analysis'!K11","v":0},{"$f":"E43+D44","v":0}]

{"sheet":"background graph","index":5,"n_rows":56,"n_cols":18,"rows_kept":56,"cut":false,"hidden":false,"merged":[[54,13,55,14]]}
[]
[]
[]
[]
[]
[]
[]
[]
[]
[]
[]
[]
[]
[]
[]
[]
[]
[]
[]
[]
[]
[]
[]
[]
[]
[]
[]
[]
[null,"Month","Estimated  Attrition","Vouchers issued or projected to be issued","Other Planned additons or reductions from leased units","Projected New Leasing from Issued Vouchers","Actual or Projected Units Leased  (Enter actual when known, otherwise formula projects leased)","Projected Average HAP Per Unit (enter 1st month only)","Actual PUC HAP","Manual PUC Override","PROJECTED HAP","Actual Monthly HAP Total(enter actual when known)","Estimated or Actual HAP","Cumulative Leased Percentage","Monthly ABA and NRA","Net Total Funds","Net ABA vs HAP","Monthly ABA"]
[null,{"$f":"'Projection Analysis'!B17","v":"January"},{"$f":"'Projection Analysis'!I17","v":0},{"$f":"'Projection Analysis'!F17","v":0},{"$f":"'Projection Analysis'!G17","v":0},{"$f":"'Projection Analysis'!H17","v":0},{"$f":"'Projection Analysis'!J17","v":0},{"$f":"'Projection Analysis'!L17","v":""},{"$f":"'Projection Analysis'!AE17","v":""},{"$f":"'Projection Analysis'!M17","v":0},{"$f":"'Projection Analysis'!AF17","v":0},{"$f":"'Projection Analysis'!E17","v":0},{"$f":"'Projection Analysis'!K17","v":0},{"$f":"'Projection Analysis'!N17","v":{"$error":"#DIV/0!"}},{"$f":"('Projection Analysis'!$C$10+'Projection Analysis'!$C$11)/12","v":0},{"$f":"O30-M30","v":0},{"$f":"('Projection Analysis'!$C$8/12)-M30","v":0},{"$f":"('Projection Analysis'!$C$10/12)","v":0}]
[null,{"$f":"'Projection Analysis'!B18","v":"February"},{"$f":"'Projection Analysis'!I18","v":0},{"$f":"'Projection Analysis'!F18","v":0},{"$f":"'Projection Analysis'!G18","v":0},{"$f":"'Projection Analysis'!H18","v":0},{"$f":"'Projection Analysis'!J18","v":0},{"$f":"'Projection Analysis'!L18","v":""},{"$f":"'Projection Analysis'!AE18","v":""},{"$f":"'Projection Analysis'!M18","v":0},{"$f":"'Projection Analysis'!AF18","v":{"$error":"#VALUE!"}},{"$f":"'Projection Analysis'!E18","v":0},{"$f":"'Projection Analysis'!K18","v":{"$error":"#VALUE!"}},{"$f":"'Projection Analysis'!N18","v":{"$error":"#DIV/0!"}},{"$f":"('Projection Analysis'!$C$10+'Projection Analysis'!$C$11)/12","v":0},{"$f":"O31-M31","v":{"$error":"#VALUE!"}},{"$f":"('Projection Analysis'!$C$8/12)-M31","v":{"$error":"#VALUE!"}},{"$f":"('Projection Analysis'!$C$10/12)","v":0}]
[null,{"$f":"'Projection Analysis'!B19","v":"March"},{"$f":"'Projection Analysis'!I19","v":0},{"$f":"'Projection Analysis'!F19","v":0},{"$f":"'Projection Analysis'!G19","v":0},{"$f":"'Projection Analysis'!H19","v":0},{"$f":"'Projection Analysis'!J19","v":0},{"$f":"'Projection Analysis'!L19","v":""},{"$f":"'Projection Analysis'!AE19","v":""},{"$f":"'Projection Analysis'!M19","v":0},{"$f":"'Projection Analysis'!AF19","v":{"$error":"#VALUE!"}},{"$f":"'Projection Analysis'!E19","v":0},{"$f":"'Projection Analysis'!K19","v":{"$error":"#VALUE!"}},{"$f":"'Projection Analysis'!N19","v":{"$error":"#DIV/0!"}},{"$f":"('Projection Analysis'!$C$10+'Projection Analysis'!$C$11)/12","v":0},{"$error":"#VALUE!"},{"$f":"('Projection Analysis'!$C$8/12)-M32","v":{"$error":"#VALUE!"}},{"$f":"('Projection Analysis'!$C$10/12)","v":0}]
[null,{"$f":"'Projection Analysis'!B20","v":"April"},{"$f":"'Projection Analysis'!I20","v":0},{"$f":"'Projection Analysis'!F20","v":0},{"$f":"'Projection Analysis'!G20","v":0},{"$f":"'Projection Analysis'!H20","v":0},{"$f":"'Projection Analysis'!J20","v":0},{"$f":"'Projection Analysis'!L20","v":""},{"$f":"'Projection Analysis'!AE20","v":""},{"$f":"'Projection Analysis'!M20","v":0},{"$f":"'Projection Analysis'!AF20","v":{"$error":"#VALUE!"}},{"$f":"'Projection Analysis'!E20","v":0},{"$f":"'Projection Analysis'!K20","v":{"$error":"#VALUE!"}},{"$f":"'Projection Analysis'!N20","v":{"$error":"#DIV/0!"}},{"$f":"('Projection Analysis'!$C$10+'Projection Analysis'!$C$11)/12","v":0},{"$error":"#VALUE!"},{"$f":"('Projection Analysis'!$C$8/12)-M33","v":{"$error":"#VALUE!"}},{"$f":"('Projection Analysis'!$C$10/12)","v":0}]
[null,{"$f":"'Projection Analysis'!B21","v":"May"},{"$f":"'Projection Analysis'!I21","v":0},{"$f":"'Projection Analysis'!F21","v":0},{"$f":"'Projection Analysis'!G21","v":0},{"$f":"'Projection Analysis'!H21","v":0},{"$f":"'Projection Analysis'!J21","v":0},{"$f":"'Projection Analysis'!L21","v":""},{"$f":"'Projection Analysis'!AE21","v":""},{"$f":"'Projection Analysis'!M21","v":0},{"$f":"'Projection Analysis'!AF21","v":{"$error":"#VALUE!"}},{"$f":"'Projection Analysis'!E21","v":0},{"$f":"'Projection Analysis'!K21","v":{"$error":"#VALUE!"}},{"$f":"'Projection Analysis'!N21","v":{"$error":"#DIV/0!"}},{"$f":"('Projection Analysis'!$C$10+'Projection Analysis'!$C$11)/12","v":0},{"$error":"#VALUE!"},{"$f":"('Projection Analysis'!$C$8/12)-M34","v":{"$error":"#VALUE!"}},{"$f":"('Projection Analysis'!$C$10/12)","v":0}]
[null,{"$f":"'Projection Analysis'!B22","v":"June"},{"$f":"'Projection Analysis'!I22","v":0},{"$f":"'Projection Analysis'!F22","v":0},{"$f":"'Projection Analysis'!G22","v":0},{"$f":"'Projection Analysis'!H22","v":0},{"$f":"'Projection Analysis'!J22","v":0},{"$f":"'Projection Analysis'!L22","v":""},{"$f":"'Projection Analysis'!AE22","v":""},{"$f":"'Projection Analysis'!M22","v":0},{"$f":"'Projection Analysis'!AF22","v":{"$error":"#VALUE!"}},{"$f":"'Projection Analysis'!E22","v":0},{"$f":"'Projection Analysis'!K22","v":{"$error":"#VALUE!"}},{"$f":"'Projection Analysis'!N22","v":{"$error":"#DIV/0!"}},{"$f":"('Projection Analysis'!$C$10+'Projection Analysis'!$C$11)/12","v":0},{"$error":"#VALUE!"},{"$f":"('Projection Analysis'!$C$8/12)-M35","v":{"$error":"#VALUE!"}},{"$f":"('Projection Analysis'!$C$10/12)","v":0}]
[null,{"$f":"'Projection Analysis'!B23","v":"July"},{"$f":"'Projection Analysis'!I23","v":0},{"$f":"'Projection Analysis'!F23","v":0},{"$f":"'Projection Analysis'!G23","v":0},{"$f":"'Projection Analysis'!H23","v":0},{"$f":"'Projection Analysis'!J23","v":0},{"$f":"'Projection Analysis'!L23","v":""},{"$f":"'Projection Analysis'!AE23","v":""},{"$f":"'Projection Analysis'!M23","v":0},{"$f":"'Projection Analysis'!AF23","v":{"$error":"#VALUE!"}},{"$f":"'Projection Analysis'!E23","v":0},{"$f":"'Projection Analysis'!K23","v":{"$error":"#VALUE!"}},{"$f":"'Projection Analysis'!N23","v":{"$error":"#DIV/0!"}},{"$f":"('Projection Analysis'!$C$10+'Projection Analysis'!$C$11)/12","v":0},{"$error":"#VALUE!"},{"$f":"('Projection Analysis'!$C$8/12)-M36","v":{"$error":"#VALUE!"}},{"$f":"('Projection Analysis'!$C$10/12)","v":0}]
[null,{"$f":"'Projection Analysis'!B24","v":"August"},{"$f":"'Projection Analysis'!I24","v":0},{"$f":"'Projection Analysis'!F24","v":0},{"$f":"'Projection Analysis'!G24","v":0},{"$f":"'Projection Analysis'!H24","v":0},{"$f":"'Projection Analysis'!J24","v":0},{"$f":"'Projection Analysis'!L24","v":""},{"$f":"'Projection Analysis'!AE24","v":""},{"$f":"'Projection Analysis'!M24","v":0},{"$f":"'Projection Analysis'!AF24","v":{"$error":"#VALUE!"}},{"$f":"'Projection Analysis'!E24","v":0},{"$f":"'Projection Analysis'!K24","v":{"$error":"#VALUE!"}},{"$f":"'Projection Analysis'!N24","v":{"$error":"#DIV/0!"}},{"$f":"('Projection Analysis'!$C$10+'Projection Analysis'!$C$11)/12","v":0},{"$error":"#VALUE!"},{"$f":"('Projection Analysis'!$C$8/12)-M37","v":{"$error":"#VALUE!"}},{"$f":"('Projection Analysis'!$C$10/12)","v":0}]
[null,{"$f":"'Projection Analysis'!B25","v":"September"},{"$f":"'Projection Analysis'!I25","v":0},{"$f":"'Projection Analysis'!F25","v":0},{"$f":"'Projection Analysis'!G25","v":0},{"$f":"'Projection Analysis'!H25","v":0},{"$f":"'Projection Analysis'!J25","v":0},{"$f":"'Projection Analysis'!L25","v":""},{"$f":"'Projection Analysis'!AE25","v":""},{"$f":"'Projection Analysis'!M25","v":0},{"$f":"'Projection Analysis'!AF25","v":{"$error":"#VALUE!"}},{"$f":"'Projection Analysis'!E25","v":0},{"$f":"'Projection Analysis'!K25","v":{"$error":"#VALUE!"}},{"$f":"'Projection Analysis'!N25","v":{"$error":"#DIV/0!"}},{"$f":"('Projection Analysis'!$C$10+'Projection Analysis'!$C$11)/12","v":0},{"$error":"#VALUE!"},{"$f":"('Projection Analysis'!$C$8/12)-M38","v":{"$error":"#VALUE!"}},{"$f":"('Projection Analysis'!$C$10/12)","v":0}]
[null,{"$f":"'Projection Analysis'!B26","v":"October"},{"$f":"'Projection Analysis'!I26","v":0},{"$f":"'Projection Analysis'!F26","v":0},{"$f":"'Projection Analysis'!G26","v":0},{"$f":"'Projection Analysis'!H26","v":0},{"$f":"'Projection Analysis'!J26","v":0},{"$f":"'Projection Analysis'!L26","v":""},{"$f":"'Projection Analysis'!AE26","v":""},{"$f":"'Projection Analysis'!M26","v":0},{"$f":"'Projection Analysis'!AF26","v":{"$error":"#VALUE!"}},{"$f":"'Projection Analysis'!E26","v":0},{"$f":"'Projection Analysis'!K26","v":{"$error":"#VALUE!"}},{"$f":"'Projection Analysis'!N26","v":{"$error":"#DIV/0!"}},{"$f":"('Projection Analysis'!$C$10+'Projection Analysis'!$C$11)/12","v":0},{"$error":"#VALUE!"},{"$f":"('Projection Analysis'!$C$8/12)-M39","v":{"$error":"#VALUE!"}},{"$f":"('Projection Analysis'!$C$10/12)","v":0}]
[null,{"$f":"'Projection Analysis'!B27","v":"November"},{"$f":"'Projection Analysis'!I27","v":0},{"$f":"'Projection Analysis'!F27","v":0},{"$f":"'Projection Analysis'!G27","v":0},{"$f":"'Projection Analysis'!H27","v":0},{"$f":"'Projection Analysis'!J27","v":0},{"$f":"'Projection Analysis'!L27","v":""},{"$f":"'Projection Analysis'!AE27","v":""},{"$f":"'Projection Analysis'!M27","v":0},{"$f":"'Projection Analysis'!AF27","v":{"$error":"#VALUE!"}},{"$f":"'Projection Analysis'!E27","v":0},{"$f":"'Projection Analysis'!K27","v":{"$error":"#VALUE!"}},{"$f":"'Projection Analysis'!N27","v":{"$error":"#DIV/0!"}},{"$f":"('Projection Analysis'!$C$10+'Projection Analysis'!$C$11)/12","v":0},{"$error":"#VALUE!"},{"$f":"('Projection Analysis'!$C$8/12)-M40","v":{"$error":"#VALUE!"}},{"$f":"('Projection Analysis'!$C$10/12)","v":0}]
[null,{"$f":"'Projection Analysis'!B28","v":"December"},{"$f":"'Projection Analysis'!I28","v":0},{"$f":"'Projection Analysis'!F28","v":0},{"$f":"'Projection Analysis'!G28","v":0},{"$f":"'Projection Analysis'!H28","v":0},{"$f":"'Projection Analysis'!J28","v":0},{"$f":"'Projection Analysis'!L28","v":""},{"$f":"'Projection Analysis'!AE28","v":""},{"$f":"'Projection Analysis'!M28","v":0},{"$f":"'Projection Analysis'!AF28","v":{"$error":"#VALUE!"}},{"$f":"'Projection Analysis'!E28","v":0},{"$f":"'Projection Analysis'!K28","v":{"$error":"#VALUE!"}},{"$f":"'Projection Analysis'!N28","v":{"$error":"#DIV/0!"}},{"$f":"('Projection Analysis'!$C$10+'Projection Analysis'!$C$11)/12","v":0},{"$error":"#VALUE!"},{"$f":"('Projection Analysis'!$C$8/12)-M41","v":{"$error":"#VALUE!"}},{"$f":"('Projection Analysis'!$C$10/12)","v":0}]
[null,{"$f":"'Projection Analysis'!B31","v":"January"},{"$f":"'Projection Analysis'!I31","v":0},{"$f":"'Projection Analysis'!F31","v":0},{"$f":"'Projection Analysis'!G31","v":0},{"$f":"'Projection Analysis'!H31","v":0},{"$f":"'Projection Analysis'!J31","v":0},{"$f":"'Projection Analysis'!L31","v":""},{"$f":"'Projection Analysis'!AE31","v":""},{"$f":"'Projection Analysis'!M31","v":0},{"$f":"'Projection Analysis'!AF31","v":{"$error":"#VALUE!"}},{"$f":"'Projection Analysis'!E31","v":0},{"$f":"'Projection Analysis'!K31","v":{"$error":"#VALUE!"}},{"$f":"'Projection Analysis'!N31","v":{"$error":"#DIV/0!"}},{"$f":"('Projection Analysis'!$D$10+'Projection Analysis'!$D$11)/12","v":{"$error":"#VALUE!"}},{"$error":"#VALUE!"},{"$f":"('Projection Analysis'!$D$8/12)-M42","v":{"$error":"#VALUE!"}},{"$f":"('Projection Analysis'!$D$10/12)","v":{"$error":"#VALUE!"}}]
[null,{"$f":"'Projection Analysis'!B32","v":"February"},{"$f":"'Projection Analysis'!I32","v":0},{"$f":"'Projection Analysis'!F32","v":0},{"$f":"'Projection Analysis'!G32","v":0},{"$f":"'Projection Analysis'!H32","v":0},{"$f":"'Projection Analysis'!J32","v":0},{"$f":"'Projection Analysis'!L32","v":""},{"$f":"'Projection Analysis'!AE32","v":""},{"$f":"'Projection Analysis'!M32","v":0},{"$f":"'Projection Analysis'!AF32","v":{"$error":"#VALUE!"}},{"$f":"'Projection Analysis'!E32","v":0},{"$f":"'Projection Analysis'!K32","v":{"$error":"#VALUE!"}},{"$f":"'Projection Analysis'!N32","v":{"$error":"#DIV/0!"}},{"$f":"('Projection Analysis'!$D$10+'Projection Analysis'!$D$11)/12","v":{"$error":"#VALUE!"}},{"$error":"#VALUE!"},{"$f":"('Projection Analysis'!$D$8/12)-M43","v":{"$error":"#VALUE!"}},{"$f":"('Projection Analysis'!$D$10/12)","v":{"$error":"#VALUE!"}}]
[null,{"$f":"'Projection Analysis'!B33","v":"March"},{"$f":"'Projection Analysis'!I33","v":0},{"$f":"'Projection Analysis'!F33","v":0},{"$f":"'Projection Analysis'!G33","v":0},{"$f":"'Projection Analysis'!H33","v":0},{"$f":"'Projection Analysis'!J33","v":0},{"$f":"'Projection Analysis'!L33","v":""},{"$f":"'Projection Analysis'!AE33","v":""},{"$f":"'Projection Analysis'!M33","v":0},{"$f":"'Projection Analysis'!AF33","v":{"$error":"#VALUE!"}},{"$f":"'Projection Analysis'!E33","v":0},{"$f":"'Projection Analysis'!K33","v":{"$error":"#VALUE!"}},{"$f":"'Projection Analysis'!N33","v":{"$error":"#DIV/0!"}},{"$f":"('Projection Analysis'!$D$10+'Projection Analysis'!$D$11)/12","v":{"$error":"#VALUE!"}},{"$error":"#VALUE!"},{"$f":"('Projection Analysis'!$D$8/12)-M44","v":{"$error":"#VALUE!"}},{"$f":"('Projection Analysis'!$D$10/12)","v":{"$error":"#VALUE!"}}]
[null,{"$f":"'Projection Analysis'!B34","v":"April"},{"$f":"'Projection Analysis'!I34","v":0},{"$f":"'Projection Analysis'!F34","v":0},{"$f":"'Projection Analysis'!G34","v":0},{"$f":"'Projection Analysis'!H34","v":0},{"$f":"'Projection Analysis'!J34","v":0},{"$f":"'Projection Analysis'!L34","v":""},{"$f":"'Projection Analysis'!AE34","v":""},{"$f":"'Projection Analysis'!M34","v":0},{"$f":"'Projection Analysis'!AF34","v":{"$error":"#VALUE!"}},{"$f":"'Projection Analysis'!E34","v":0},{"$f":"'Projection Analysis'!K34","v":{"$error":"#VALUE!"}},{"$f":"'Projection Analysis'!N34","v":{"$error":"#DIV/0!"}},{"$f":"('Projection Analysis'!$D$10+'Projection Analysis'!$D$11)/12","v":{"$error":"#VALUE!"}},{"$error":"#VALUE!"},{"$f":"('Projection Analysis'!$D$8/12)-M45","v":{"$error":"#VALUE!"}},{"$f":"('Projection Analysis'!$D$10/12)","v":{"$error":"#VALUE!"}}]
[null,{"$f":"'Projection Analysis'!B35","v":"May"},{"$f":"'Projection Analysis'!I35","v":0},{"$f":"'Projection Analysis'!F35","v":0},{"$f":"'Projection Analysis'!G35","v":0},{"$f":"'Projection Analysis'!H35","v":0},{"$f":"'Projection Analysis'!J35","v":0},{"$f":"'Projection Analysis'!L35","v":""},{"$f":"'Projection Analysis'!AE35","v":""},{"$f":"'Projection Analysis'!M35","v":0},{"$f":"'Projection Analysis'!AF35","v":{"$error":"#VALUE!"}},{"$f":"'Projection Analysis'!E35","v":0},{"$f":"'Projection Analysis'!K35","v":{"$error":"#VALUE!"}},{"$f":"'Projection Analysis'!N35","v":{"$error":"#DIV/0!"}},{"$f":"('Projection Analysis'!$D$10+'Projection Analysis'!$D$11)/12","v":{"$error":"#VALUE!"}},{"$error":"#VALUE!"},{"$f":"('Projection Analysis'!$D$8/12)-M46","v":{"$error":"#VALUE!"}},{"$f":"('Projection Analysis'!$D$10/12)","v":{"$error":"#VALUE!"}}]
[null,{"$f":"'Projection Analysis'!B36","v":"June"},{"$f":"'Projection Analysis'!I36","v":0},{"$f":"'Projection Analysis'!F36","v":0},{"$f":"'Projection Analysis'!G36","v":0},{"$f":"'Projection Analysis'!H36","v":0},{"$f":"'Projection Analysis'!J36","v":0},{"$f":"'Projection Analysis'!L36","v":""},{"$f":"'Projection Analysis'!AE36","v":""},{"$f":"'Projection Analysis'!M36","v":0},{"$f":"'Projection Analysis'!AF36","v":{"$error":"#VALUE!"}},{"$f":"'Projection Analysis'!E36","v":0},{"$f":"'Projection Analysis'!K36","v":{"$error":"#VALUE!"}},{"$f":"'Projection Analysis'!N36","v":{"$error":"#DIV/0!"}},{"$f":"('Projection Analysis'!$D$10+'Projection Analysis'!$D$11)/12","v":{"$error":"#VALUE!"}},{"$error":"#VALUE!"},{"$f":"('Projection Analysis'!$D$8/12)-M47","v":{"$error":"#VALUE!"}},{"$f":"('Projection Analysis'!$D$10/12)","v":{"$error":"#VALUE!"}}]
[null,{"$f":"'Projection Analysis'!B37","v":"July"},{"$f":"'Projection Analysis'!I37","v":0},{"$f":"'Projection Analysis'!F37","v":0},{"$f":"'Projection Analysis'!G37","v":0},{"$f":"'Projection Analysis'!H37","v":0},{"$f":"'Projection Analysis'!J37","v":0},{"$f":"'Projection Analysis'!L37","v":""},{"$f":"'Projection Analysis'!AE37","v":""},{"$f":"'Projection Analysis'!M37","v":0},{"$f":"'Projection Analysis'!AF37","v":{"$error":"#VALUE!"}},{"$f":"'Projection Analysis'!E37","v":0},{"$f":"'Projection Analysis'!K37","v":{"$error":"#VALUE!"}},{"$f":"'Projection Analysis'!N37","v":{"$error":"#DIV/0!"}},{"$f":"('Projection Analysis'!$D$10+'Projection Analysis'!$D$11)/12","v":{"$error":"#VALUE!"}},{"$error":"#VALUE!"},{"$f":"('Projection Analysis'!$D$8/12)-M48","v":{"$error":"#VALUE!"}},{"$f":"('Projection Analysis'!$D$10/12)","v":{"$error":"#VALUE!"}}]
[null,{"$f":"'Projection Analysis'!B38","v":"August"},{"$f":"'Projection Analysis'!I38","v":0},{"$f":"'Projection Analysis'!F38","v":0},{"$f":"'Projection Analysis'!G38","v":0},{"$f":"'Projection Analysis'!H38","v":0},{"$f":"'Projection Analysis'!J38","v":0},{"$f":"'Projection Analysis'!L38","v":""},{"$f":"'Projection Analysis'!AE38","v":""},{"$f":"'Projection Analysis'!M38","v":0},{"$f":"'Projection Analysis'!AF38","v":{"$error":"#VALUE!"}},{"$f":"'Projection Analysis'!E38","v":0},{"$f":"'Projection Analysis'!K38","v":{"$error":"#VALUE!"}},{"$f":"'Projection Analysis'!N38","v":{"$error":"#DIV/0!"}},{"$f":"('Projection Analysis'!$D$10+'Projection Analysis'!$D$11)/12","v":{"$error":"#VALUE!"}},{"$error":"#VALUE!"},{"$f":"('Projection Analysis'!$D$8/12)-M49","v":{"$error":"#VALUE!"}},{"$f":"('Projection Analysis'!$D$10/12)","v":{"$error":"#VALUE!"}}]
[null,{"$f":"'Projection Analysis'!B39","v":"September"},{"$f":"'Projection Analysis'!I39","v":0},{"$f":"'Projection Analysis'!F39","v":0},{"$f":"'Projection Analysis'!G39","v":0},{"$f":"'Projection Analysis'!H39","v":0},{"$f":"'Projection Analysis'!J39","v":0},{"$f":"'Projection Analysis'!L39","v":""},{"$f":"'Projection Analysis'!AE39","v":""},{"$f":"'Projection Analysis'!M39","v":0},{"$f":"'Projection Analysis'!AF39","v":{"$error":"#VALUE!"}},{"$f":"'Projection Analysis'!E39","v":0},{"$f":"'Projection Analysis'!K39","v":{"$error":"#VALUE!"}},{"$f":"'Projection Analysis'!N39","v":{"$error":"#DIV/0!"}},{"$f":"('Projection Analysis'!$D$10+'Projection Analysis'!$D$11)/12","v":{"$error":"#VALUE!"}},{"$error":"#VALUE!"},{"$f":"('Projection Analysis'!$D$8/12)-M50","v":{"$error":"#VALUE!"}},{"$f":"('Projection Analysis'!$D$10/12)","v":{"$error":"#VALUE!"}}]
[null,{"$f":"'Projection Analysis'!B40","v":"October"},{"$f":"'Projection Analysis'!I40","v":0},{"$f":"'Projection Analysis'!F40","v":0},{"$f":"'Projection Analysis'!G40","v":0},{"$f":"'Projection Analysis'!H40","v":0},{"$f":"'Projection Analysis'!J40","v":0},{"$f":"'Projection Analysis'!L40","v":""},{"$f":"'Projection Analysis'!AE40","v":""},{"$f":"'Projection Analysis'!M40","v":0},{"$f":"'Projection Analysis'!AF40","v":{"$error":"#VALUE!"}},{"$f":"'Projection Analysis'!E40","v":0},{"$f":"'Projection Analysis'!K40","v":{"$error":"#VALUE!"}},{"$f":"'Projection Analysis'!N40","v":{"$error":"#DIV/0!"}},{"$f":"('Projection Analysis'!$D$10+'Projection Analysis'!$D$11)/12","v":{"$error":"#VALUE!"}},{"$error":"#VALUE!"},{"$f":"('Projection Analysis'!$D$8/12)-M51","v":{"$error":"#VALUE!"}},{"$f":"('Projection Analysis'!$D$10/12)","v":{"$error":"#VALUE!"}}]
[null,{"$f":"'Projection Analysis'!B41","v":"November"},{"$f":"'Projection Analysis'!I41","v":0},{"$f":"'Projection Analysis'!F41","v":0},{"$f":"'Projection Analysis'!G41","v":0},{"$f":"'Projection Analysis'!H41","v":0},{"$f":"'Projection Analysis'!J41","v":0},{"$f":"'Projection Analysis'!L41","v":""},{"$f":"'Projection Analysis'!AE41","v":""},{"$f":"'Projection Analysis'!M41","v":0},{"$f":"'Projection Analysis'!AF41","v":{"$error":"#VALUE!"}},{"$f":"'Projection Analysis'!E41","v":0},{"$f":"'Projection Analysis'!K41","v":{"$error":"#VALUE!"}},{"$f":"'Projection Analysis'!N41","v":{"$error":"#DIV/0!"}},{"$f":"('Projection Analysis'!$D$10+'Projection Analysis'!$D$11)/12","v":{"$error":"#VALUE!"}},{"$error":"#VALUE!"},{"$f":"('Projection Analysis'!$D$8/12)-M52","v":{"$error":"#VALUE!"}},{"$f":"('Projection Analysis'!$D$10/12)","v":{"$error":"#VALUE!"}}]
[null,{"$f":"'Projection Analysis'!B42","v":"December"},{"$f":"'Projection Analysis'!I42","v":0},{"$f":"'Projection Analysis'!F42","v":0},{"$f":"'Projection Analysis'!G42","v":0},{"$f":"'Projection Analysis'!H42","v":0},{"$f":"'Projection Analysis'!J42","v":0},{"$f":"'Projection Analysis'!L42","v":""},{"$f":"'Projection Analysis'!AE42","v":""},{"$f":"'Projection Analysis'!M42","v":0},{"$f":"'Projection Analysis'!AF42","v":{"$error":"#VALUE!"}},{"$f":"'Projection Analysis'!E42","v":0},{"$f":"'Projection Analysis'!K42","v":{"$error":"#VALUE!"}},{"$f":"'Projection Analysis'!N42","v":{"$error":"#DIV/0!"}},{"$f":"('Projection Analysis'!$D$10+'Projection Analysis'!$D$11)/12","v":{"$error":"#VALUE!"}},{"$error":"#VALUE!"},{"$f":"('Projection Analysis'!$D$8/12)-M53","v":{"$error":"#VALUE!"}},{"$f":"('Projection Analysis'!$D$10/12)","v":{"$error":"#VALUE!"}}]
[]
[null,null,null,null,null,null,null,null,null,null,null,null,null,"Year three estimated benchmarking prorated: Annual and Monthly",null,{"$f":"'Projection Analysis'!E8","v":{"$error":"#VALUE!"}},{"$f":"(P55/12)-M53","v":{"$error":"#VALUE!"}},"Dec HAP vs yr 3 prorated monthly ABA"]
[null,null,null,null,null,null,null,null,null,null,null,null,null,null,null,{"$f":"P55/12","v":{"$error":"#VALUE!"}}]

{"sheet":"New Increment estimating instru","index":6,"n_rows":0,"n_cols":0,"rows_kept":0,"cut":false,"hidden":false,"merged":[]}